Workbook

Sheet INPUT
A1: General Input to all Scoring Tables
A3: Event Title | B3: CHESHIRE COUNTY ATHLETICS ASSOCIATION - Junior Multievent Championship, Macclesfield
A4: Arranged By: | B4: Handforth W A A C
A5: Sponsored By: | B5: Jones Homes
A6: Date: | B6: 2015-09-13
A7: Scorer: | B7: H Branthwaite
A8: Clubs Entered
B10: Team Number
A11: Altrincham & District | B11: =ROW(11:11)-ROW($10:$10) -> 1
A12: Colwyn Bay | B12: 2
A13: Crewe & Nantwich | B13: 3
A14: Deeside AC | B14: 4
A15: East Cheshire H | B15: 5
A16: Halton & Frodsham | B16: 6
A17: Handforth WAAC | B17: 7
A18: Leigh H | B18: 8
A19: Macclesfield H | B19: 9
A20: Manchester H | B20: 10
A21: Sale H | B21: 11
A22: Salford Mets | B22: 12
A23: Southport Waterloo | B23: 13
A24: St. Helens Sutton | B24: 14
A25: Stockport H | B25: 15
A26: Trafford | B26: 16
A27: Vale Royal | B27: 17
A28: Warrington | B28: 18
A29: West Cheshire | B29: 19
A30: Wirral AC | B30: 20
A31: Wrexham | B31: 21
B32: 22
B33: 23
A34: Club names in shaded area only & sorted in alphabetical order

Sheet Athletes
A1: No. | B1: Name | C1: M F | D1: Club | E1: Age | F1: Cheshire | H1: Hurdles | I1: Sprint | J1: 800m | K1: LJ | L1: HJ | M1: Shot | N1: Jav | P1: AName | Q1: Notes
B2: Verbickas, Ben | C2: M | D2: Crewe & Nantwich | E2: U13 | F2: C | P2: =CONCATENATE(RIGHT(B2,LEN(B2)-FIND(" ",B2)),", ",LEFT(B2, FIND(" ",B2)) ) -> Ben, Verbickas,
B3: Cathery, Joseph | C3: M | D3: Handforth WAAC | E3: U13 | F3: C | P3: Joseph, Cathery,
B4: Horne, Brandon | C4: M | D4: Handforth WAAC | E4: U13 | F4: C | P4: Brandon, Horne,
B5: Danson, Sam | C5: M | D5: Macclesfield H | E5: U13 | F5: C | P5: Sam, Danson,
B6: Frith, Morgan | C6: M | D6: Macclesfield H | E6: U13 | F6: C | P6: Morgan, Frith,
B7: Roberts, Thomas | C7: M | D7: Macclesfield H | E7: U13 | F7: C | P7: Thomas, Roberts,
B8: Thompson, Jacob | C8: M | D8: Macclesfield H | E8: U13 | F8: C | P8: Jacob, Thompson,
B9: Cooper, Matthew | C9: M | D9: Manchester H | E9: U13 | P9: Matthew, Cooper,
B10: Hopkins, Jamie | C10: M | D10: Southport Waterloo | E10: U13 | P10: Jamie, Hopkins,
B11: Culmer, William | C11: M | D11: Stockport H | E11: U13 | F11: C | P11: William, Culmer,
B12: Houlden, Matthew | C12: M | D12: Stockport H | E12: U13 | F12: C | P12: Matthew, Houlden,
B13: Shaw, Adam | C13: M | D13: Warrington | E13: U13 | F13: C | P13: Adam, Shaw,
B14: Bugg, Dylan | C14: M | D14: West Cheshire | E14: U13 | F14: C | P14: Dylan, Bugg,
B15: Howe, Adam | C15: M | D15: West Cheshire | E15: U13 | F15: C | P15: Adam, Howe,
B16: Smith, Ivor | C16: M | D16: West Cheshire | E16: U13 | F16: C | P16: Ivor, Smith,
B17: Townend, Louis | C17: M | E17: U13 | F17: C | P17: Louis, Townend,
A18: No. | B18: Name | C18: M F | D18: Club | E18: Age | F18: Cheshire | H18: Hurdles | I18: Sprint | J18: 800m | K18: LJ | L18: HJ | M18: Shot | N18: Jav
B19: Simpson, Emma | C19: F | D19: Altrincham & District | E19: U13 | P19: Emma, Simpson,
B20: Fowler, Olivia | C20: F | D20: Crewe & Nantwich | E20: U13 | F20: C | P20: Olivia, Fowler,
B21: Lewis, Megan | C21: F | D21: East Cheshire H | E21: U13 | P21: Megan, Lewis,
B22: Cathery, Isabel | C22: F | D22: Handforth WAAC | E22: U13 | F22: C | P22: Isabel, Cathery,
B23: Merry, Immy | C23: F | D23: Handforth WAAC | E23: U13 | F23: C | P23: Immy, Merry,
B24: Sheekey, Freya | C24: F | D24: Handforth WAAC | E24: U13 | F24: C | P24: Freya, Sheekey,
B25: Carey, Liliana | C25: F | D25: Macclesfield H | E25: U13 | F25: C | P25: Liliana, Carey,
B26: Dutton, Poppy | C26: F | D26: Macclesfield H | E26: U13 | F26: C | P26: Poppy, Dutton,
B27: Greeney, Libby | C27: F | D27: Macclesfield H | E27: U13 | F27: C | P27: Libby, Greeney,
B28: Heslop, Sian | C28: F | D28: Macclesfield H | E28: U13 | F28: C | P28: Sian, Heslop,
B29: Dale, Alice | C29: F | D29: Sale H | E29: U13 | P29: Alice, Dale,
B30: Whittaker, Scarlett | C30: F | D30: Sale H | E30: U13 | F30: C | P30: Scarlett, Whittaker,
B31: Burgess, Lauren | C31: F | D31: Stockport H | E31: U13 | P31: Lauren, Burgess,
B32: Martin, Millie | C32: F | D32: Stockport H | E32: U13 | P32: Millie, Martin,
B33: Wild, Evie | C33: F | D33: Stockport H | E33: U13 | P33: Evie, Wild,
B34: Cartwright, Abigail | C34: F | D34: West Cheshire | E34: U13 | F34: C | P34: =CONCATENATE(RIGHT(B34,LEN(B34)-FIND(" ",B34)),", ",LEFT(B34, FIND(" ",B34)) ) -> Abigail, Cartwright,
B35: Crayston, Anna | C35: F | D35: West Cheshire | E35: U13 | F35: C | P35: Anna, Crayston,
B36: Hall, Jessica | C36: F | D36: West Cheshire | E36: U13 | F36: C | P36: Jessica, Hall,
B37: Jayaram, Mimi | C37: F | D37: West Cheshire | E37: U13 | F37: C | P37: Mimi, Jayaram,
B38: Jones, Lauren Eve | C38: F | D38: West Cheshire | E38: U13 | F38: C | P38: Lauren Eve, Jones,
B39: Misantoni, Emily | C39: F | D39: West Cheshire | E39: U13 | F39: C | P39: Emily, Misantoni,
B40: Pawlett, Abigail | C40: F | D40: West Cheshire | E40: U13 | F40: C | P40: Abigail, Pawlett,
B41: Tipping, Evie | C41: F | D41: West Cheshire | E41: U13 | F41: C | P41: Evie, Tipping,
F52: C
F53: C
F54: C
F55: C
F56: C
F57: C
F61: C
F62: C
F63: C
F64: C
F65: C
F66: C | P66: =CONCATENATE(RIGHT(B66,LEN(B66)-FIND(" ",B66)),", ",LEFT(B66, FIND(" ",B66)) ) -> 
F67: C
F69: C
F70: C
F71: C
F72: C
F74: C
F75: C
F76: C
F77: C
F78: C
F79: C
F80: C
F82: C
F83: C
F84: C
F85: C
F87: C
F88: C
F91: C
E94: U15 | F94: C
E95: U15 | F95: C
E96: U15 | F96: C
E97: U15 | F97: C
E98: U15 | F98: C | P98: =CONCATENATE(RIGHT(B98,LEN(B98)-FIND(" ",B98)),", ",LEFT(B98, FIND(" ",B98)) ) -> 
E99: U15 | F99: C
E100: U15
E101: U15
E102: U15 | F102: C
E103: U17 | F103: C
E104: U17 | F104: C
E107: U17 | F107: C
E108: U17 | F108: C
E109: U17

Sheet U11 Tri
A1: =EventTitle -> CHESHIRE COUNTY ATHLETICS ASSOCIATION - Junior Multievent Championship, Macclesfield | AI1: =INDEX(Clubs,1,1) -> Altrincham & District | AJ1: =INDEX(Clubs,2,1) -> Colwyn Bay | AK1: =INDEX(Clubs,3,1) -> Crewe & Nantwich | AL1: =INDEX(Clubs,4,1) -> Deeside AC | AM1: =INDEX(Clubs,5,1) -> East Cheshire H | AN1: =INDEX(Clubs,6,1) -> Halton & Frodsham | AO1: =INDEX(Clubs,7,1) -> Handforth WAAC | AP1: =INDEX(Clubs,8,1) -> Leigh H | AQ1: =INDEX(Clubs,9,1) -> Macclesfield H | AR1: =INDEX(Clubs,10,1) -> Manchester H | AS1: =INDEX(Clubs,11,1) -> Sale H | AT1: =INDEX(Clubs,12,1) -> Salford Mets | AU1: =INDEX(Clubs,13,1) -> Southport Waterloo | AV1: =INDEX(Clubs,14,1) -> St. Helens Sutton | AW1: =INDEX(Clubs,15,1) -> Stockport H | AX1: =INDEX(Clubs,16,1) -> Trafford | AY1: =INDEX(Clubs,17,1) -> Vale Royal | AZ1: =INDEX(Clubs,18,1) -> Warrington | BA1: =INDEX(Clubs,19,1) -> West Cheshire | BB1: =INDEX(Clubs,20,1) -> Wirral AC | BC1: =INDEX(Clubs,21,1) -> Wrexham | BD1: =INDEX(Clubs,1,1) -> Altrincham & District | BE1: =INDEX(Clubs,2,1) -> Colwyn Bay | BF1: =INDEX(Clubs,3,1) -> Crewe & Nantwich | BG1: =INDEX(Clubs,4,1) -> Deeside AC | BH1: =INDEX(Clubs,5,1) -> East Cheshire H | BI1: =INDEX(Clubs,6,1) -> Halton & Frodsham | BJ1: =INDEX(Clubs,7,1) -> Handforth WAAC | BK1: =INDEX(Clubs,8,1) -> Leigh H | BL1: =INDEX(Clubs,9,1) -> Macclesfield H | BM1: =INDEX(Clubs,10,1) -> Manchester H | BN1: =INDEX(Clubs,11,1) -> Sale H | BO1: =INDEX(Clubs,12,1) -> Salford Mets | BP1: =INDEX(Clubs,13,1) -> Southport Waterloo | BQ1: =INDEX(Clubs,14,1) -> St. Helens Sutton | BR1: =INDEX(Clubs,15,1) -> Stockport H | BS1: =INDEX(Clubs,16,1) -> Trafford | BT1: =INDEX(Clubs,17,1) -> Vale Royal | BU1: =INDEX(Clubs,18,1) -> Warrington | BV1: =INDEX(Clubs,19,1) -> West Cheshire | BW1: =INDEX(Clubs,20,1) -> Wirral AC | BX1: =INDEX(Clubs,21,1) -> Wrexham | BY1: =INDEX(Clubs,1,1) -> Altrincham & District | BZ1: =INDEX(Clubs,2,1) -> Colwyn Bay | CA1: =INDEX(Clubs,3,1) -> Crewe & Nantwich | CB1: =INDEX(Clubs,4,1) -> Deeside AC | CC1: =INDEX(Clubs,5,1) -> East Cheshire H | CD1: =INDEX(Clubs,6,1) -> Halton & Frodsham | CE1: =INDEX(Clubs,7,1) -> Handforth WAAC | CF1: =INDEX(Clubs,8,1) -> Leigh H | CG1: =INDEX(Clubs,9,1) -> Macclesfield H | CH1: =INDEX(Clubs,10,1) -> Manchester H | CI1: =INDEX(Clubs,11,1) -> Sale H | CJ1: =INDEX(Clubs,12,1) -> Salford Mets | CK1: =INDEX(Clubs,13,1) -> Southport Waterloo | CL1: =INDEX(Clubs,14,1) -> St. Helens Sutton | CM1: =INDEX(Clubs,15,1) -> Stockport H | CN1: =INDEX(Clubs,16,1) -> Trafford | CO1: =INDEX(Clubs,17,1) -> Vale Royal | CP1: =INDEX(Clubs,18,1) -> Warrington | CQ1: =INDEX(Clubs,19,1) -> West Cheshire | CR1: =INDEX(Clubs,20,1) -> Wirral AC | CS1: =INDEX(Clubs,21,1) -> Wrexham
F2: U11s Boys & Girls
A4: Arranged by: | C4: =ArrangedBy -> Handforth W A A C | E4: Scorer: | G4: =Scorer -> H Branthwaite | M4: Date: | N4: =Date -> 2015-09-13
A5: Sponsored by: | C5: =Sponsor -> Jones Homes | E5: Checked by: | G5: S Cathery & M Norman | AB5: Teams | AC5: Athletes
A6: No. | B6: Name | C6: M F | D6: Club | E6: 100m | F6: Score | G6: 800m | H6: Score | I6: Long Jump | J6: Score | K6: Jav. | L6: Score | M6: Total Score 3 events | N6: Final Posit'n | O6: Five Star Award | P6: Team Score | R6: Mix Team Score | S6: Mix Team Position | T6: Rank Ind | U6: Rank Mix | V6: Rank Ind G | W6: Table for Girl | X6: Rank Ind B | Y6: Table for boy | Z6: Rank mix | AA6: Table for table | AC6: offset | AG6: M | AH6: F | CW6: Last Col
A7: 1 | B7: Verbickas, Charlotte | C7: F | D7: Crewe & Nantwich | E7: 16.9 | F7: =IF(E7="DNF",0,IF(E7=0,0,IF(E7<=14,VLOOKUP(E7,T_100m,15,TRUE),IF(E7<=15.2,VLOOKUP(E7,T_100m,15,TRUE),IF(E7<=21,VLOOKUP(E7-0.01,T_100m,15,TRUE)-1,0))))) -> 32 | G7: 00:03:12 | H7: =IF(G7="DNF",0,IF(G7=0,0,VLOOKUP(G7,T_800m,11,TRUE)-1)) -> 54 | I7: 2.69 | J7: =IF(I7="NJ",0,IF(I7<'Scoring Tables'!$S$4,0,VLOOKUP(I7,T_Long,11,TRUE))) -> 27 | K7: 11.26 | L7: =IF(K7="NT",0,IF(K7<'Scoring Tables'!$X$14,0,VLOOKUP(K7,T_Javlin,6,TRUE))) -> 30 | M7: =IFERROR((LARGE((F7,H7),1)+J7+L7),0) -> 111 | N7: =IF(M7=0,0,IF(C7="M",(RANK(M7,AG$7:AG$97)&"B"),RANK(M7,AH$7:AH$95)&"G")) -> 11G | O7: =IF(M7<15,0,HLOOKUP(M7,T_U11B_3_Events,3)) -> 3* | P7: =IFERROR(IF(AD7="G",OFFSET($AH$84,VLOOKUP(T7,$AB$94:$AC$105,2,0),AC7,1,1),IF(AD7="B",OFFSET($BC$84,VLOOKUP(T7,$AB$94:$AC$105,2,0),AC7,1,1),0)),0) -> 0 | R7: =IFERROR(OFFSET($BX$84,VLOOKUP(U7,$AB$94:$AC$105,2,0),AC7,1,1),0) -> 0 | S7: =IF(R7>0,RANK(R7,$BY$85:$CS$87),0) -> 0 | T7: =RANK(M7,OFFSET($AH$6,0,AC7,64,1)) -> 2 | U7: =RANK(M7,OFFSET($BX$6,0,AC7,64,1)) -> 5 | V7: =IFERROR(IF(Q7=0,0,IF(C7="F",P7*1000+M7,0)),0) -> 0 | W7: =IF(AND(P7>0,C7="F"), RANK(V7,$V$7:$V$68),"") ->  | X7: =IFERROR(IF(P7=0,0,IF(C7="M",P7*1000+M7,0)),0) -> 0 | Y7: =IFERROR(IF(AND(P7>0,C7="M"), RANK(X7,$X$7:$X$68),0),0) -> 0 | Z7: =IFERROR(IF(R7>1,R7*100000+M7*100+ROW(),0),0) -> 0 | AA7: =IFERROR(IF(R7>0, RANK(Z7,$Z$7:$Z$52),0),0) -> 0 | AB7: =IF(C7="F",D7,"") -> Crewe & Nantwich | AC7: =VLOOKUP(D7,ClubIx,2,0) -> 3 | AD7: =IF(C7="M","B","G") -> G | AG7: =IF(C7="M",M7,0) -> 0 | AH7: =IF(C7="F",M7,0) -> 111 | AI7: =IF($D7=AI$1,$AH7,0) -> 0 | AJ7: 0 | AK7: 111 | AL7: 0 | AM7: 0 | AN7: 0 | AO7: 0 | AP7: 0 | AQ7: 0 | AR7: 0 | AS7: =IF($D7=AS$1,$AH7,0) -> 0 | AT7: 0 | AU7: 0 | AV7: 0 | AW7: 0 | AX7: 0 | AY7: 0 | AZ7: 0 | BA7: 0 | BB7: 0 | BC7: 0 | BD7: =IF($D7=BD$1,$AG7,0) -> 0 | BE7: 0 | BF7: 0 | BG7: 0 | BH7: 0 | BI7: 0 | BJ7: 0 | BK7: 0 | BL7: 0 | BM7: 0 | BN7: =IF($D7=BN$1,$AG7,0) -> 0 | BO7: 0 | BP7: 0 | BQ7: 0 | BR7: 0 | BS7: 0 | BT7: 0 | BU7: 0 | BV7: 0 | BW7: 0 | BX7: 0 | BY7: =AI7+BD7 -> 0 | BZ7: =AJ7+BE7 -> 0 | CA7: =AK7+BF7 -> 111 | CB7: =AL7+BG7 -> 0 | CC7: =AM7+BH7 -> 0 | CD7: =AN7+BI7 -> 0 | CE7: =AO7+BJ7 -> 0 | CF7: =AP7+BK7 -> 0 | CG7: =AQ7+BL7 -> 0 | CH7: =AR7+BM7 -> 0 | CI7: =AS7+BN7 -> 0 | CJ7: =AT7+BO7 -> 0 | CK7: =AU7+BP7 -> 0 | CL7: =AV7+BQ7 -> 0 | CM7: =AW7+BR7 -> 0 | CN7: =AX7+BS7 -> 0 | CO7: =AY7+BT7 -> 0 | CP7: =AZ7+BU7 -> 0 | CQ7: =BA7+BV7 -> 0 | CR7: =BB7+BW7 -> 0 | CS7: =BC7+BX7 -> 0
A8: 2 | B8: Wilding, Esther | C8: F | D8: Crewe & Nantwich | E8: 14.3 | F8: 67 | G8: 00:02:47.700 | H8: 66 | I8: 3.62 | J8: =IF(I8="NJ",0,IF(I8<'Scoring Tables'!$S$4,0,VLOOKUP(I8,T_Long,11,TRUE))) -> 58 | K8: 11.69 | L8: =IF(K8="NT",0,IF(K8<'Scoring Tables'!$X$14,0,VLOOKUP(K8,T_Javlin,6,TRUE))) -> 31 | M8: =IFERROR((LARGE((F8,H8),1)+J8+L8),0) -> 156 | N8: 1G | O8: =IF(M8<15,0,HLOOKUP(M8,T_U11G_3_Events,3)) -> 5* | P8: 0 | R8: 479 | S8: 1 | T8: =RANK(M8,OFFSET($AH$6,0,AC8,64,1)) -> 1 | U8: 2 | V8: 0 | X8: 0 | Y8: 0 | Z8: 47915608 | AA8: 2 | AB8: =IF(C8="F",D8,"") -> Crewe & Nantwich | AC8: 3 | AD8: G | AG8: 0 | AH8: 156 | AI8: 0 | AJ8: 0 | AK8: 156 | AL8: 0 | AM8: 0 | AN8: 0 | AO8: 0 | AP8: 0 | AQ8: 0 | AR8: 0 | AS8: 0 | AT8: 0 | AU8: 0 | AV8: 0 | AW8: 0 | AX8: 0 | AY8: 0 | AZ8: 0 | BA8: 0 | BB8: 0 | BC8: 0 | BD8: 0 | BE8: 0 | BF8: 0 | BG8: 0 | BH8: 0 | BI8: 0 | BJ8: 0 | BK8: 0 | BL8: 0 | BM8: 0 | BN8: 0 | BO8: 0 | BP8: 0 | BQ8: 0 | BR8: 0 | BS8: 0 | BT8: 0 | BU8: 0 | BV8: 0 | BW8: 0 | BX8: 0 | BY8: 0 | BZ8: 0 | CA8: 156 | CB8: 0 | CC8: 0 | CD8: 0 | CE8: 0 | CF8: 0 | CG8: 0 | CH8: 0 | CI8: 0 | CJ8: 0 | CK8: 0 | CL8: 0 | CM8: 0 | CN8: 0 | CO8: 0 | CP8: 0 | CQ8: 0 | CR8: 0 | CS8: 0
A9: 3 | B9: Carswell, Lauren | C9: F | D9: Halton & Frodsham | E9: 15.7 | F9: 44 | H9: 0 | I9: 3.03 | J9: =IF(I9="NJ",0,IF(I9<'Scoring Tables'!$S$4,0,VLOOKUP(I9,T_Long,11,TRUE))) -> 39 | K9: 9.24 | L9: =IF(K9="NT",0,IF(K9<'Scoring Tables'!$X$14,0,VLOOKUP(K9,T_Javlin,6,TRUE))) -> 21 | M9: =IFERROR((LARGE((F9,H9),1)+J9+L9),0) -> 104 | N9: 13G | P9: 0 | R9: 0 | S9: 0 | T9: =RANK(M9,OFFSET($AH$6,0,AC9,64,1)) -> 1 | U9: 1 | V9: 0 | X9: 0 | Y9: 0 | Z9: 0 | AA9: 0 | AC9: 6 | AD9: G | AG9: 0 | AH9: 104 | AI9: 0 | AJ9: 0 | AK9: 0 | AL9: 0 | AM9: 0 | AN9: 104 | AO9: 0 | AP9: 0 | AQ9: 0 | AR9: 0 | AS9: 0 | AT9: 0 | AU9: 0 | AV9: 0 | AW9: 0 | AX9: 0 | AY9: 0 | AZ9: 0 | BA9: 0 | BB9: 0 | BC9: 0 | BD9: 0 | BE9: 0 | BF9: 0 | BG9: 0 | BH9: 0 | BI9: 0 | BJ9: 0 | BK9: 0 | BL9: 0 | BM9: 0 | BN9: 0 | BO9: 0 | BP9: 0 | BQ9: 0 | BR9: 0 | BS9: 0 | BT9: 0 | BU9: 0 | BV9: 0 | BW9: 0 | BX9: 0 | BY9: 0 | BZ9: 0 | CA9: 0 | CB9: 0 | CC9: 0 | CD9: 104 | CE9: 0 | CF9: 0 | CG9: 0 | CH9: 0 | CI9: 0 | CJ9: 0 | CK9: 0 | CL9: 0 | CM9: 0 | CN9: 0 | CO9: 0 | CP9: 0 | CQ9: 0 | CR9: 0 | CS9: 0
A10: 4 | B10: Duce, Anna | C10: F | D10: Handforth WAAC | E10: 15.7 | F10: 44 | H10: 0 | I10: 3.12 | J10: =IF(I10="NJ",0,IF(I10<'Scoring Tables'!$S$4,0,VLOOKUP(I10,T_Long,11,TRUE))) -> 42 | K10: 12.28 | L10: =IF(K10="NT",0,IF(K10<'Scoring Tables'!$X$14,0,VLOOKUP(K10,T_Javlin,6,TRUE))) -> 34 | M10: =IFERROR((LARGE((F10,H10),1)+J10+L10),0) -> 120 | N10: 10G | O10: =IF(M10<15,0,HLOOKUP(M10,T_U11B_3_Events,3)) -> 4* | P10: 0 | R10: 326 | S10: 9 | T10: =RANK(M10,OFFSET($BC$6,0,AC10,64,1)) ->  | U10: 1 | V10: 0 | X10: 0 | Y10: 0 | Z10: 32612010 | AA10: 25 | AB10: =IF(C10="M",D10,"") ->  | AC10: 7 | AD10: G | AG10: 0 | AH10: 120 | AI10: 0 | AJ10: 0 | AK10: 0 | AL10: 0 | AM10: 0 | AN10: 0 | AO10: 120 | AP10: 0 | AQ10: 0 | AR10: 0 | AS10: 0 | AT10: 0 | AU10: 0 | AV10: 0 | AW10: 0 | AX10: 0 | AY10: 0 | AZ10: 0 | BA10: 0 | BB10: 0 | BC10: 0 | BD10: 0 | BE10: 0 | BF10: 0 | BG10: 0 | BH10: 0 | BI10: 0 | BJ10: 0 | BK10: 0 | BL10: 0 | BM10: 0 | BN10: 0 | BO10: 0 | BP10: 0 | BQ10: 0 | BR10: 0 | BS10: 0 | BT10: 0 | BU10: 0 | BV10: 0 | BW10: 0 | BX10: 0 | BY10: 0 | BZ10: 0 | CA10: 0 | CB10: 0 | CC10: 0 | CD10: 0 | CE10: 120 | CF10: 0 | CG10: 0 | CH10: 0 | CI10: 0 | CJ10: 0 | CK10: 0 | CL10: 0 | CM10: 0 | CN10: 0 | CO10: 0 | CP10: 0 | CQ10: 0 | CR10: 0 | CS10: 0
A11: 5 | B11: Barry, Keira | C11: F | D11: Macclesfield H | E11: 14.3 | F11: 67 | G11: 00:03:12.600 | H11: 53 | I11: 3.8 | J11: =IF(I11="NJ",0,IF(I11<'Scoring Tables'!$S$4,0,VLOOKUP(I11,T_Long,11,TRUE))) -> 64 | K11: 9.23 | L11: =IF(K11="NT",0,IF(K11<'Scoring Tables'!$X$14,0,VLOOKUP(K11,T_Javlin,6,TRUE))) -> 21 | M11: =IFERROR((LARGE((F11,H11),1)+J11+L11),0) -> 152 | N11: 2G | O11: =IF(M11<15,0,HLOOKUP(M11,T_U11G_3_Events,3)) -> 5* | P11: 0 | R11: 425 | S11: 4 | T11: =RANK(M11,OFFSET($BC$6,0,AC11,64,1)) ->  | U11: 1 | V11: 0 | X11: 0 | Y11: 0 | Z11: 42515211 | AA11: 10 | AB11: =IF(C11="M",D11,"") ->  | AC11: 9 | AD11: G | AG11: 0 | AH11: 152 | AI11: 0 | AJ11: 0 | AK11: 0 | AL11: 0 | AM11: 0 | AN11: 0 | AO11: 0 | AP11: 0 | AQ11: 152 | AR11: 0 | AS11: 0 | AT11: 0 | AU11: 0 | AV11: 0 | AW11: 0 | AX11: 0 | AY11: 0 | AZ11: 0 | BA11: 0 | BB11: 0 | BC11: 0 | BD11: 0 | BE11: 0 | BF11: 0 | BG11: 0 | BH11: 0 | BI11: 0 | BJ11: 0 | BK11: 0 | BL11: 0 | BM11: 0 | BN11: 0 | BO11: 0 | BP11: 0 | BQ11: 0 | BR11: 0 | BS11: 0 | BT11: 0 | BU11: 0 | BV11: 0 | BW11: 0 | BX11: 0 | BY11: 0 | BZ11: 0 | CA11: 0 | CB11: 0 | CC11: 0 | CD11: 0 | CE11: 0 | CF11: 0 | CG11: 152 | CH11: 0 | CI11: 0 | CJ11: 0 | CK11: 0 | CL11: 0 | CM11: 0 | CN11: 0 | CO11: 0 | CP11: 0 | CQ11: 0 | CR11: 0 | CS11: 0
A12: 6 | B12: Carroll, Serena | C12: F | D12: Macclesfield H | E12: 15.3 | F12: 48 | G12: 00:03:24.800 | H12: 47 | I12: 3.44 | J12: =IF(I12="NJ",0,IF(I12<'Scoring Tables'!$S$4,0,VLOOKUP(I12,T_Long,11,TRUE))) -> 52 | K12: 10.39 | L12: =IF(K12="NT",0,IF(K12<'Scoring Tables'!$X$14,0,VLOOKUP(K12,T_Javlin,6,TRUE))) -> 26 | M12: =IFERROR((LARGE((F12,H12),1)+J12+L12),0) -> 126 | N12: 8G | O12: =IF(M12<15,0,HLOOKUP(M12,T_U11B_3_Events,3)) -> 4* | P12: 0 | R12: 425 | S12: 4 | T12: =RANK(M12,OFFSET($BC$6,0,AC12,64,1)) ->  | U12: 3 | V12: 0 | X12: 0 | Y12: 0 | Z12: 42512612 | AA12: 12 | AB12: =IF(C12="M",D12,"") ->  | AC12: 9 | AD12: G | AG12: 0 | AH12: 126 | AI12: 0 | AJ12: 0 | AK12: 0 | AL12: 0 | AM12: 0 | AN12: 0 | AO12: 0 | AP12: 0 | AQ12: 126 | AR12: 0 | AS12: 0 | AT12: 0 | AU12: 0 | AV12: 0 | AW12: 0 | AX12: 0 | AY12: 0 | AZ12: 0 | BA12: 0 | BB12: 0 | BC12: 0 | BD12: 0 | BE12: 0 | BF12: 0 | BG12: 0 | BH12: 0 | BI12: 0 | BJ12: 0 | BK12: 0 | BL12: 0 | BM12: 0 | BN12: 0 | BO12: 0 | BP12: 0 | BQ12: 0 | BR12: 0 | BS12: 0 | BT12: 0 | BU12: 0 | BV12: 0 | BW12: 0 | BX12: 0 | BY12: 0 | BZ12: 0 | CA12: 0 | CB12: 0 | CC12: 0 | CD12: 0 | CE12: 0 | CF12: 0 | CG12: 126 | CH12: 0 | CI12: 0 | CJ12: 0 | CK12: 0 | CL12: 0 | CM12: 0 | CN12: 0 | CO12: 0 | CP12: 0 | CQ12: 0 | CR12: 0 | CS12: 0
A13: 7 | B13: Dilworth, Rebecca | C13: F | D13: Macclesfield H | E13: 16.8 | F13: 33 | G13: 00:03:11 | H13: 54 | I13: 2.71 | J13: =IF(I13="NJ",0,IF(I13<'Scoring Tables'!$S$4,0,VLOOKUP(I13,T_Long,11,TRUE))) -> 28 | K13: 6.65 | L13: =IF(K13="NT",0,IF(K13<'Scoring Tables'!$X$14,0,VLOOKUP(K13,T_Javlin,6,TRUE))) -> 16 | M13: =IFERROR((LARGE((F13,H13),1)+J13+L13),0) -> 98 | N13: 17G | O13: =IF(M13<15,0,HLOOKUP(M13,T_U11B_3_Events,3)) -> 3* | P13: 376 | R13: 0 | S13: 0 | T13: =RANK(M13,OFFSET($AH$6,0,AC13,64,1)) -> 3 | U13: 4 | V13: 0 | W13: 1 | X13: 0 | Y13: 0 | Z13: 0 | AA13: 0 | AB13: =IF(C13="F",D13,"") -> Macclesfield H | AC13: 9 | AD13: G | AG13: 0 | AH13: 98 | AI13: 0 | AJ13: 0 | AK13: 0 | AL13: 0 | AM13: 0 | AN13: 0 | AO13: 0 | AP13: 0 | AQ13: 98 | AR13: 0 | AS13: 0 | AT13: 0 | AU13: 0 | AV13: 0 | AW13: 0 | AX13: 0 | AY13: 0 | AZ13: 0 | BA13: 0 | BB13: 0 | BC13: 0 | BD13: 0 | BE13: 0 | BF13: 0 | BG13: 0 | BH13: 0 | BI13: 0 | BJ13: 0 | BK13: 0 | BL13: 0 | BM13: 0 | BN13: 0 | BO13: 0 | BP13: 0 | BQ13: 0 | BR13: 0 | BS13: 0 | BT13: 0 | BU13: 0 | BV13: 0 | BW13: 0 | BX13: 0 | BY13: 0 | BZ13: 0 | CA13: 0 | CB13: 0 | CC13: 0 | CD13: 0 | CE13: 0 | CF13: 0 | CG13: 98 | CH13: 0 | CI13: 0 | CJ13: 0 | CK13: 0 | CL13: 0 | CM13: 0 | CN13: 0 | CO13: 0 | CP13: 0 | CQ13: 0 | CR13: 0 | CS13: 0
A14: 8 | B14: Dutton, Lily | C14: F | D14: Macclesfield H | E14: 16.5 | F14: 36 | H14: 0 | I14: 2.82 | J14: =IF(I14="NJ",0,IF(I14<'Scoring Tables'!$S$4,0,VLOOKUP(I14,T_Long,11,TRUE))) -> 32 | K14: 9.82 | L14: =IF(K14="NT",0,IF(K14<'Scoring Tables'!$X$14,0,VLOOKUP(K14,T_Javlin,6,TRUE))) -> 24 | M14: =IFERROR((LARGE((F14,H14),1)+J14+L14),0) -> 92 | N14: 18G | O14: =IF(M14<15,0,HLOOKUP(M14,T_U11B_3_Events,3)) -> 3* | P14: 0 | R14: 0 | S14: 0 | T14: =RANK(M14,OFFSET($BC$6,0,AC14,64,1)) ->  | U14: 5 | V14: 0 | X14: 0 | Y14: 0 | Z14: 0 | AA14: 0 | AB14: =IF(C14="M",D14,"") ->  | AC14: 9 | AD14: G | AG14: 0 | AH14: 92 | AI14: 0 | AJ14: 0 | AK14: 0 | AL14: 0 | AM14: 0 | AN14: 0 | AO14: 0 | AP14: 0 | AQ14: 92 | AR14: 0 | AS14: 0 | AT14: 0 | AU14: 0 | AV14: 0 | AW14: 0 | AX14: 0 | AY14: 0 | AZ14: 0 | BA14: 0 | BB14: 0 | BC14: 0 | BD14: 0 | BE14: 0 | BF14: 0 | BG14: 0 | BH14: 0 | BI14: 0 | BJ14: 0 | BK14: 0 | BL14: 0 | BM14: 0 | BN14: 0 | BO14: 0 | BP14: 0 | BQ14: 0 | BR14: 0 | BS14: 0 | BT14: 0 | BU14: 0 | BV14: 0 | BW14: 0 | BX14: 0 | BY14: 0 | BZ14: 0 | CA14: 0 | CB14: 0 | CC14: 0 | CD14: 0 | CE14: 0 | CF14: 0 | CG14: 92 | CH14: 0 | CI14: 0 | CJ14: 0 | CK14: 0 | CL14: 0 | CM14: 0 | CN14: 0 | CO14: 0 | CP14: 0 | CQ14: 0 | CR14: 0 | CS14: 0
A15: 9 | B15: Mason, Hermione | C15: F | D15: Sale H | E15: 16.1 | F15: 40 | G15: 00:02:55.300 | H15: 62 | I15: 3.24 | J15: =IF(I15="NJ",0,IF(I15<'Scoring Tables'!$S$4,0,VLOOKUP(I15,T_Long,11,TRUE))) -> 46 | K15: 9.43 | L15: =IF(K15="NT",0,IF(K15<'Scoring Tables'!$X$14,0,VLOOKUP(K15,T_Javlin,6,TRUE))) -> 22 | M15: =IFERROR((LARGE((F15,H15),1)+J15+L15),0) -> 130 | N15: 5G | O15: =IF(M15<15,0,HLOOKUP(M15,T_U11B_3_Events,3)) -> 4* | P15: 0 | R15: 0 | S15: 0 | T15: =RANK(M15,OFFSET($AH$6,0,AC15,64,1)) -> 1 | U15: 2 | V15: 0 | X15: 0 | Y15: 0 | Z15: 0 | AA15: 0 | AB15: =IF(C15="F",D15,"") -> Sale H | AC15: 11 | AD15: G | AG15: 0 | AH15: 130 | AI15: 0 | AJ15: 0 | AK15: 0 | AL15: 0 | AM15: 0 | AN15: 0 | AO15: 0 | AP15: 0 | AQ15: 0 | AR15: 0 | AS15: 130 | AT15: 0 | AU15: 0 | AV15: 0 | AW15: 0 | AX15: 0 | AY15: 0 | AZ15: 0 | BA15: 0 | BB15: 0 | BC15: 0 | BD15: 0 | BE15: 0 | BF15: 0 | BG15: 0 | BH15: 0 | BI15: 0 | BJ15: 0 | BK15: 0 | BL15: 0 | BM15: 0 | BN15: 0 | BO15: 0 | BP15: 0 | BQ15: 0 | BR15: 0 | BS15: 0 | BT15: 0 | BU15: 0 | BV15: 0 | BW15: 0 | BX15: 0 | BY15: 0 | BZ15: 0 | CA15: 0 | CB15: 0 | CC15: 0 | CD15: 0 | CE15: 0 | CF15: 0 | CG15: 0 | CH15: 0 | CI15: 130 | CJ15: 0 | CK15: 0 | CL15: 0 | CM15: 0 | CN15: 0 | CO15: 0 | CP15: 0 | CQ15: 0 | CR15: 0 | CS15: 0
A16: 10 | B16: Hopkins, Michaela | C16: F | D16: Southport Waterloo | E16: 18.3 | F16: 18 | G16: 00:03:13.300 | H16: 53 | I16: 2.94 | J16: =IF(I16="NJ",0,IF(I16<'Scoring Tables'!$S$4,0,VLOOKUP(I16,T_Long,11,TRUE))) -> 36 | K16: 5.72 | L16: =IF(K16="NT",0,IF(K16<'Scoring Tables'!$X$14,0,VLOOKUP(K16,T_Javlin,6,TRUE))) -> 14 | M16: =IFERROR((LARGE((F16,H16),1)+J16+L16),0) -> 103 | N16: 14G | O16: =IF(M16<15,0,HLOOKUP(M16,T_U11B_3_Events,3)) -> 3* | P16: 0 | R16: 0 | S16: 0 | T16: =RANK(M16,OFFSET($BC$6,0,AC16,64,1)) ->  | U16: 1 | V16: 0 | X16: 0 | Y16: 0 | Z16: 0 | AA16: 0 | AB16: =IF(C16="M",D16,"") ->  | AC16: 13 | AD16: G | AG16: 0 | AH16: 103 | AI16: 0 | AJ16: 0 | AK16: 0 | AL16: 0 | AM16: 0 | AN16: 0 | AO16: 0 | AP16: 0 | AQ16: 0 | AR16: 0 | AS16: 0 | AT16: 0 | AU16: 103 | AV16: 0 | AW16: 0 | AX16: 0 | AY16: 0 | AZ16: 0 | BA16: 0 | BB16: 0 | BC16: 0 | BD16: 0 | BE16: 0 | BF16: 0 | BG16: 0 | BH16: 0 | BI16: 0 | BJ16: 0 | BK16: 0 | BL16: 0 | BM16: 0 | BN16: 0 | BO16: 0 | BP16: 0 | BQ16: 0 | BR16: 0 | BS16: 0 | BT16: 0 | BU16: 0 | BV16: 0 | BW16: 0 | BX16: 0 | BY16: 0 | BZ16: 0 | CA16: 0 | CB16: 0 | CC16: 0 | CD16: 0 | CE16: 0 | CF16: 0 | CG16: 0 | CH16: 0 | CI16: 0 | CJ16: 0 | CK16: 103 | CL16: 0 | CM16: 0 | CN16: 0 | CO16: 0 | CP16: 0 | CQ16: 0 | CR16: 0 | CS16: 0
A17: 11 | B17: Martin, Libby | C17: F | D17: Stockport H | E17: 18.2 | F17: 19 | G17: 00:03:12.500 | H17: 53 | I17: 2.16 | J17: =IF(I17="NJ",0,IF(I17<'Scoring Tables'!$S$4,0,VLOOKUP(I17,T_Long,11,TRUE))) -> 10 | K17: 8.52 | L17: =IF(K17="NT",0,IF(K17<'Scoring Tables'!$X$14,0,VLOOKUP(K17,T_Javlin,6,TRUE))) -> 20 | M17: =IFERROR((LARGE((F17,H17),1)+J17+L17),0) -> 83 | N17: 19G | O17: =IF(M17<15,0,HLOOKUP(M17,T_U11G_3_Events,3)) -> 3* | P17: 0 | R17: 0 | S17: 0 | T17: =RANK(M17,OFFSET($AH$6,0,AC17,64,1)) -> 1 | U17: 4 | V17: 0 | X17: 0 | Y17: 0 | Z17: 0 | AA17: 0 | AB17: =IF(C17="F",D17,"") -> Stockport H | AC17: 15 | AD17: G | AG17: 0 | AH17: 83 | AI17: =IF($D17=AI$1,$AH17,0) -> 0 | AJ17: 0 | AK17: 0 | AL17: 0 | AM17: 0 | AN17: 0 | AO17: 0 | AP17: 0 | AQ17: 0 | AR17: 0 | AS17: =IF($D17=AS$1,$AH17,0) -> 0 | AT17: 0 | AU17: 0 | AV17: 0 | AW17: 83 | AX17: 0 | AY17: 0 | AZ17: 0 | BA17: 0 | BB17: 0 | BC17: 0 | BD17: =IF($D17=BD$1,$AG17,0) -> 0 | BE17: 0 | BF17: 0 | BG17: 0 | BH17: 0 | BI17: 0 | BJ17: 0 | BK17: 0 | BL17: 0 | BM17: 0 | BN17: =IF($D17=BN$1,$AG17,0) -> 0 | BO17: 0 | BP17: 0 | BQ17: 0 | BR17: 0 | BS17: 0 | BT17: 0 | BU17: 0 | BV17: 0 | BW17: 0 | BX17: 0 | BY17: 0 | BZ17: 0 | CA17: 0 | CB17: 0 | CC17: 0 | CD17: 0 | CE17: 0 | CF17: 0 | CG17: 0 | CH17: 0 | CI17: 0 | CJ17: 0 | CK17: 0 | CL17: 0 | CM17: 83 | CN17: 0 | CO17: 0 | CP17: 0 | CQ17: 0 | CR17: 0 | CS17: 0
A18: 12 | B18: Gibbs, Tilly | C18: F | D18: Vale Royal | E18: 16.4 | F18: 37 | G18: 00:03:19.300 | H18: 50 | I18: 2.15 | J18: =IF(I18="NJ",0,IF(I18<'Scoring Tables'!$S$4,0,VLOOKUP(I18,T_Long,11,TRUE))) -> 9 | K18: 14.7 | L18: =IF(K18="NT",0,IF(K18<'Scoring Tables'!$X$14,0,VLOOKUP(K18,T_Javlin,6,TRUE))) -> 43 | M18: =IFERROR((LARGE((F18,H18),1)+J18+L18),0) -> 102 | N18: 15G | O18: =IF(M18<15,0,HLOOKUP(M18,T_U11G_3_Events,3)) -> 4* | P18: 341 | R18: 0 | S18: 0 | T18: =RANK(M18,OFFSET($AH$6,0,AC18,64,1)) -> 3 | U18: 8 | V18: 0 | W18: 1 | X18: 0 | Y18: 0 | Z18: 0 | AA18: 0 | AB18: =IF(C18="F",D18,"") -> Vale Royal | AC18: 17 | AD18: G | AG18: 0 | AH18: 102 | AI18: 0 | AJ18: 0 | AK18: 0 | AL18: 0 | AM18: 0 | AN18: 0 | AO18: 0 | AP18: 0 | AQ18: 0 | AR18: 0 | AS18: 0 | AT18: 0 | AU18: 0 | AV18: 0 | AW18: 0 | AX18: 0 | AY18: 102 | AZ18: 0 | BA18: 0 | BB18: 0 | BC18: 0 | BD18: 0 | BE18: 0 | BF18: 0 | BG18: 0 | BH18: 0 | BI18: 0 | BJ18: 0 | BK18: 0 | BL18: 0 | BM18: 0 | BN18: 0 | BO18: 0 | BP18: 0 | BQ18: 0 | BR18: 0 | BS18: 0 | BT18: 0 | BU18: 0 | BV18: 0 | BW18: 0 | BX18: 0 | BY18: 0 | BZ18: 0 | CA18: 0 | CB18: 0 | CC18: 0 | CD18: 0 | CE18: 0 | CF18: 0 | CG18: 0 | CH18: 0 | CI18: 0 | CJ18: 0 | CK18: 0 | CL18: 0 | CM18: 0 | CN18: 0 | CO18: 102 | CP18: 0 | CQ18: 0 | CR18: 0 | CS18: 0
A19: 13 | B19: Sproston, Hannah | C19: F | D19: Vale Royal | E19: 15.7 | F19: 44 | G19: 00:03:07.400 | H19: 56 | I19: 3.38 | J19: =IF(I19="NJ",0,IF(I19<'Scoring Tables'!$S$4,0,VLOOKUP(I19,T_Long,11,TRUE))) -> 50 | K19: 9.65 | L19: =IF(K19="NT",0,IF(K19<'Scoring Tables'!$X$14,0,VLOOKUP(K19,T_Javlin,6,TRUE))) -> 23 | M19: =IFERROR((LARGE((F19,H19),1)+J19+L19),0) -> 129 | N19: 6G | O19: =IF(M19<15,0,HLOOKUP(M19,T_U11B_3_Events,3)) -> 4* | P19: 341 | R19: 364 | S19: 7 | T19: =RANK(M19,OFFSET($AH$6,0,AC19,64,1)) -> 1 | U19: 4 | V19: 0 | W19: 1 | X19: 0 | Y19: 0 | Z19: 36412919 | AA19: 19 | AB19: =IF(C19="F",D19,"") -> Vale Royal | AC19: 17 | AD19: G | AG19: 0 | AH19: 129 | AI19: 0 | AJ19: 0 | AK19: 0 | AL19: 0 | AM19: 0 | AN19: 0 | AO19: 0 | AP19: 0 | AQ19: 0 | AR19: 0 | AS19: 0 | AT19: 0 | AU19: 0 | AV19: 0 | AW19: 0 | AX19: 0 | AY19: 129 | AZ19: 0 | BA19: 0 | BB19: 0 | BC19: 0 | BD19: 0 | BE19: 0 | BF19: 0 | BG19: 0 | BH19: 0 | BI19: 0 | BJ19: 0 | BK19: 0 | BL19: 0 | BM19: 0 | BN19: 0 | BO19: 0 | BP19: 0 | BQ19: 0 | BR19: 0 | BS19: 0 | BT19: 0 | BU19: 0 | BV19: 0 | BW19: 0 | BX19: 0 | BY19: 0 | BZ19: 0 | CA19: 0 | CB19: 0 | CC19: 0 | CD19: 0 | CE19: 0 | CF19: 0 | CG19: 0 | CH19: 0 | CI19: 0 | CJ19: 0 | CK19: 0 | CL19: 0 | CM19: 0 | CN19: 0 | CO19: 129 | CP19: 0 | CQ19: 0 | CR19: 0 | CS19: 0
A20: 14 | B20: Stapleton, Scarlett | C20: F | D20: Vale Royal | E20: 16.2 | F20: 39 | G20: 00:03:15.900 | H20: 52 | I20: 3.08 | J20: =IF(I20="NJ",0,IF(I20<'Scoring Tables'!$S$4,0,VLOOKUP(I20,T_Long,11,TRUE))) -> 40 | K20: 7.6 | L20: =IF(K20="NT",0,IF(K20<'Scoring Tables'!$X$14,0,VLOOKUP(K20,T_Javlin,6,TRUE))) -> 18 | M20: =IFERROR((LARGE((F20,H20),1)+J20+L20),0) -> 110 | N20: 12G | O20: =IF(M20<15,0,HLOOKUP(M20,T_U11G_3_Events,3)) -> 4* | P20: 0 | R20: 364 | S20: 7 | T20: =RANK(M20,OFFSET($BC$6,0,AC20,64,1)) ->  | U20: 6 | V20: 0 | X20: 0 | Y20: 0 | Z20: 36411020 | AA20: 21 | AB20: =IF(C20="M",D20,"") ->  | AC20: 17 | AD20: G | AG20: 0 | AH20: 110 | AI20: 0 | AJ20: 0 | AK20: 0 | AL20: 0 | AM20: 0 | AN20: 0 | AO20: 0 | AP20: 0 | AQ20: 0 | AR20: 0 | AS20: 0 | AT20: 0 | AU20: 0 | AV20: 0 | AW20: 0 | AX20: 0 | AY20: 110 | AZ20: 0 | BA20: 0 | BB20: 0 | BC20: 0 | BD20: 0 | BE20: 0 | BF20: 0 | BG20: 0 | BH20: 0 | BI20: 0 | BJ20: 0 | BK20: 0 | BL20: 0 | BM20: 0 | BN20: 0 | BO20: 0 | BP20: 0 | BQ20: 0 | BR20: 0 | BS20: 0 | BT20: 0 | BU20: 0 | BV20: 0 | BW20: 0 | BX20: 0 | BY20: 0 | BZ20: 0 | CA20: 0 | CB20: 0 | CC20: 0 | CD20: 0 | CE20: 0 | CF20: 0 | CG20: 0 | CH20: 0 | CI20: 0 | CJ20: 0 | CK20: 0 | CL20: 0 | CM20: 0 | CN20: 0 | CO20: 110 | CP20: 0 | CQ20: 0 | CR20: 0 | CS20: 0
A21: 15 | B21: Battersby, Lara | C21: F | D21: West Cheshire | F21: 0 | H21: 0 | J21: =IF(I21="NJ",0,IF(I21<'Scoring Tables'!$S$4,0,VLOOKUP(I21,T_Long,11,TRUE))) -> 0 | L21: =IF(K21="NT",0,IF(K21<'Scoring Tables'!$X$14,0,VLOOKUP(K21,T_Javlin,6,TRUE))) -> 0 | M21: =IFERROR((LARGE((F21,H21),1)+J21+L21),0) -> 0 | N21: 0 | O21: =IF(M21<15,0,HLOOKUP(M21,T_U11B_3_Events,3)) -> 0 | P21: 0 | R21: 0 | S21: 0 | T21: =RANK(M21,OFFSET($BC$6,0,AC21,64,1)) -> 5 | U21: 10 | V21: 0 | X21: 0 | Y21: 0 | Z21: 0 | AA21: 0 | AB21: =IF(C21="M",D21,"") ->  | AC21: 19 | AD21: G | AG21: 0 | AH21: 0 | AI21: 0 | AJ21: 0 | AK21: 0 | AL21: 0 | AM21: 0 | AN21: 0 | AO21: 0 | AP21: 0 | AQ21: 0 | AR21: 0 | AS21: 0 | AT21: 0 | AU21: 0 | AV21: 0 | AW21: 0 | AX21: 0 | AY21: 0 | AZ21: 0 | BA21: 0 | BB21: 0 | BC21: 0 | BD21: 0 | BE21: 0 | BF21: 0 | BG21: 0 | BH21: 0 | BI21: 0 | BJ21: 0 | BK21: 0 | BL21: 0 | BM21: 0 | BN21: 0 | BO21: 0 | BP21: 0 | BQ21: 0 | BR21: 0 | BS21: 0 | BT21: 0 | BU21: 0 | BV21: 0 | BW21: 0 | BX21: 0 | BY21: 0 | BZ21: 0 | CA21: 0 | CB21: 0 | CC21: 0 | CD21: 0 | CE21: 0 | CF21: 0 | CG21: 0 | CH21: 0 | CI21: 0 | CJ21: 0 | CK21: 0 | CL21: 0 | CM21: 0 | CN21: 0 | CO21: 0 | CP21: 0 | CQ21: 0 | CR21: 0 | CS21: 0
A22: 16 | B22: Bemand, Jodi | C22: F | D22: West Cheshire | E22: 16.2 | F22: 39 | G22: 00:03:32.900 | H22: 43 | I22: 2.89 | J22: =IF(I22="NJ",0,IF(I22<'Scoring Tables'!$S$4,0,VLOOKUP(I22,T_Long,11,TRUE))) -> 34 | K22: 9.89 | L22: =IF(K22="NT",0,IF(K22<'Scoring Tables'!$X$14,0,VLOOKUP(K22,T_Javlin,6,TRUE))) -> 24 | M22: =IFERROR((LARGE((F22,H22),1)+J22+L22),0) -> 101 | N22: 16G | O22: 3* | P22: 0 | R22: 337 | S22: 8 | T22: =RANK(M22,OFFSET($BC$6,0,AC22,64,1)) ->  | U22: 9 | V22: 0 | X22: 0 | Y22: 0 | Z22: 33710122 | AA22: 24 | AB22: =IF(C22="M",D22,"") ->  | AC22: 19 | AD22: G | AG22: 0 | AH22: 101 | AI22: 0 | AJ22: 0 | AK22: 0 | AL22: 0 | AM22: 0 | AN22: 0 | AO22: 0 | AP22: 0 | AQ22: 0 | AR22: 0 | AS22: 0 | AT22: 0 | AU22: 0 | AV22: 0 | AW22: 0 | AX22: 0 | AY22: 0 | AZ22: 0 | BA22: 101 | BB22: 0 | BC22: 0 | BD22: 0 | BE22: 0 | BF22: 0 | BG22: 0 | BH22: 0 | BI22: 0 | BJ22: 0 | BK22: 0 | BL22: 0 | BM22: 0 | BN22: 0 | BO22: 0 | BP22: 0 | BQ22: 0 | BR22: 0 | BS22: 0 | BT22: 0 | BU22: 0 | BV22: 0 | BW22: 0 | BX22: 0 | BY22: 0 | BZ22: 0 | CA22: 0 | CB22: 0 | CC22: 0 | CD22: 0 | CE22: 0 | CF22: 0 | CG22: 0 | CH22: 0 | CI22: 0 | CJ22: 0 | CK22: 0 | CL22: 0 | CM22: 0 | CN22: 0 | CO22: 0 | CP22: 0 | CQ22: 101 | CR22: 0 | CS22: 0
A23: 17 | B23: Bojang, Fatoumatta | C23: F | D23: West Cheshire | E23: 15.2 | F23: 49 | G23: 00:02:54.800 | H23: 62 | I23: 3.41 | J23: =IF(I23="NJ",0,IF(I23<'Scoring Tables'!$S$4,0,VLOOKUP(I23,T_Long,11,TRUE))) -> 51 | K23: 10.43 | L23: =IF(K23="NT",0,IF(K23<'Scoring Tables'!$X$14,0,VLOOKUP(K23,T_Javlin,6,TRUE))) -> 26 | M23: =IFERROR((LARGE((F23,H23),1)+J23+L23),0) -> 139 | N23: 3G | O23: 4* | P23: 400 | R23: 400 | S23: 5 | T23: =RANK(M23,OFFSET($AH$6,0,AC23,64,1)) -> 1 | U23: 4 | V23: 0 | W23: 1 | X23: 0 | Y23: 0 | Z23: 40013923 | AA23: 13 | AB23: =IF(C23="F",D23,"") -> West Cheshire | AC23: 19 | AD23: G | AG23: 0 | AH23: 139 | AI23: 0 | AJ23: 0 | AK23: 0 | AL23: 0 | AM23: 0 | AN23: 0 | AO23: 0 | AP23: 0 | AQ23: 0 | AR23: 0 | AS23: 0 | AT23: 0 | AU23: 0 | AV23: 0 | AW23: 0 | AX23: 0 | AY23: 0 | AZ23: 0 | BA23: 139 | BB23: 0 | BC23: 0 | BD23: 0 | BE23: 0 | BF23: 0 | BG23: 0 | BH23: 0 | BI23: 0 | BJ23: 0 | BK23: 0 | BL23: 0 | BM23: 0 | BN23: 0 | BO23: 0 | BP23: 0 | BQ23: 0 | BR23: 0 | BS23: 0 | BT23: 0 | BU23: 0 | BV23: 0 | BW23: 0 | BX23: 0 | BY23: 0 | BZ23: 0 | CA23: 0 | CB23: 0 | CC23: 0 | CD23: 0 | CE23: 0 | CF23: 0 | CG23: 0 | CH23: 0 | CI23: 0 | CJ23: 0 | CK23: 0 | CL23: 0 | CM23: 0 | CN23: 0 | CO23: 0 | CP23: 0 | CQ23: 139 | CR23: 0 | CS23: 0
A24: 18 | B24: Jones, Stephanie | C24: F | D24: West Cheshire | E24: 15.1 | F24: 51 | G24: 00:02:58.700 | H24: 60 | I24: 3.4 | J24: =IF(I24="NJ",0,IF(I24<'Scoring Tables'!$S$4,0,VLOOKUP(I24,T_Long,11,TRUE))) -> 51 | K24: 7.2 | L24: =IF(K24="NT",0,IF(K24<'Scoring Tables'!$X$14,0,VLOOKUP(K24,T_Javlin,6,TRUE))) -> 17 | M24: =IFERROR((LARGE((F24,H24),1)+J24+L24),0) -> 128 | N24: 7G | O24: 4* | P24: 400 | R24: 400 | S24: 5 | T24: =RANK(M24,OFFSET($AH$6,0,AC24,64,1)) -> 3 | U24: 6 | V24: 0 | W24: 1 | X24: 0 | Y24: 0 | Z24: 40012824 | AA24: 15 | AB24: =IF(C24="F",D24,"") -> West Cheshire | AC24: 19 | AD24: G | AG24: 0 | AH24: 128 | AI24: 0 | AJ24: 0 | AK24: 0 | AL24: 0 | AM24: 0 | AN24: 0 | AO24: 0 | AP24: 0 | AQ24: 0 | AR24: 0 | AS24: 0 | AT24: 0 | AU24: 0 | AV24: 0 | AW24: 0 | AX24: 0 | AY24: 0 | AZ24: 0 | BA24: 128 | BB24: 0 | BC24: 0 | BD24: 0 | BE24: 0 | BF24: 0 | BG24: 0 | BH24: 0 | BI24: 0 | BJ24: 0 | BK24: 0 | BL24: 0 | BM24: 0 | BN24: 0 | BO24: 0 | BP24: 0 | BQ24: 0 | BR24: 0 | BS24: 0 | BT24: 0 | BU24: 0 | BV24: 0 | BW24: 0 | BX24: 0 | BY24: 0 | BZ24: 0 | CA24: 0 | CB24: 0 | CC24: 0 | CD24: 0 | CE24: 0 | CF24: 0 | CG24: 0 | CH24: 0 | CI24: 0 | CJ24: 0 | CK24: 0 | CL24: 0 | CM24: 0 | CN24: 0 | CO24: 0 | CP24: 0 | CQ24: 128 | CR24: 0 | CS24: 0
A25: 19 | B25: Pawlett, Emily | C25: F | D25: West Cheshire | F25: 0 | H25: 0 | J25: =IF(I25="NJ",0,IF(I25<'Scoring Tables'!$S$4,0,VLOOKUP(I25,T_Long,11,TRUE))) -> 0 | L25: =IF(K25="NT",0,IF(K25<'Scoring Tables'!$X$14,0,VLOOKUP(K25,T_Javlin,6,TRUE))) -> 0 | M25: =IFERROR((LARGE((F25,H25),1)+J25+L25),0) -> 0 | N25: 0 | O25: 0 | P25: 0 | R25: 0 | S25: 0 | T25: =RANK(M25,OFFSET($AH$6,0,AC25,64,1)) -> 6 | U25: 10 | V25: 0 | X25: 0 | Y25: 0 | Z25: 0 | AA25: 0 | AB25: =IF(C25="F",D25,"") -> West Cheshire | AC25: 19 | AD25: G | AG25: 0 | AH25: 0 | AI25: 0 | AJ25: 0 | AK25: 0 | AL25: 0 | AM25: 0 | AN25: 0 | AO25: 0 | AP25: 0 | AQ25: 0 | AR25: 0 | AS25: 0 | AT25: 0 | AU25: 0 | AV25: 0 | AW25: 0 | AX25: 0 | AY25: 0 | AZ25: 0 | BA25: 0 | BB25: 0 | BC25: 0 | BD25: 0 | BE25: 0 | BF25: 0 | BG25: 0 | BH25: 0 | BI25: 0 | BJ25: 0 | BK25: 0 | BL25: 0 | BM25: 0 | BN25: 0 | BO25: 0 | BP25: 0 | BQ25: 0 | BR25: 0 | BS25: 0 | BT25: 0 | BU25: 0 | BV25: 0 | BW25: 0 | BX25: 0 | BY25: 0 | BZ25: 0 | CA25: 0 | CB25: 0 | CC25: 0 | CD25: 0 | CE25: 0 | CF25: 0 | CG25: 0 | CH25: 0 | CI25: 0 | CJ25: 0 | CK25: 0 | CL25: 0 | CM25: 0 | CN25: 0 | CO25: 0 | CP25: 0 | CQ25: 0 | CR25: 0 | CS25: 0
A26: 20 | B26: Pughe, Imogen | C26: F | D26: West Cheshire | E26: 15.9 | F26: 42 | G26: 00:03:02.400 | H26: 58 | I26: 3.01 | J26: =IF(I26="NJ",0,IF(I26<'Scoring Tables'!$S$4,0,VLOOKUP(I26,T_Long,11,TRUE))) -> 38 | K26: 13.11 | L26: =IF(K26="NT",0,IF(K26<'Scoring Tables'!$X$14,0,VLOOKUP(K26,T_Javlin,6,TRUE))) -> 37 | M26: =IFERROR((LARGE((F26,H26),1)+J26+L26),0) -> 133 | N26: 4G | O26: 4* | P26: 0 | R26: 400 | S26: 5 | T26: =RANK(M26,OFFSET($BC$6,0,AC26,64,1)) ->  | U26: 5 | V26: 0 | X26: 0 | Y26: 0 | Z26: 40013326 | AA26: 14 | AB26: =IF(C26="M",D26,"") ->  | AC26: 19 | AD26: G | AG26: 0 | AH26: 133 | AI26: 0 | AJ26: 0 | AK26: 0 | AL26: 0 | AM26: 0 | AN26: 0 | AO26: 0 | AP26: 0 | AQ26: 0 | AR26: 0 | AS26: 0 | AT26: 0 | AU26: 0 | AV26: 0 | AW26: 0 | AX26: 0 | AY26: 0 | AZ26: 0 | BA26: 133 | BB26: 0 | BC26: 0 | BD26: 0 | BE26: 0 | BF26: 0 | BG26: 0 | BH26: 0 | BI26: 0 | BJ26: 0 | BK26: 0 | BL26: 0 | BM26: 0 | BN26: 0 | BO26: 0 | BP26: 0 | BQ26: 0 | BR26: 0 | BS26: 0 | BT26: 0 | BU26: 0 | BV26: 0 | BW26: 0 | BX26: 0 | BY26: 0 | BZ26: 0 | CA26: 0 | CB26: 0 | CC26: 0 | CD26: 0 | CE26: 0 | CF26: 0 | CG26: 0 | CH26: 0 | CI26: 0 | CJ26: 0 | CK26: 0 | CL26: 0 | CM26: 0 | CN26: 0 | CO26: 0 | CP26: 0 | CQ26: 133 | CR26: 0 | CS26: 0
A27: 21 | B27: Roberts, Carys | C27: F | D27: West Cheshire | F27: 0 | H27: 0 | J27: =IF(I27="NJ",0,IF(I27<'Scoring Tables'!$S$4,0,VLOOKUP(I27,T_Long,11,TRUE))) -> 0 | L27: =IF(K27="NT",0,IF(K27<'Scoring Tables'!$X$14,0,VLOOKUP(K27,T_Javlin,6,TRUE))) -> 0 | M27: =IFERROR((LARGE((F27,H27),1)+J27+L27),0) -> 0 | N27: 0 | O27: 0 | P27: 0 | R27: 0 | S27: 0 | T27: =RANK(M27,OFFSET($AH$6,0,AC27,64,1)) -> 6 | U27: 10 | V27: 0 | X27: 0 | Y27: 0 | Z27: 0 | AA27: 0 | AB27: =IF(C27="F",D27,"") -> West Cheshire | AC27: 19 | AD27: G | AG27: 0 | AH27: 0 | AI27: =IF($D27=AI$1,$AH27,0) -> 0 | AJ27: 0 | AK27: 0 | AL27: 0 | AM27: 0 | AN27: 0 | AO27: 0 | AP27: 0 | AQ27: 0 | AR27: 0 | AS27: =IF($D27=AS$1,$AH27,0) -> 0 | AT27: 0 | AU27: 0 | AV27: 0 | AW27: 0 | AX27: 0 | AY27: 0 | AZ27: 0 | BA27: 0 | BB27: 0 | BC27: 0 | BD27: =IF($D27=BD$1,$AG27,0) -> 0 | BE27: 0 | BF27: 0 | BG27: 0 | BH27: 0 | BI27: 0 | BJ27: 0 | BK27: 0 | BL27: 0 | BM27: 0 | BN27: =IF($D27=BN$1,$AG27,0) -> 0 | BO27: 0 | BP27: 0 | BQ27: 0 | BR27: 0 | BS27: 0 | BT27: 0 | BU27: 0 | BV27: 0 | BW27: 0 | BX27: 0 | BY27: 0 | BZ27: 0 | CA27: 0 | CB27: 0 | CC27: 0 | CD27: 0 | CE27: 0 | CF27: 0 | CG27: 0 | CH27: 0 | CI27: 0 | CJ27: 0 | CK27: 0 | CL27: 0 | CM27: 0 | CN27: 0 | CO27: 0 | CP27: 0 | CQ27: 0 | CR27: 0 | CS27: 0
A28: 22 | B28: Shillington, Isla | C28: F | D28: West Cheshire | E28: 17.1 | F28: 30 | G28: 00:03:17.800 | H28: 51 | I28: 3.03 | J28: =IF(I28="NJ",0,IF(I28<'Scoring Tables'!$S$4,0,VLOOKUP(I28,T_Long,11,TRUE))) -> 39 | K28: 11.78 | L28: =IF(K28="NT",0,IF(K28<'Scoring Tables'!$X$14,0,VLOOKUP(K28,T_Javlin,6,TRUE))) -> 32 | M28: =IFERROR((LARGE((F28,H28),1)+J28+L28),0) -> 122 | N28: 9G | O28: =IF(M28<15,0,HLOOKUP(M28,T_U11G_3_Events,3)) -> 4* | P28: 0 | R28: 337 | S28: 8 | T28: =RANK(M28,OFFSET($AH$6,0,AC28,64,1)) -> 4 | U28: 7 | V28: 0 | X28: 0 | Y28: 0 | Z28: 33712228 | AA28: 22 | AB28: =IF(C28="F",D28,"") -> West Cheshire | AC28: 19 | AD28: G | AG28: 0 | AH28: 122 | AI28: 0 | AJ28: 0 | AK28: 0 | AL28: 0 | AM28: 0 | AN28: 0 | AO28: 0 | AP28: 0 | AQ28: 0 | AR28: 0 | AS28: 0 | AT28: 0 | AU28: 0 | AV28: 0 | AW28: 0 | AX28: 0 | AY28: 0 | AZ28: 0 | BA28: 122 | BB28: 0 | BC28: 0 | BD28: 0 | BE28: 0 | BF28: 0 | BG28: 0 | BH28: 0 | BI28: 0 | BJ28: 0 | BK28: 0 | BL28: 0 | BM28: 0 | BN28: 0 | BO28: 0 | BP28: 0 | BQ28: 0 | BR28: 0 | BS28: 0 | BT28: 0 | BU28: 0 | BV28: 0 | BW28: 0 | BX28: 0 | BY28: 0 | BZ28: 0 | CA28: 0 | CB28: 0 | CC28: 0 | CD28: 0 | CE28: 0 | CF28: 0 | CG28: 0 | CH28: 0 | CI28: 0 | CJ28: 0 | CK28: 0 | CL28: 0 | CM28: 0 | CN28: 0 | CO28: 0 | CP28: 0 | CQ28: 122 | CR28: 0 | CS28: 0
A29: 23 | B29: Atkinson, Oliver | C29: M | D29: Crewe & Nantwich | E29: 14.8 | F29: 57 | G29: 00:02:41.800 | H29: 69 | I29: 3.49 | J29: =IF(I29="NJ",0,IF(I29<'Scoring Tables'!$S$4,0,VLOOKUP(I29,T_Long,11,TRUE))) -> 54 | K29: 20.42 | L29: =IF(K29="NT",0,IF(K29<'Scoring Tables'!$X$14,0,VLOOKUP(K29,T_Javlin,6,TRUE))) -> 66 | M29: =IFERROR((LARGE((F29,H29),1)+J29+L29),0) -> 189 | N29: 1B | O29: =IF(M29<15,0,HLOOKUP(M29,T_U11B_3_Events,3)) -> 5* | P29: 0 | R29: 479 | S29: 1 | T29: =RANK(M29,OFFSET($AH$6,0,AC29,64,1)) ->  | U29: 1 | V29: 0 | X29: 0 | Y29: 0 | Z29: 47918929 | AA29: 1 | AB29: =IF(C29="F",D29,"") ->  | AC29: 3 | AD29: B | AG29: 189 | AH29: 0 | AI29: 0 | AJ29: 0 | AK29: 0 | AL29: 0 | AM29: 0 | AN29: 0 | AO29: 0 | AP29: 0 | AQ29: 0 | AR29: 0 | AS29: 0 | AT29: 0 | AU29: 0 | AV29: 0 | AW29: 0 | AX29: 0 | AY29: 0 | AZ29: 0 | BA29: 0 | BB29: 0 | BC29: 0 | BD29: 0 | BE29: 0 | BF29: 189 | BG29: 0 | BH29: 0 | BI29: 0 | BJ29: 0 | BK29: 0 | BL29: 0 | BM29: 0 | BN29: 0 | BO29: 0 | BP29: 0 | BQ29: 0 | BR29: 0 | BS29: 0 | BT29: 0 | BU29: 0 | BV29: 0 | BW29: 0 | BX29: 0 | BY29: 0 | BZ29: 0 | CA29: 189 | CB29: 0 | CC29: 0 | CD29: 0 | CE29: 0 | CF29: 0 | CG29: 0 | CH29: 0 | CI29: 0 | CJ29: 0 | CK29: 0 | CL29: 0 | CM29: 0 | CN29: 0 | CO29: 0 | CP29: 0 | CQ29: 0 | CR29: 0 | CS29: 0
A30: 24 | B30: Jenkins, Hadyn | C30: M | D30: Crewe & Nantwich | E30: 15.7 | F30: 44 | G30: 00:03:00.500 | H30: 59 | I30: 2.67 | J30: =IF(I30="NJ",0,IF(I30<'Scoring Tables'!$S$4,0,VLOOKUP(I30,T_Long,11,TRUE))) -> 27 | K30: 10.68 | L30: =IF(K30="NT",0,IF(K30<'Scoring Tables'!$X$14,0,VLOOKUP(K30,T_Javlin,6,TRUE))) -> 27 | M30: =IFERROR((LARGE((F30,H30),1)+J30+L30),0) -> 113 | N30: 14B | O30: =IF(M30<15,0,HLOOKUP(M30,T_U11G_3_Events,3)) -> 4* | P30: 436 | R30: 0 | S30: 0 | T30: =RANK(M30,OFFSET($BC$6,0,AC30,64,1)) -> 3 | U30: 4 | V30: 0 | X30: 436113 | Y30: 3 | Z30: 0 | AA30: 0 | AB30: =IF(C30="M",D30,"") -> Crewe & Nantwich | AC30: 3 | AD30: B | AG30: 113 | AH30: 0 | AI30: 0 | AJ30: 0 | AK30: 0 | AL30: 0 | AM30: 0 | AN30: 0 | AO30: 0 | AP30: 0 | AQ30: 0 | AR30: 0 | AS30: 0 | AT30: 0 | AU30: 0 | AV30: 0 | AW30: 0 | AX30: 0 | AY30: 0 | AZ30: 0 | BA30: 0 | BB30: 0 | BC30: 0 | BD30: 0 | BE30: 0 | BF30: 113 | BG30: 0 | BH30: 0 | BI30: 0 | BJ30: 0 | BK30: 0 | BL30: 0 | BM30: 0 | BN30: 0 | BO30: 0 | BP30: 0 | BQ30: 0 | BR30: 0 | BS30: 0 | BT30: 0 | BU30: 0 | BV30: 0 | BW30: 0 | BX30: 0 | BY30: 0 | BZ30: 0 | CA30: 113 | CB30: 0 | CC30: 0 | CD30: 0 | CE30: 0 | CF30: 0 | CG30: 0 | CH30: 0 | CI30: 0 | CJ30: 0 | CK30: 0 | CL30: 0 | CM30: 0 | CN30: 0 | CO30: 0 | CP30: 0 | CQ30: 0 | CR30: 0 | CS30: 0
A31: 25 | B31: Stokes, Thomas | C31: M | D31: Crewe & Nantwich | E31: 15.7 | F31: 44 | G31: 00:02:59.600 | H31: 60 | I31: 2.94 | J31: =IF(I31="NJ",0,IF(I31<'Scoring Tables'!$S$4,0,VLOOKUP(I31,T_Long,11,TRUE))) -> 36 | K31: 13.35 | L31: =IF(K31="NT",0,IF(K31<'Scoring Tables'!$X$14,0,VLOOKUP(K31,T_Javlin,6,TRUE))) -> 38 | M31: =IFERROR((LARGE((F31,H31),1)+J31+L31),0) -> 134 | N31: 11B | O31: =IF(M31<15,0,HLOOKUP(M31,T_U11G_3_Events,3)) -> 4* | P31: 0 | R31: 479 | S31: 1 | T31: =RANK(M31,OFFSET($AH$6,0,AC31,64,1)) ->  | U31: 3 | V31: 0 | X31: 0 | Y31: 0 | Z31: 47913431 | AA31: 3 | AB31: =IF(C31="F",D31,"") ->  | AC31: 3 | AD31: B | AG31: 134 | AH31: 0 | AI31: 0 | AJ31: 0 | AK31: 0 | AL31: 0 | AM31: 0 | AN31: 0 | AO31: 0 | AP31: 0 | AQ31: 0 | AR31: 0 | AS31: 0 | AT31: 0 | AU31: 0 | AV31: 0 | AW31: 0 | AX31: 0 | AY31: 0 | AZ31: 0 | BA31: 0 | BB31: 0 | BC31: 0 | BD31: 0 | BE31: 0 | BF31: 134 | BG31: 0 | BH31: 0 | BI31: 0 | BJ31: 0 | BK31: 0 | BL31: 0 | BM31: 0 | BN31: 0 | BO31: 0 | BP31: 0 | BQ31: 0 | BR31: 0 | BS31: 0 | BT31: 0 | BU31: 0 | BV31: 0 | BW31: 0 | BX31: 0 | BY31: 0 | BZ31: 0 | CA31: 134 | CB31: 0 | CC31: 0 | CD31: 0 | CE31: 0 | CF31: 0 | CG31: 0 | CH31: 0 | CI31: 0 | CJ31: 0 | CK31: 0 | CL31: 0 | CM31: 0 | CN31: 0 | CO31: 0 | CP31: 0 | CQ31: 0 | CR31: 0 | CS31: 0
A32: 26 | B32: Branthwaite, Owen | C32: M | D32: Handforth WAAC | E32: 16.5 | F32: 36 | H32: 0 | I32: 2.82 | J32: =IF(I32="NJ",0,IF(I32<'Scoring Tables'!$S$4,0,VLOOKUP(I32,T_Long,11,TRUE))) -> 32 | K32: 12.66 | L32: =IF(K32="NT",0,IF(K32<'Scoring Tables'!$X$14,0,VLOOKUP(K32,T_Javlin,6,TRUE))) -> 35 | M32: =IFERROR((LARGE((F32,H32),1)+J32+L32),0) -> 103 | N32: 16B | O32: =IF(M32<15,0,HLOOKUP(M32,T_U11B_3_Events,3)) -> 3* | P32: 0 | R32: 326 | S32: 9 | T32: =RANK(M32,OFFSET($AH$6,0,AC32,64,1)) ->  | U32: 2 | V32: 0 | X32: 0 | Y32: 0 | Z32: 32610332 | AA32: 27 | AB32: =IF(C32="F",D32,"") ->  | AC32: 7 | AD32: B | AG32: 103 | AH32: 0 | AI32: 0 | AJ32: 0 | AK32: 0 | AL32: 0 | AM32: 0 | AN32: 0 | AO32: 0 | AP32: 0 | AQ32: 0 | AR32: 0 | AS32: 0 | AT32: 0 | AU32: 0 | AV32: 0 | AW32: 0 | AX32: 0 | AY32: 0 | AZ32: 0 | BA32: 0 | BB32: 0 | BC32: 0 | BD32: 0 | BE32: 0 | BF32: 0 | BG32: 0 | BH32: 0 | BI32: 0 | BJ32: 103 | BK32: 0 | BL32: 0 | BM32: 0 | BN32: 0 | BO32: 0 | BP32: 0 | BQ32: 0 | BR32: 0 | BS32: 0 | BT32: 0 | BU32: 0 | BV32: 0 | BW32: 0 | BX32: 0 | BY32: 0 | BZ32: 0 | CA32: 0 | CB32: 0 | CC32: 0 | CD32: 0 | CE32: 103 | CF32: 0 | CG32: 0 | CH32: 0 | CI32: 0 | CJ32: 0 | CK32: 0 | CL32: 0 | CM32: 0 | CN32: 0 | CO32: 0 | CP32: 0 | CQ32: 0 | CR32: 0 | CS32: 0
A33: 27 | B33: Cann, Marcus | C33: M | D33: Handforth WAAC | E33: 17.1 | F33: 30 | G33: 00:03:01 | H33: 59 | I33: 2.27 | J33: =IF(I33="NJ",0,IF(I33<'Scoring Tables'!$S$4,0,VLOOKUP(I33,T_Long,11,TRUE))) -> 13 | K33: 11.55 | L33: =IF(K33="NT",0,IF(K33<'Scoring Tables'!$X$14,0,VLOOKUP(K33,T_Javlin,6,TRUE))) -> 31 | M33: =IFERROR((LARGE((F33,H33),1)+J33+L33),0) -> 103 | N33: 16B | O33: 3* | P33: 0 | R33: 326 | S33: 9 | T33: =RANK(M33,OFFSET($AH$6,0,AC33,64,1)) ->  | U33: 2 | V33: 0 | X33: 0 | Y33: 0 | Z33: 32610333 | AA33: 26 | AB33: =IF(C33="F",D33,"") ->  | AC33: 7 | AD33: B | AG33: 103 | AH33: 0 | AI33: 0 | AJ33: 0 | AK33: 0 | AL33: 0 | AM33: 0 | AN33: 0 | AO33: 0 | AP33: 0 | AQ33: 0 | AR33: 0 | AS33: 0 | AT33: 0 | AU33: 0 | AV33: 0 | AW33: 0 | AX33: 0 | AY33: 0 | AZ33: 0 | BA33: 0 | BB33: 0 | BC33: 0 | BD33: 0 | BE33: 0 | BF33: 0 | BG33: 0 | BH33: 0 | BI33: 0 | BJ33: 103 | BK33: 0 | BL33: 0 | BM33: 0 | BN33: 0 | BO33: 0 | BP33: 0 | BQ33: 0 | BR33: 0 | BS33: 0 | BT33: 0 | BU33: 0 | BV33: 0 | BW33: 0 | BX33: 0 | BY33: 0 | BZ33: 0 | CA33: 0 | CB33: 0 | CC33: 0 | CD33: 0 | CE33: 103 | CF33: 0 | CG33: 0 | CH33: 0 | CI33: 0 | CJ33: 0 | CK33: 0 | CL33: 0 | CM33: 0 | CN33: 0 | CO33: 0 | CP33: 0 | CQ33: 0 | CR33: 0 | CS33: 0
A34: 28 | B34: Blunn, Hayden | C34: M | D34: Macclesfield H | E34: 15.3 | F34: 48 | G34: 00:02:50.900 | H34: 64 | I34: 3.32 | J34: =IF(I34="NJ",0,IF(I34<'Scoring Tables'!$S$4,0,VLOOKUP(I34,T_Long,11,TRUE))) -> 48 | K34: 12.67 | L34: =IF(K34="NT",0,IF(K34<'Scoring Tables'!$X$14,0,VLOOKUP(K34,T_Javlin,6,TRUE))) -> 35 | M34: =IFERROR((LARGE((F34,H34),1)+J34+L34),0) -> 147 | N34: 5B | O34: 4* | P34: 0 | R34: 425 | S34: 4 | T34: =RANK(M34,OFFSET($BC$6,0,AC34,64,1)) -> 1 | U34: 2 | V34: 0 | X34: 0 | Y34: 0 | Z34: 42514734 | AA34: 11 | AB34: =IF(C34="M",D34,"") -> Macclesfield H | AC34: 9 | AD34: B | AG34: 147 | AH34: 0 | AI34: 0 | AJ34: 0 | AK34: 0 | AL34: 0 | AM34: 0 | AN34: 0 | AO34: 0 | AP34: 0 | AQ34: 0 | AR34: 0 | AS34: 0 | AT34: 0 | AU34: 0 | AV34: 0 | AW34: 0 | AX34: 0 | AY34: 0 | AZ34: 0 | BA34: 0 | BB34: 0 | BC34: 0 | BD34: 0 | BE34: 0 | BF34: 0 | BG34: 0 | BH34: 0 | BI34: 0 | BJ34: 0 | BK34: 0 | BL34: 147 | BM34: 0 | BN34: 0 | BO34: 0 | BP34: 0 | BQ34: 0 | BR34: 0 | BS34: 0 | BT34: 0 | BU34: 0 | BV34: 0 | BW34: 0 | BX34: 0 | BY34: 0 | BZ34: 0 | CA34: 0 | CB34: 0 | CC34: 0 | CD34: 0 | CE34: 0 | CF34: 0 | CG34: 147 | CH34: 0 | CI34: 0 | CJ34: 0 | CK34: 0 | CL34: 0 | CM34: 0 | CN34: 0 | CO34: 0 | CP34: 0 | CQ34: 0 | CR34: 0 | CS34: 0
A35: 29 | B35: Danson, Thomas | C35: M | D35: Macclesfield H | F35: 0 | H35: 0 | J35: =IF(I35="NJ",0,IF(I35<'Scoring Tables'!$S$4,0,VLOOKUP(I35,T_Long,11,TRUE))) -> 0 | L35: =IF(K35="NT",0,IF(K35<'Scoring Tables'!$X$14,0,VLOOKUP(K35,T_Javlin,6,TRUE))) -> 0 | M35: =IFERROR((LARGE((F35,H35),1)+J35+L35),0) -> 0 | N35: 0 | O35: 0 | P35: 0 | R35: 0 | S35: 0 | T35: =RANK(M35,OFFSET($AH$6,0,AC35,64,1)) -> 5 | U35: 6 | V35: 0 | X35: 0 | Y35: 0 | Z35: 0 | AA35: 0 | AB35: =IF(C35="F",D35,"") ->  | AC35: 9 | AD35: B | AG35: 0 | AH35: 0 | AI35: 0 | AJ35: 0 | AK35: 0 | AL35: 0 | AM35: 0 | AN35: 0 | AO35: 0 | AP35: 0 | AQ35: 0 | AR35: 0 | AS35: 0 | AT35: 0 | AU35: 0 | AV35: 0 | AW35: 0 | AX35: 0 | AY35: 0 | AZ35: 0 | BA35: 0 | BB35: 0 | BC35: 0 | BD35: 0 | BE35: 0 | BF35: 0 | BG35: 0 | BH35: 0 | BI35: 0 | BJ35: 0 | BK35: 0 | BL35: 0 | BM35: 0 | BN35: 0 | BO35: 0 | BP35: 0 | BQ35: 0 | BR35: 0 | BS35: 0 | BT35: 0 | BU35: 0 | BV35: 0 | BW35: 0 | BX35: 0 | BY35: 0 | BZ35: 0 | CA35: 0 | CB35: 0 | CC35: 0 | CD35: 0 | CE35: 0 | CF35: 0 | CG35: 0 | CH35: 0 | CI35: 0 | CJ35: 0 | CK35: 0 | CL35: 0 | CM35: 0 | CN35: 0 | CO35: 0 | CP35: 0 | CQ35: 0 | CR35: 0 | CS35: 0
A36: 30 | B36: Boyd, Thomas | C36: M | D36: Sale H | E36: 15.5 | F36: 46 | G36: 00:02:40.700 | H36: 69 | I36: 3.57 | J36: =IF(I36="NJ",0,IF(I36<'Scoring Tables'!$S$4,0,VLOOKUP(I36,T_Long,11,TRUE))) -> 57 | K36: 13.13 | L36: =IF(K36="NT",0,IF(K36<'Scoring Tables'!$X$14,0,VLOOKUP(K36,T_Javlin,6,TRUE))) -> 37 | M36: =IFERROR((LARGE((F36,H36),1)+J36+L36),0) -> 163 | N36: 3B | O36: 5* | P36: 0 | R36: 0 | S36: 0 | T36: =RANK(M36,OFFSET($BC$6,0,AC36,64,1)) -> 1 | U36: 1 | V36: 0 | X36: 0 | Y36: 0 | Z36: 0 | AA36: 0 | AB36: =IF(C36="M",D36,"") -> Sale H | AC36: 11 | AD36: B | AG36: 163 | AH36: 0 | AI36: 0 | AJ36: 0 | AK36: 0 | AL36: 0 | AM36: 0 | AN36: 0 | AO36: 0 | AP36: 0 | AQ36: 0 | AR36: 0 | AS36: 0 | AT36: 0 | AU36: 0 | AV36: 0 | AW36: 0 | AX36: 0 | AY36: 0 | AZ36: 0 | BA36: 0 | BB36: 0 | BC36: 0 | BD36: 0 | BE36: 0 | BF36: 0 | BG36: 0 | BH36: 0 | BI36: 0 | BJ36: 0 | BK36: 0 | BL36: 0 | BM36: 0 | BN36: 163 | BO36: 0 | BP36: 0 | BQ36: 0 | BR36: 0 | BS36: 0 | BT36: 0 | BU36: 0 | BV36: 0 | BW36: 0 | BX36: 0 | BY36: 0 | BZ36: 0 | CA36: 0 | CB36: 0 | CC36: 0 | CD36: 0 | CE36: 0 | CF36: 0 | CG36: 0 | CH36: 0 | CI36: 163 | CJ36: 0 | CK36: 0 | CL36: 0 | CM36: 0 | CN36: 0 | CO36: 0 | CP36: 0 | CQ36: 0 | CR36: 0 | CS36: 0
A37: 31 | B37: Ayre, Sam | C37: M | D37: Stockport H | E37: 15.6 | F37: 45 | H37: 0 | I37: 2.88 | J37: =IF(I37="NJ",0,IF(I37<'Scoring Tables'!$S$4,0,VLOOKUP(I37,T_Long,11,TRUE))) -> 34 | K37: 9.56 | L37: =IF(K37="NT",0,IF(K37<'Scoring Tables'!$X$14,0,VLOOKUP(K37,T_Javlin,6,TRUE))) -> 23 | M37: =IFERROR((LARGE((F37,H37),1)+J37+L37),0) -> 102 | N37: 18B | O37: 3* | P37: 370 | R37: 370 | S37: 6 | T37: =RANK(M37,OFFSET($BC$6,0,AC37,64,1)) -> 2 | U37: 2 | V37: 0 | X37: 370102 | Y37: 6 | Z37: 37010237 | AA37: 17 | AB37: =IF(C37="M",D37,"") -> Stockport H | AC37: 15 | AD37: B | AG37: 102 | AH37: 0 | AI37: =IF($D37=AI$1,$AH37,0) -> 0 | AJ37: 0 | AK37: 0 | AL37: 0 | AM37: 0 | AN37: 0 | AO37: 0 | AP37: 0 | AQ37: 0 | AR37: 0 | AS37: =IF($D37=AS$1,$AH37,0) -> 0 | AT37: 0 | AU37: 0 | AV37: 0 | AW37: 0 | AX37: 0 | AY37: 0 | AZ37: 0 | BA37: 0 | BB37: 0 | BC37: 0 | BD37: =IF($D37=BD$1,$AG37,0) -> 0 | BE37: 0 | BF37: 0 | BG37: 0 | BH37: 0 | BI37: 0 | BJ37: 0 | BK37: 0 | BL37: 0 | BM37: 0 | BN37: =IF($D37=BN$1,$AG37,0) -> 0 | BO37: 0 | BP37: 0 | BQ37: 0 | BR37: 102 | BS37: 0 | BT37: 0 | BU37: 0 | BV37: 0 | BW37: 0 | BX37: 0 | BY37: 0 | BZ37: 0 | CA37: 0 | CB37: 0 | CC37: 0 | CD37: 0 | CE37: 0 | CF37: 0 | CG37: 0 | CH37: 0 | CI37: 0 | CJ37: 0 | CK37: 0 | CL37: 0 | CM37: 102 | CN37: 0 | CO37: 0 | CP37: 0 | CQ37: 0 | CR37: 0 | CS37: 0
A38: 32 | B38: Culmer, Frank | C38: M | D38: Stockport H | F38: 0 | H38: 0 | J38: =IF(I38="NJ",0,IF(I38<'Scoring Tables'!$S$4,0,VLOOKUP(I38,T_Long,11,TRUE))) -> 0 | L38: =IF(K38="NT",0,IF(K38<'Scoring Tables'!$X$14,0,VLOOKUP(K38,T_Javlin,6,TRUE))) -> 0 | M38: =IFERROR((LARGE((F38,H38),1)+J38+L38),0) -> 0 | N38: 0 | O38: =IF(M38<15,0,HLOOKUP(M38,T_U11G_3_Events,3)) -> 0 | P38: 370 | R38: 0 | S38: 0 | T38: =RANK(M38,OFFSET($AH$6,0,AC38,64,1)) -> 2 | U38: 5 | V38: 0 | X38: 370000 | Y38: 7 | Z38: 0 | AA38: 0 | AB38: =IF(C38="F",D38,"") ->  | AC38: 15 | AD38: B | AG38: 0 | AH38: 0 | AI38: 0 | AJ38: 0 | AK38: 0 | AL38: 0 | AM38: 0 | AN38: 0 | AO38: 0 | AP38: 0 | AQ38: 0 | AR38: 0 | AS38: 0 | AT38: 0 | AU38: 0 | AV38: 0 | AW38: 0 | AX38: 0 | AY38: 0 | AZ38: 0 | BA38: 0 | BB38: 0 | BC38: 0 | BD38: 0 | BE38: 0 | BF38: 0 | BG38: 0 | BH38: 0 | BI38: 0 | BJ38: 0 | BK38: 0 | BL38: 0 | BM38: 0 | BN38: 0 | BO38: 0 | BP38: 0 | BQ38: 0 | BR38: 0 | BS38: 0 | BT38: 0 | BU38: 0 | BV38: 0 | BW38: 0 | BX38: 0 | BY38: 0 | BZ38: 0 | CA38: 0 | CB38: 0 | CC38: 0 | CD38: 0 | CE38: 0 | CF38: 0 | CG38: 0 | CH38: 0 | CI38: 0 | CJ38: 0 | CK38: 0 | CL38: 0 | CM38: 0 | CN38: 0 | CO38: 0 | CP38: 0 | CQ38: 0 | CR38: 0 | CS38: 0
A39: 33 | B39: Culmer, Tom | C39: M | D39: Stockport H | E39: 18.2 | F39: 19 | G39: 00:03:31.100 | H39: 44 | I39: 2.55 | J39: =IF(I39="NJ",0,IF(I39<'Scoring Tables'!$S$4,0,VLOOKUP(I39,T_Long,11,TRUE))) -> 23 | K39: 11.93 | L39: =IF(K39="NT",0,IF(K39<'Scoring Tables'!$X$14,0,VLOOKUP(K39,T_Javlin,6,TRUE))) -> 32 | M39: =IFERROR((LARGE((F39,H39),1)+J39+L39),0) -> 99 | N39: 19B | O39: =IF(M39<15,0,HLOOKUP(M39,T_U11B_3_Events,3)) -> 3* | P39: 0 | R39: 370 | S39: 6 | T39: =RANK(M39,OFFSET($AH$6,0,AC39,64,1)) ->  | U39: 3 | V39: 0 | X39: 0 | Y39: 0 | Z39: 37009939 | AA39: 18 | AB39: =IF(C39="F",D39,"") ->  | AC39: 15 | AD39: B | AG39: 99 | AH39: 0 | AI39: 0 | AJ39: 0 | AK39: 0 | AL39: 0 | AM39: 0 | AN39: 0 | AO39: 0 | AP39: 0 | AQ39: 0 | AR39: 0 | AS39: 0 | AT39: 0 | AU39: 0 | AV39: 0 | AW39: 0 | AX39: 0 | AY39: 0 | AZ39: 0 | BA39: 0 | BB39: 0 | BC39: 0 | BD39: 0 | BE39: 0 | BF39: 0 | BG39: 0 | BH39: 0 | BI39: 0 | BJ39: 0 | BK39: 0 | BL39: 0 | BM39: 0 | BN39: 0 | BO39: 0 | BP39: 0 | BQ39: 0 | BR39: 99 | BS39: 0 | BT39: 0 | BU39: 0 | BV39: 0 | BW39: 0 | BX39: 0 | BY39: 0 | BZ39: 0 | CA39: 0 | CB39: 0 | CC39: 0 | CD39: 0 | CE39: 0 | CF39: 0 | CG39: 0 | CH39: 0 | CI39: 0 | CJ39: 0 | CK39: 0 | CL39: 0 | CM39: 99 | CN39: 0 | CO39: 0 | CP39: 0 | CQ39: 0 | CR39: 0 | CS39: 0
A40: 34 | B40: Doodson, Jack | C40: M | D40: Stockport H | E40: 15 | F40: 53 | G40: 00:02:57.600 | H40: 61 | I40: 3.91 | J40: =IF(I40="NJ",0,IF(I40<'Scoring Tables'!$S$4,0,VLOOKUP(I40,T_Long,11,TRUE))) -> 68 | K40: 13.93 | L40: =IF(K40="NT",0,IF(K40<'Scoring Tables'!$X$14,0,VLOOKUP(K40,T_Javlin,6,TRUE))) -> 40 | M40: =IFERROR((LARGE((F40,H40),1)+J40+L40),0) -> 169 | N40: 2B | O40: =IF(M40<15,0,HLOOKUP(M40,T_U11B_3_Events,3)) -> 5* | P40: 0 | R40: 370 | S40: 6 | T40: =RANK(M40,OFFSET($AH$6,0,AC40,64,1)) ->  | U40: 1 | V40: 0 | X40: 0 | Y40: 0 | Z40: 37016940 | AA40: 16 | AB40: =IF(C40="F",D40,"") ->  | AC40: 15 | AD40: B | AG40: 169 | AH40: 0 | AI40: 0 | AJ40: 0 | AK40: 0 | AL40: 0 | AM40: 0 | AN40: 0 | AO40: 0 | AP40: 0 | AQ40: 0 | AR40: 0 | AS40: 0 | AT40: 0 | AU40: 0 | AV40: 0 | AW40: 0 | AX40: 0 | AY40: 0 | AZ40: 0 | BA40: 0 | BB40: 0 | BC40: 0 | BD40: 0 | BE40: 0 | BF40: 0 | BG40: 0 | BH40: 0 | BI40: 0 | BJ40: 0 | BK40: 0 | BL40: 0 | BM40: 0 | BN40: 0 | BO40: 0 | BP40: 0 | BQ40: 0 | BR40: 169 | BS40: 0 | BT40: 0 | BU40: 0 | BV40: 0 | BW40: 0 | BX40: 0 | BY40: 0 | BZ40: 0 | CA40: 0 | CB40: 0 | CC40: 0 | CD40: 0 | CE40: 0 | CF40: 0 | CG40: 0 | CH40: 0 | CI40: 0 | CJ40: 0 | CK40: 0 | CL40: 0 | CM40: 169 | CN40: 0 | CO40: 0 | CP40: 0 | CQ40: 0 | CR40: 0 | CS40: 0
A41: 35 | B41: McCann, Daniel | C41: M | D41: Stockport H | F41: 0 | H41: 0 | J41: =IF(I41="NJ",0,IF(I41<'Scoring Tables'!$S$4,0,VLOOKUP(I41,T_Long,11,TRUE))) -> 0 | L41: =IF(K41="NT",0,IF(K41<'Scoring Tables'!$X$14,0,VLOOKUP(K41,T_Javlin,6,TRUE))) -> 0 | M41: =IFERROR((LARGE((F41,H41),1)+J41+L41),0) -> 0 | N41: 0 | O41: =IF(M41<15,0,HLOOKUP(M41,T_U11G_3_Events,3)) -> 0 | P41: 370 | R41: 0 | S41: 0 | T41: =RANK(M41,OFFSET($AH$6,0,AC41,64,1)) -> 2 | U41: 5 | V41: 0 | X41: 370000 | Y41: 7 | Z41: 0 | AA41: 0 | AB41: =IF(C41="F",D41,"") ->  | AC41: 15 | AD41: B | AG41: 0 | AH41: 0 | AI41: 0 | AJ41: 0 | AK41: 0 | AL41: 0 | AM41: 0 | AN41: 0 | AO41: 0 | AP41: 0 | AQ41: 0 | AR41: 0 | AS41: 0 | AT41: 0 | AU41: 0 | AV41: 0 | AW41: 0 | AX41: 0 | AY41: 0 | AZ41: 0 | BA41: 0 | BB41: 0 | BC41: 0 | BD41: 0 | BE41: 0 | BF41: 0 | BG41: 0 | BH41: 0 | BI41: 0 | BJ41: 0 | BK41: 0 | BL41: 0 | BM41: 0 | BN41: 0 | BO41: 0 | BP41: 0 | BQ41: 0 | BR41: 0 | BS41: 0 | BT41: 0 | BU41: 0 | BV41: 0 | BW41: 0 | BX41: 0 | BY41: 0 | BZ41: 0 | CA41: 0 | CB41: 0 | CC41: 0 | CD41: 0 | CE41: 0 | CF41: 0 | CG41: 0 | CH41: 0 | CI41: 0 | CJ41: 0 | CK41: 0 | CL41: 0 | CM41: 0 | CN41: 0 | CO41: 0 | CP41: 0 | CQ41: 0 | CR41: 0 | CS41: 0
A42: 36 | B42: Carney, Dylan | C42: M | D42: Vale Royal | E42: 16.8 | F42: 33 | G42: 00:02:40 | H42: 70 | I42: 2.79 | J42: =IF(I42="NJ",0,IF(I42<'Scoring Tables'!$S$4,0,VLOOKUP(I42,T_Long,11,TRUE))) -> 31 | K42: 14.6 | L42: =IF(K42="NT",0,IF(K42<'Scoring Tables'!$X$14,0,VLOOKUP(K42,T_Javlin,6,TRUE))) -> 43 | M42: =IFERROR((LARGE((F42,H42),1)+J42+L42),0) -> 144 | N42: 8B | O42: =IF(M42<15,0,HLOOKUP(M42,T_U11B_3_Events,3)) -> 4* | P42: 440 | R42: 440 | S42: 2 | T42: =RANK(M42,OFFSET($BC$6,0,AC42,64,1)) -> 2 | U42: 2 | V42: 0 | X42: 440144 | Y42: 2 | Z42: 44014442 | AA42: 5 | AB42: =IF(C42="M",D42,"") -> Vale Royal | AC42: 17 | AD42: B | AG42: 144 | AH42: 0 | AI42: 0 | AJ42: 0 | AK42: 0 | AL42: 0 | AM42: 0 | AN42: 0 | AO42: 0 | AP42: 0 | AQ42: 0 | AR42: 0 | AS42: 0 | AT42: 0 | AU42: 0 | AV42: 0 | AW42: 0 | AX42: 0 | AY42: 0 | AZ42: 0 | BA42: 0 | BB42: 0 | BC42: 0 | BD42: 0 | BE42: 0 | BF42: 0 | BG42: 0 | BH42: 0 | BI42: 0 | BJ42: 0 | BK42: 0 | BL42: 0 | BM42: 0 | BN42: 0 | BO42: 0 | BP42: 0 | BQ42: 0 | BR42: 0 | BS42: 0 | BT42: 144 | BU42: 0 | BV42: 0 | BW42: 0 | BX42: 0 | BY42: 0 | BZ42: 0 | CA42: 0 | CB42: 0 | CC42: 0 | CD42: 0 | CE42: 0 | CF42: 0 | CG42: 0 | CH42: 0 | CI42: 0 | CJ42: 0 | CK42: 0 | CL42: 0 | CM42: 0 | CN42: 0 | CO42: 144 | CP42: 0 | CQ42: 0 | CR42: 0 | CS42: 0
A43: 37 | B43: Griffith, Patrick | C43: M | D43: Vale Royal | E43: 15.9 | F43: 42 | G43: 00:02:45.600 | H43: 67 | I43: 3.17 | J43: =IF(I43="NJ",0,IF(I43<'Scoring Tables'!$S$4,0,VLOOKUP(I43,T_Long,11,TRUE))) -> 43 | K43: 16.7 | L43: =IF(K43="NT",0,IF(K43<'Scoring Tables'!$X$14,0,VLOOKUP(K43,T_Javlin,6,TRUE))) -> 51 | M43: =IFERROR((LARGE((F43,H43),1)+J43+L43),0) -> 161 | N43: 4B | O43: =IF(M43<15,0,HLOOKUP(M43,T_U11B_3_Events,3)) -> 5* | P43: 440 | R43: 440 | S43: 2 | T43: =RANK(M43,OFFSET($BC$6,0,AC43,64,1)) -> 1 | U43: 1 | V43: 0 | X43: 440161 | Y43: 1 | Z43: 44016143 | AA43: 4 | AB43: =IF(C43="M",D43,"") -> Vale Royal | AC43: 17 | AD43: B | AG43: 161 | AH43: 0 | AI43: 0 | AJ43: 0 | AK43: 0 | AL43: 0 | AM43: 0 | AN43: 0 | AO43: 0 | AP43: 0 | AQ43: 0 | AR43: 0 | AS43: 0 | AT43: 0 | AU43: 0 | AV43: 0 | AW43: 0 | AX43: 0 | AY43: 0 | AZ43: 0 | BA43: 0 | BB43: 0 | BC43: 0 | BD43: 0 | BE43: 0 | BF43: 0 | BG43: 0 | BH43: 0 | BI43: 0 | BJ43: 0 | BK43: 0 | BL43: 0 | BM43: 0 | BN43: 0 | BO43: 0 | BP43: 0 | BQ43: 0 | BR43: 0 | BS43: 0 | BT43: 161 | BU43: 0 | BV43: 0 | BW43: 0 | BX43: 0 | BY43: 0 | BZ43: 0 | CA43: 0 | CB43: 0 | CC43: 0 | CD43: 0 | CE43: 0 | CF43: 0 | CG43: 0 | CH43: 0 | CI43: 0 | CJ43: 0 | CK43: 0 | CL43: 0 | CM43: 0 | CN43: 0 | CO43: 161 | CP43: 0 | CQ43: 0 | CR43: 0 | CS43: 0
A44: 38 | B44: Haffenden, Peter | C44: M | D44: Vale Royal | E44: 15.1 | F44: 51 | H44: 0 | I44: 3.17 | J44: =IF(I44="NJ",0,IF(I44<'Scoring Tables'!$S$4,0,VLOOKUP(I44,T_Long,11,TRUE))) -> 43 | K44: 11.73 | L44: =IF(K44="NT",0,IF(K44<'Scoring Tables'!$X$14,0,VLOOKUP(K44,T_Javlin,6,TRUE))) -> 31 | M44: =IFERROR((LARGE((F44,H44),1)+J44+L44),0) -> 125 | N44: 12B | O44: =IF(M44<15,0,HLOOKUP(M44,T_U11B_3_Events,3)) -> 4* | P44: 0 | R44: 364 | S44: 7 | T44: =RANK(M44,OFFSET($BC$6,0,AC44,64,1)) -> 4 | U44: 5 | V44: 0 | X44: 0 | Y44: 0 | Z44: 36412544 | AA44: 20 | AB44: =IF(C44="M",D44,"") -> Vale Royal | AC44: 17 | AD44: B | AG44: 125 | AH44: 0 | AI44: 0 | AJ44: 0 | AK44: 0 | AL44: 0 | AM44: 0 | AN44: 0 | AO44: 0 | AP44: 0 | AQ44: 0 | AR44: 0 | AS44: 0 | AT44: 0 | AU44: 0 | AV44: 0 | AW44: 0 | AX44: 0 | AY44: 0 | AZ44: 0 | BA44: 0 | BB44: 0 | BC44: 0 | BD44: 0 | BE44: 0 | BF44: 0 | BG44: 0 | BH44: 0 | BI44: 0 | BJ44: 0 | BK44: 0 | BL44: 0 | BM44: 0 | BN44: 0 | BO44: 0 | BP44: 0 | BQ44: 0 | BR44: 0 | BS44: 0 | BT44: 125 | BU44: 0 | BV44: 0 | BW44: 0 | BX44: 0 | BY44: 0 | BZ44: 0 | CA44: 0 | CB44: 0 | CC44: 0 | CD44: 0 | CE44: 0 | CF44: 0 | CG44: 0 | CH44: 0 | CI44: 0 | CJ44: 0 | CK44: 0 | CL44: 0 | CM44: 0 | CN44: 0 | CO44: 125 | CP44: 0 | CQ44: 0 | CR44: 0 | CS44: 0
A45: 39 | B45: Johnson, Harry | C45: M | D45: Vale Royal | E45: 15.5 | F45: 46 | H45: 0 | I45: 2.94 | J45: =IF(I45="NJ",0,IF(I45<'Scoring Tables'!$S$4,0,VLOOKUP(I45,T_Long,11,TRUE))) -> 36 | K45: 10.15 | L45: =IF(K45="NT",0,IF(K45<'Scoring Tables'!$X$14,0,VLOOKUP(K45,T_Javlin,6,TRUE))) -> 25 | M45: =IFERROR((LARGE((F45,H45),1)+J45+L45),0) -> 107 | N45: 15B | P45: 0 | R45: 0 | S45: 0 | T45: =RANK(M45,OFFSET($AH$6,0,AC45,64,1)) ->  | U45: 7 | V45: 0 | X45: 0 | Y45: 0 | Z45: 0 | AA45: 0 | AC45: 17 | AD45: B | AG45: 107 | AH45: 0 | AI45: 0 | AJ45: 0 | AK45: 0 | AL45: 0 | AM45: 0 | AN45: 0 | AO45: 0 | AP45: 0 | AQ45: 0 | AR45: 0 | AS45: 0 | AT45: 0 | AU45: 0 | AV45: 0 | AW45: 0 | AX45: 0 | AY45: 0 | AZ45: 0 | BA45: 0 | BB45: 0 | BC45: 0 | BD45: 0 | BE45: 0 | BF45: 0 | BG45: 0 | BH45: 0 | BI45: 0 | BJ45: 0 | BK45: 0 | BL45: 0 | BM45: 0 | BN45: 0 | BO45: 0 | BP45: 0 | BQ45: 0 | BR45: 0 | BS45: 0 | BT45: 107 | BU45: 0 | BV45: 0 | BW45: 0 | BX45: 0 | BY45: 0 | BZ45: 0 | CA45: 0 | CB45: 0 | CC45: 0 | CD45: 0 | CE45: 0 | CF45: 0 | CG45: 0 | CH45: 0 | CI45: 0 | CJ45: 0 | CK45: 0 | CL45: 0 | CM45: 0 | CN45: 0 | CO45: 107 | CP45: 0 | CQ45: 0 | CR45: 0 | CS45: 0
A46: 40 | B46: Thorn, Ben | C46: M | D46: Vale Royal | E46: 15.8 | F46: 43 | H46: 0 | I46: 3.01 | J46: =IF(I46="NJ",0,IF(I46<'Scoring Tables'!$S$4,0,VLOOKUP(I46,T_Long,11,TRUE))) -> 38 | K46: 17.33 | L46: =IF(K46="NT",0,IF(K46<'Scoring Tables'!$X$14,0,VLOOKUP(K46,T_Javlin,6,TRUE))) -> 54 | M46: =IFERROR((LARGE((F46,H46),1)+J46+L46),0) -> 135 | N46: 10B | O46: =IF(M46<15,0,HLOOKUP(M46,T_U11B_3_Events,3)) -> 4* | P46: 0 | R46: 440 | S46: 2 | T46: =RANK(M46,OFFSET($AH$6,0,AC46,64,1)) ->  | U46: 3 | V46: 0 | X46: 0 | Y46: 0 | Z46: 44013546 | AA46: 6 | AB46: =IF(C46="F",D46,"") ->  | AC46: 17 | AD46: B | AG46: 135 | AH46: 0 | AI46: 0 | AJ46: 0 | AK46: 0 | AL46: 0 | AM46: 0 | AN46: 0 | AO46: 0 | AP46: 0 | AQ46: 0 | AR46: 0 | AS46: 0 | AT46: 0 | AU46: 0 | AV46: 0 | AW46: 0 | AX46: 0 | AY46: 0 | AZ46: 0 | BA46: 0 | BB46: 0 | BC46: 0 | BD46: 0 | BE46: 0 | BF46: 0 | BG46: 0 | BH46: 0 | BI46: 0 | BJ46: 0 | BK46: 0 | BL46: 0 | BM46: 0 | BN46: 0 | BO46: 0 | BP46: 0 | BQ46: 0 | BR46: 0 | BS46: 0 | BT46: 135 | BU46: 0 | BV46: 0 | BW46: 0 | BX46: 0 | BY46: 0 | BZ46: 0 | CA46: 0 | CB46: 0 | CC46: 0 | CD46: 0 | CE46: 0 | CF46: 0 | CG46: 0 | CH46: 0 | CI46: 0 | CJ46: 0 | CK46: 0 | CL46: 0 | CM46: 0 | CN46: 0 | CO46: 135 | CP46: 0 | CQ46: 0 | CR46: 0 | CS46: 0
A47: 41 | B47: Bugg, Harry | C47: M | D47: West Cheshire | E47: 16.5 | F47: 36 | G47: 00:03:03.200 | H47: 58 | I47: 2.8 | J47: =IF(I47="NJ",0,IF(I47<'Scoring Tables'!$S$4,0,VLOOKUP(I47,T_Long,11,TRUE))) -> 31 | K47: 10.19 | L47: =IF(K47="NT",0,IF(K47<'Scoring Tables'!$X$14,0,VLOOKUP(K47,T_Javlin,6,TRUE))) -> 25 | M47: =IFERROR((LARGE((F47,H47),1)+J47+L47),0) -> 114 | N47: 13B | O47: 3* | P47: 0 | R47: 337 | S47: =IFERROR(IF(R47>0,RANK(R47,$BY$85:$CS$87),0),0) -> 8 | T47: =RANK(M47,OFFSET($AH$6,0,AC47,64,1)) ->  | U47: 8 | V47: 0 | X47: 0 | Y47: 0 | Z47: 33711447 | AA47: 23 | AB47: =IF(C47="F",D47,"") ->  | AC47: 19 | AD47: B | AG47: 114 | AH47: 0 | AI47: 0 | AJ47: 0 | AK47: 0 | AL47: 0 | AM47: 0 | AN47: 0 | AO47: 0 | AP47: 0 | AQ47: 0 | AR47: 0 | AS47: 0 | AT47: 0 | AU47: 0 | AV47: 0 | AW47: 0 | AX47: 0 | AY47: 0 | AZ47: 0 | BA47: 0 | BB47: 0 | BC47: 0 | BD47: 0 | BE47: 0 | BF47: 0 | BG47: 0 | BH47: 0 | BI47: 0 | BJ47: 0 | BK47: 0 | BL47: 0 | BM47: 0 | BN47: 0 | BO47: 0 | BP47: 0 | BQ47: 0 | BR47: 0 | BS47: 0 | BT47: 0 | BU47: 0 | BV47: 114 | BW47: 0 | BX47: 0 | BY47: 0 | BZ47: 0 | CA47: 0 | CB47: 0 | CC47: 0 | CD47: 0 | CE47: 0 | CF47: 0 | CG47: 0 | CH47: 0 | CI47: 0 | CJ47: 0 | CK47: 0 | CL47: 0 | CM47: 0 | CN47: 0 | CO47: 0 | CP47: 0 | CQ47: 114 | CR47: 0 | CS47: 0 | CU47: =R47+2 -> 339
A48: 42 | B48: Grinter, Zac | C48: M | D48: West Cheshire | E48: 15.5 | F48: 46 | G48: 00:03:09.800 | H48: 55 | I48: 3.32 | J48: =IF(I48="NJ",0,IF(I48<'Scoring Tables'!$S$4,0,VLOOKUP(I48,T_Long,11,TRUE))) -> 48 | K48: 14.25 | L48: =IF(K48="NT",0,IF(K48<'Scoring Tables'!$X$14,0,VLOOKUP(K48,T_Javlin,6,TRUE))) -> 42 | M48: =IFERROR((LARGE((F48,H48),1)+J48+L48),0) -> 145 | N48: 7B | O48: 4* | P48: 432 | R48: 432 | S48: =IF(R48>0,RANK(R48,$BY$85:$CS$87),0) -> 3 | T48: =RANK(M48,OFFSET($BC$6,0,AC48,64,1)) -> 2 | U48: 2 | V48: 0 | X48: 432145 | Y48: 4 | Z48: 43214548 | AA48: 8 | AB48: =IF(C48="M",D48,"") -> West Cheshire | AC48: 19 | AD48: B | AG48: 145 | AH48: 0 | AI48: 0 | AJ48: 0 | AK48: 0 | AL48: 0 | AM48: 0 | AN48: 0 | AO48: 0 | AP48: 0 | AQ48: 0 | AR48: 0 | AS48: 0 | AT48: 0 | AU48: 0 | AV48: 0 | AW48: 0 | AX48: 0 | AY48: 0 | AZ48: 0 | BA48: 0 | BB48: 0 | BC48: 0 | BD48: 0 | BE48: 0 | BF48: 0 | BG48: 0 | BH48: 0 | BI48: 0 | BJ48: 0 | BK48: 0 | BL48: 0 | BM48: 0 | BN48: 0 | BO48: 0 | BP48: 0 | BQ48: 0 | BR48: 0 | BS48: 0 | BT48: 0 | BU48: 0 | BV48: 145 | BW48: 0 | BX48: 0 | BY48: 0 | BZ48: 0 | CA48: 0 | CB48: 0 | CC48: 0 | CD48: 0 | CE48: 0 | CF48: 0 | CG48: 0 | CH48: 0 | CI48: 0 | CJ48: 0 | CK48: 0 | CL48: 0 | CM48: 0 | CN48: 0 | CO48: 0 | CP48: 0 | CQ48: 145 | CR48: 0 | CS48: 0
A49: 43 | B49: Onomerike, Uzezi | C49: M | D49: West Cheshire | E49: 14.7 | F49: 59 | G49: 00:03:32.200 | H49: 43 | I49: 3.4 | J49: =IF(I49="NJ",0,IF(I49<'Scoring Tables'!$S$4,0,VLOOKUP(I49,T_Long,11,TRUE))) -> 51 | K49: 12.88 | L49: =IF(K49="NT",0,IF(K49<'Scoring Tables'!$X$14,0,VLOOKUP(K49,T_Javlin,6,TRUE))) -> 36 | M49: =IFERROR((LARGE((F49,H49),1)+J49+L49),0) -> 146 | N49: 6B | O49: 4* | P49: 0 | R49: 432 | S49: =IF(R49>0,RANK(R49,$BY$85:$CS$87),0) -> 3 | T49: =RANK(M49,OFFSET($AH$6,0,AC49,64,1)) ->  | U49: 1 | V49: 0 | X49: 0 | Y49: 0 | Z49: 43214649 | AA49: 7 | AB49: =IF(C49="F",D49,"") ->  | AC49: 19 | AD49: B | AG49: 146 | AH49: 0 | AI49: 0 | AJ49: 0 | AK49: 0 | AL49: 0 | AM49: 0 | AN49: 0 | AO49: 0 | AP49: 0 | AQ49: 0 | AR49: 0 | AS49: 0 | AT49: 0 | AU49: 0 | AV49: 0 | AW49: 0 | AX49: 0 | AY49: 0 | AZ49: 0 | BA49: 0 | BB49: 0 | BC49: 0 | BD49: 0 | BE49: 0 | BF49: 0 | BG49: 0 | BH49: 0 | BI49: 0 | BJ49: 0 | BK49: 0 | BL49: 0 | BM49: 0 | BN49: 0 | BO49: 0 | BP49: 0 | BQ49: 0 | BR49: 0 | BS49: 0 | BT49: 0 | BU49: 0 | BV49: 146 | BW49: 0 | BX49: 0 | BY49: 0 | BZ49: 0 | CA49: 0 | CB49: 0 | CC49: 0 | CD49: 0 | CE49: 0 | CF49: 0 | CG49: 0 | CH49: 0 | CI49: 0 | CJ49: 0 | CK49: 0 | CL49: 0 | CM49: 0 | CN49: 0 | CO49: 0 | CP49: 0 | CQ49: 146 | CR49: 0 | CS49: 0
A50: 44 | B50: Shakespeare-Wetton, Harley | C50: M | D50: West Cheshire | E50: 15.9 | F50: 42 | G50: 00:03:01.400 | H50: 59 | I50: 3.11 | J50: =IF(I50="NJ",0,IF(I50<'Scoring Tables'!$S$4,0,VLOOKUP(I50,T_Long,11,TRUE))) -> 41 | K50: 14.15 | L50: =IF(K50="NT",0,IF(K50<'Scoring Tables'!$X$14,0,VLOOKUP(K50,T_Javlin,6,TRUE))) -> 41 | M50: =IFERROR((LARGE((F50,H50),1)+J50+L50),0) -> 141 | N50: 9B | O50: 4* | P50: 432 | R50: 432 | S50: =IF(R50>0,RANK(R50,$BY$85:$CS$87),0) -> 3 | T50: =RANK(M50,OFFSET($BC$6,0,AC50,64,1)) -> 3 | U50: 3 | V50: 0 | X50: 432141 | Y50: 5 | Z50: 43214150 | AA50: 9 | AB50: =IF(C50="M",D50,"") -> West Cheshire | AC50: 19 | AD50: B | AG50: 141 | AH50: 0 | AI50: 0 | AJ50: 0 | AK50: 0 | AL50: 0 | AM50: 0 | AN50: 0 | AO50: 0 | AP50: 0 | AQ50: 0 | AR50: 0 | AS50: 0 | AT50: 0 | AU50: 0 | AV50: 0 | AW50: 0 | AX50: 0 | AY50: 0 | AZ50: 0 | BA50: 0 | BB50: 0 | BC50: 0 | BD50: 0 | BE50: 0 | BF50: 0 | BG50: 0 | BH50: 0 | BI50: 0 | BJ50: 0 | BK50: 0 | BL50: 0 | BM50: 0 | BN50: 0 | BO50: 0 | BP50: 0 | BQ50: 0 | BR50: 0 | BS50: 0 | BT50: 0 | BU50: 0 | BV50: 141 | BW50: 0 | BX50: 0 | BY50: 0 | BZ50: 0 | CA50: 0 | CB50: 0 | CC50: 0 | CD50: 0 | CE50: 0 | CF50: 0 | CG50: 0 | CH50: 0 | CI50: 0 | CJ50: 0 | CK50: 0 | CL50: 0 | CM50: 0 | CN50: 0 | CO50: 0 | CP50: 0 | CQ50: 141 | CR50: 0 | CS50: 0
F51: =IF(E51="DNF",0,IF(E51=0,0,IF(E51<=14,VLOOKUP(E51,T_100m,15,TRUE),IF(E51<=15.2,VLOOKUP(E51,T_100m,15,TRUE),IF(E51<=21,VLOOKUP(E51-0.01,T_100m,15,TRUE)-1,0))))) -> 0 | H51: =IF(G51="DNF",0,IF(G51=0,0,VLOOKUP(G51,T_800m,11,TRUE)-1)) -> 0 | J51: =IF(I51="NJ",0,IF(I51<'Scoring Tables'!$S$4,0,VLOOKUP(I51,T_Long,11,TRUE))) -> 0 | L51: =IF(K51="NT",0,IF(K51<'Scoring Tables'!$X$14,0,VLOOKUP(K51,T_Javlin,6,TRUE))) -> 0 | M51: =IFERROR((LARGE((F51,H51),1)+J51+L51),0) -> 0 | N51: =IF(M51=0,"",IF(C51="M",(RANK(M51,AG$7:AG$97)&"B"),RANK(M51,AH$7:AH$95)&"G")) ->  | O51: 0 | P51: =IFERROR(IF(AD51="G",OFFSET($AH$84,VLOOKUP(T51,$AB$94:$AC$105,2,0),AC51,1,1),IF(AD51="B",OFFSET($BC$84,VLOOKUP(T51,$AB$94:$AC$105,2,0),AC51,1,1),0)),0) -> 0 | Q51: =IF(AD51="G",IF(P51>0,CONCATENATE(RANK(P51,$AI$85:$BC$88),"G"),0),IF(AD51="B",IF(P51>0,CONCATENATE(RANK(P51,$BD$85:$BX$88),"B"),0),0)) -> 0 | R51: =IFERROR(OFFSET($BX$84,VLOOKUP(U51,$AB$94:$AC$105,2,0),AC51,1,1),0) -> 0 | S51: =IF(R51>0,RANK(R51,$BY$85:$CS$87),0) -> 0 | T51: =RANK(M51,OFFSET($AH$6,0,AC51,64,1)) ->  | U51: =RANK(M51,OFFSET($BX$6,0,AC51,64,1)) ->  | V51: =IFERROR(IF(Q51=0,0,IF(C51="F",P51*1000+M51,0)),0) -> 0 | W51: =IF(AND(P51>0,C51="F"), RANK(V51,$V$7:$V$68),"") ->  | X51: =IFERROR(IF(P51=0,0,IF(C51="M",P51*1000+M51,0)),0) -> 0 | Y51: =IFERROR(IF(AND(P51>0,C51="M"), RANK(X51,$X$7:$X$68),0),0) -> 0 | Z51: =IFERROR(IF(R51>1,R51*100000+M51*100+ROW(),0),0) -> 0 | AA51: =IFERROR(IF(R51>0, RANK(Z51,$Z$7:$Z$52),0),0) -> 0 | AC51: =VLOOKUP(D51,ClubIx,2,0) ->  | AD51: =IF(C51="M","B","G") -> G | AG51: =IF(C51="M",M51,0) -> 0 | AH51: =IF(C51="F",M51,0) -> 0 | AI51: =IF($D51=AI$1,$AH51,0) -> 0 | AJ51: 0 | AK51: 0 | AL51: 0 | AM51: 0 | AN51: 0 | AO51: 0 | AP51: 0 | AQ51: 0 | AR51: 0 | AS51: =IF($D51=AS$1,$AH51,0) -> 0 | AT51: 0 | AU51: 0 | AV51: 0 | AW51: 0 | AX51: 0 | AY51: 0 | AZ51: 0 | BA51: 0 | BB51: 0 | BC51: 0 | BD51: =IF($D51=BD$1,$AG51,0) -> 0 | BE51: 0 | BF51: 0 | BG51: 0 | BH51: 0 | BI51: 0 | BJ51: 0 | BK51: 0 | BL51: 0 | BM51: 0 | BN51: =IF($D51=BN$1,$AG51,0) -> 0 | BO51: 0 | BP51: 0 | BQ51: 0 | BR51: 0 | BS51: 0 | BT51: 0 | BU51: 0 | BV51: 0 | BW51: 0 | BX51: 0 | BY51: =AI51+BD51 -> 0 | BZ51: =AJ51+BE51 -> 0 | CA51: =AK51+BF51 -> 0 | CB51: =AL51+BG51 -> 0 | CC51: =AM51+BH51 -> 0 | CD51: =AN51+BI51 -> 0 | CE51: =AO51+BJ51 -> 0 | CF51: =AP51+BK51 -> 0 | CG51: =AQ51+BL51 -> 0 | CH51: =AR51+BM51 -> 0 | CI51: =AS51+BN51 -> 0 | CJ51: =AT51+BO51 -> 0 | CK51: =AU51+BP51 -> 0 | CL51: =AV51+BQ51 -> 0 | CM51: =AW51+BR51 -> 0 | CN51: =AX51+BS51 -> 0 | CO51: =AY51+BT51 -> 0 | CP51: =AZ51+BU51 -> 0 | CQ51: =BA51+BV51 -> 0 | CR51: =BB51+BW51 -> 0 | CS51: =BC51+BX51 -> 0
F52: 0 | H52: 0 | J52: =IF(I52="NJ",0,IF(I52<'Scoring Tables'!$S$4,0,VLOOKUP(I52,T_Long,11,TRUE))) -> 0 | L52: =IF(K52="NT",0,IF(K52<'Scoring Tables'!$X$14,0,VLOOKUP(K52,T_Javlin,6,TRUE))) -> 0 | M52: =IFERROR((LARGE((F52,H52),1)+J52+L52),0) -> 0 | O52: =IF(M52<15,"",HLOOKUP(M52,T_U11G_3_Events,3)) ->  | P52: 0 | Q52: 0 | R52: 0 | S52: =IF(R52>0,RANK(R52,$BY$85:$CS$87),"") ->  | T52: =IF(A52="F",B52,"") ->  | U52: =IF(B52="F",C52,"") ->  | V52: 0 | X52: 0 | Y52: 0 | Z52: 0 | AA52: 0 | AB52: =IF(C52="F",D52,"") ->  | AD52: G | AG52: 0 | AH52: 0 | AI52: 0 | AJ52: 0 | AK52: 0 | AL52: 0 | AM52: 0 | AN52: 0 | AO52: 0 | AP52: 0 | AQ52: 0 | AR52: 0 | AS52: 0 | AT52: 0 | AU52: 0 | AV52: 0 | AW52: 0 | AX52: 0 | AY52: 0 | AZ52: 0 | BA52: 0 | BB52: 0 | BC52: 0 | BD52: 0 | BE52: 0 | BF52: 0 | BG52: 0 | BH52: 0 | BI52: 0 | BJ52: 0 | BK52: 0 | BL52: 0 | BM52: 0 | BN52: 0 | BO52: 0 | BP52: 0 | BQ52: 0 | BR52: 0 | BS52: 0 | BT52: 0 | BU52: 0 | BV52: 0 | BW52: 0 | BX52: 0 | BY52: 0 | BZ52: 0 | CA52: 0 | CB52: 0 | CC52: 0 | CD52: 0 | CE52: 0 | CF52: 0 | CG52: 0 | CH52: 0 | CI52: 0 | CJ52: 0 | CK52: 0 | CL52: 0 | CM52: 0 | CN52: 0 | CO52: 0 | CP52: 0 | CQ52: 0 | CR52: 0 | CS52: 0
F53: 0 | H53: 0 | J53: =IF(I53="NJ",0,IF(I53<'Scoring Tables'!$S$4,0,VLOOKUP(I53,T_Long,11,TRUE))) -> 0 | L53: =IF(K53="NT",0,IF(K53<'Scoring Tables'!$X$14,0,VLOOKUP(K53,T_Javlin,6,TRUE))) -> 0 | M53: =IFERROR((LARGE((F53,H53),1)+J53+L53),0) -> 0 | P53: 0 | Q53: 0 | R53: 0 | V53: 0 | X53: 0 | Y53: 0 | Z53: 0 | AA53: 0 | AD53: G | AG53: 0 | AH53: 0 | AI53: 0 | AJ53: 0 | AK53: 0 | AL53: 0 | AM53: 0 | AN53: 0 | AO53: 0 | AP53: 0 | AQ53: 0 | AR53: 0 | AS53: 0 | AT53: 0 | AU53: 0 | AV53: 0 | AW53: 0 | AX53: 0 | AY53: 0 | AZ53: 0 | BA53: 0 | BB53: 0 | BC53: 0 | BD53: 0 | BE53: 0 | BF53: 0 | BG53: 0 | BH53: 0 | BI53: 0 | BJ53: 0 | BK53: 0 | BL53: 0 | BM53: 0 | BN53: 0 | BO53: 0 | BP53: 0 | BQ53: 0 | BR53: 0 | BS53: 0 | BT53: 0 | BU53: 0 | BV53: 0 | BW53: 0 | BX53: 0 | BY53: 0 | BZ53: 0 | CA53: 0 | CB53: 0 | CC53: 0 | CD53: 0 | CE53: 0 | CF53: 0 | CG53: 0 | CH53: 0 | CI53: 0 | CJ53: 0 | CK53: 0 | CL53: 0 | CM53: 0 | CN53: 0 | CO53: 0 | CP53: 0 | CQ53: 0 | CR53: 0 | CS53: 0
F54: 0 | H54: 0 | J54: =IF(I54="NJ",0,IF(I54<'Scoring Tables'!$S$4,0,VLOOKUP(I54,T_Long,11,TRUE))) -> 0 | L54: =IF(K54="NT",0,IF(K54<'Scoring Tables'!$X$14,0,VLOOKUP(K54,T_Javlin,6,TRUE))) -> 0 | M54: =IFERROR((LARGE((F54,H54),1)+J54+L54),0) -> 0 | P54: 0 | Q54: 0 | R54: 0 | V54: 0 | X54: 0 | Y54: 0 | Z54: 0 | AA54: 0 | AD54: G | AG54: 0 | AH54: 0 | AI54: 0 | AJ54: 0 | AK54: 0 | AL54: 0 | AM54: 0 | AN54: 0 | AO54: 0 | AP54: 0 | AQ54: 0 | AR54: 0 | AS54: 0 | AT54: 0 | AU54: 0 | AV54: 0 | AW54: 0 | AX54: 0 | AY54: 0 | AZ54: 0 | BA54: 0 | BB54: 0 | BC54: 0 | BD54: 0 | BE54: 0 | BF54: 0 | BG54: 0 | BH54: 0 | BI54: 0 | BJ54: 0 | BK54: 0 | BL54: 0 | BM54: 0 | BN54: 0 | BO54: 0 | BP54: 0 | BQ54: 0 | BR54: 0 | BS54: 0 | BT54: 0 | BU54: 0 | BV54: 0 | BW54: 0 | BX54: 0 | BY54: 0 | BZ54: 0 | CA54: 0 | CB54: 0 | CC54: 0 | CD54: 0 | CE54: 0 | CF54: 0 | CG54: 0 | CH54: 0 | CI54: 0 | CJ54: 0 | CK54: 0 | CL54: 0 | CM54: 0 | CN54: 0 | CO54: 0 | CP54: 0 | CQ54: 0 | CR54: 0 | CS54: 0
F55: 0 | H55: 0 | J55: =IF(I55="NJ",0,IF(I55<'Scoring Tables'!$S$4,0,VLOOKUP(I55,T_Long,11,TRUE))) -> 0 | L55: =IF(K55="NT",0,IF(K55<'Scoring Tables'!$X$14,0,VLOOKUP(K55,T_Javlin,6,TRUE))) -> 0 | M55: =IFERROR((LARGE((F55,H55),1)+J55+L55),0) -> 0 | P55: 0 | Q55: 0 | R55: 0 | V55: 0 | X55: 0 | Y55: 0 | Z55: 0 | AA55: 0 | AD55: G | AG55: 0 | AH55: 0 | AI55: 0 | AJ55: 0 | AK55: 0 | AL55: 0 | AM55: 0 | AN55: 0 | AO55: 0 | AP55: 0 | AQ55: 0 | AR55: 0 | AS55: 0 | AT55: 0 | AU55: 0 | AV55: 0 | AW55: 0 | AX55: 0 | AY55: 0 | AZ55: 0 | BA55: 0 | BB55: 0 | BC55: 0 | BD55: 0 | BE55: 0 | BF55: 0 | BG55: 0 | BH55: 0 | BI55: 0 | BJ55: 0 | BK55: 0 | BL55: 0 | BM55: 0 | BN55: 0 | BO55: 0 | BP55: 0 | BQ55: 0 | BR55: 0 | BS55: 0 | BT55: 0 | BU55: 0 | BV55: 0 | BW55: 0 | BX55: 0 | BY55: 0 | BZ55: 0 | CA55: 0 | CB55: 0 | CC55: 0 | CD55: 0 | CE55: 0 | CF55: 0 | CG55: 0 | CH55: 0 | CI55: 0 | CJ55: 0 | CK55: 0 | CL55: 0 | CM55: 0 | CN55: 0 | CO55: 0 | CP55: 0 | CQ55: 0 | CR55: 0 | CS55: 0
F56: 0 | H56: 0 | J56: =IF(I56="NJ",0,IF(I56<'Scoring Tables'!$S$4,0,VLOOKUP(I56,T_Long,11,TRUE))) -> 0 | L56: =IF(K56="NT",0,IF(K56<'Scoring Tables'!$X$14,0,VLOOKUP(K56,T_Javlin,6,TRUE))) -> 0 | M56: =IFERROR((LARGE((F56,H56),1)+J56+L56),0) -> 0 | P56: 0 | Q56: 0 | R56: 0 | V56: 0 | X56: 0 | Y56: 0 | Z56: 0 | AA56: 0 | AD56: G | AG56: 0 | AH56: 0 | AI56: 0 | AJ56: 0 | AK56: 0 | AL56: 0 | AM56: 0 | AN56: 0 | AO56: 0 | AP56: 0 | AQ56: 0 | AR56: 0 | AS56: 0 | AT56: 0 | AU56: 0 | AV56: 0 | AW56: 0 | AX56: 0 | AY56: 0 | AZ56: 0 | BA56: 0 | BB56: 0 | BC56: 0 | BD56: 0 | BE56: 0 | BF56: 0 | BG56: 0 | BH56: 0 | BI56: 0 | BJ56: 0 | BK56: 0 | BL56: 0 | BM56: 0 | BN56: 0 | BO56: 0 | BP56: 0 | BQ56: 0 | BR56: 0 | BS56: 0 | BT56: 0 | BU56: 0 | BV56: 0 | BW56: 0 | BX56: 0 | BY56: 0 | BZ56: 0 | CA56: 0 | CB56: 0 | CC56: 0 | CD56: 0 | CE56: 0 | CF56: 0 | CG56: 0 | CH56: 0 | CI56: 0 | CJ56: 0 | CK56: 0 | CL56: 0 | CM56: 0 | CN56: 0 | CO56: 0 | CP56: 0 | CQ56: 0 | CR56: 0 | CS56: 0
F57: 0 | H57: 0 | J57: =IF(I57="NJ",0,IF(I57<'Scoring Tables'!$S$4,0,VLOOKUP(I57,T_Long,11,TRUE))) -> 0 | L57: =IF(K57="NT",0,IF(K57<'Scoring Tables'!$X$14,0,VLOOKUP(K57,T_Javlin,6,TRUE))) -> 0 | M57: =IFERROR((LARGE((F57,H57),1)+J57+L57),0) -> 0 | P57: 0 | Q57: 0 | R57: 0 | V57: 0 | X57: 0 | Y57: 0 | Z57: 0 | AA57: 0 | AD57: G | AG57: 0 | AH57: 0 | AI57: =IF($D57=AI$1,$AH57,0) -> 0 | AJ57: 0 | AK57: 0 | AL57: 0 | AM57: 0 | AN57: 0 | AO57: 0 | AP57: 0 | AQ57: 0 | AR57: 0 | AS57: =IF($D57=AS$1,$AH57,0) -> 0 | AT57: 0 | AU57: 0 | AV57: 0 | AW57: 0 | AX57: 0 | AY57: 0 | AZ57: 0 | BA57: 0 | BB57: 0 | BC57: 0 | BD57: =IF($D57=BD$1,$AG57,0) -> 0 | BE57: 0 | BF57: 0 | BG57: 0 | BH57: 0 | BI57: 0 | BJ57: 0 | BK57: 0 | BL57: 0 | BM57: 0 | BN57: =IF($D57=BN$1,$AG57,0) -> 0 | BO57: 0 | BP57: 0 | BQ57: 0 | BR57: 0 | BS57: 0 | BT57: 0 | BU57: 0 | BV57: 0 | BW57: 0 | BX57: 0 | BY57: 0 | BZ57: 0 | CA57: 0 | CB57: 0 | CC57: 0 | CD57: 0 | CE57: 0 | CF57: 0 | CG57: 0 | CH57: 0 | CI57: 0 | CJ57: 0 | CK57: 0 | CL57: 0 | CM57: 0 | CN57: 0 | CO57: 0 | CP57: 0 | CQ57: 0 | CR57: 0 | CS57: 0
F58: 0 | H58: 0 | J58: =IF(I58="NJ",0,IF(I58<'Scoring Tables'!$S$4,0,VLOOKUP(I58,T_Long,11,TRUE))) -> 0 | L58: =IF(K58="NT",0,IF(K58<'Scoring Tables'!$X$14,0,VLOOKUP(K58,T_Javlin,6,TRUE))) -> 0 | M58: =IFERROR((LARGE((F58,H58),1)+J58+L58),0) -> 0 | P58: 0 | Q58: 0 | R58: 0 | V58: 0 | X58: 0 | Y58: 0 | Z58: 0 | AA58: 0 | AD58: G | AG58: 0 | AH58: 0 | AI58: 0 | AJ58: 0 | AK58: 0 | AL58: 0 | AM58: 0 | AN58: 0 | AO58: 0 | AP58: 0 | AQ58: 0 | AR58: 0 | AS58: 0 | AT58: 0 | AU58: 0 | AV58: 0 | AW58: 0 | AX58: 0 | AY58: 0 | AZ58: 0 | BA58: 0 | BB58: 0 | BC58: 0 | BD58: 0 | BE58: 0 | BF58: 0 | BG58: 0 | BH58: 0 | BI58: 0 | BJ58: 0 | BK58: 0 | BL58: 0 | BM58: 0 | BN58: 0 | BO58: 0 | BP58: 0 | BQ58: 0 | BR58: 0 | BS58: 0 | BT58: 0 | BU58: 0 | BV58: 0 | BW58: 0 | BX58: 0 | BY58: 0 | BZ58: 0 | CA58: 0 | CB58: 0 | CC58: 0 | CD58: 0 | CE58: 0 | CF58: 0 | CG58: 0 | CH58: 0 | CI58: 0 | CJ58: 0 | CK58: 0 | CL58: 0 | CM58: 0 | CN58: 0 | CO58: 0 | CP58: 0 | CQ58: 0 | CR58: 0 | CS58: 0
F59: 0 | H59: 0 | J59: =IF(I59="NJ",0,IF(I59<'Scoring Tables'!$S$4,0,VLOOKUP(I59,T_Long,11,TRUE))) -> 0 | L59: =IF(K59="NT",0,IF(K59<'Scoring Tables'!$X$14,0,VLOOKUP(K59,T_Javlin,6,TRUE))) -> 0 | M59: =IFERROR((LARGE((F59,H59),1)+J59+L59),0) -> 0 | P59: 0 | Q59: 0 | R59: 0 | V59: 0 | X59: 0 | Y59: 0 | Z59: 0 | AA59: 0 | AD59: G | AG59: 0 | AH59: 0 | AI59: 0 | AJ59: 0 | AK59: 0 | AL59: 0 | AM59: 0 | AN59: 0 | AO59: 0 | AP59: 0 | AQ59: 0 | AR59: 0 | AS59: 0 | AT59: 0 | AU59: 0 | AV59: 0 | AW59: 0 | AX59: 0 | AY59: 0 | AZ59: 0 | BA59: 0 | BB59: 0 | BC59: 0 | BD59: 0 | BE59: 0 | BF59: 0 | BG59: 0 | BH59: 0 | BI59: 0 | BJ59: 0 | BK59: 0 | BL59: 0 | BM59: 0 | BN59: 0 | BO59: 0 | BP59: 0 | BQ59: 0 | BR59: 0 | BS59: 0 | BT59: 0 | BU59: 0 | BV59: 0 | BW59: 0 | BX59: 0 | BY59: 0 | BZ59: 0 | CA59: 0 | CB59: 0 | CC59: 0 | CD59: 0 | CE59: 0 | CF59: 0 | CG59: 0 | CH59: 0 | CI59: 0 | CJ59: 0 | CK59: 0 | CL59: 0 | CM59: 0 | CN59: 0 | CO59: 0 | CP59: 0 | CQ59: 0 | CR59: 0 | CS59: 0
F60: 0 | H60: 0 | J60: =IF(I60="NJ",0,IF(I60<'Scoring Tables'!$S$4,0,VLOOKUP(I60,T_Long,11,TRUE))) -> 0 | L60: =IF(K60="NT",0,IF(K60<'Scoring Tables'!$X$14,0,VLOOKUP(K60,T_Javlin,6,TRUE))) -> 0 | M60: =IFERROR((LARGE((F60,H60),1)+J60+L60),0) -> 0 | P60: 0 | Q60: 0 | R60: 0 | V60: 0 | X60: 0 | Y60: 0 | Z60: 0 | AA60: 0 | AD60: G | AG60: 0 | AH60: 0 | AI60: 0 | AJ60: 0 | AK60: 0 | AL60: 0 | AM60: 0 | AN60: 0 | AO60: 0 | AP60: 0 | AQ60: 0 | AR60: 0 | AS60: 0 | AT60: 0 | AU60: 0 | AV60: 0 | AW60: 0 | AX60: 0 | AY60: 0 | AZ60: 0 | BA60: 0 | BB60: 0 | BC60: 0 | BD60: 0 | BE60: 0 | BF60: 0 | BG60: 0 | BH60: 0 | BI60: 0 | BJ60: 0 | BK60: 0 | BL60: 0 | BM60: 0 | BN60: 0 | BO60: 0 | BP60: 0 | BQ60: 0 | BR60: 0 | BS60: 0 | BT60: 0 | BU60: 0 | BV60: 0 | BW60: 0 | BX60: 0 | BY60: 0 | BZ60: 0 | CA60: 0 | CB60: 0 | CC60: 0 | CD60: 0 | CE60: 0 | CF60: 0 | CG60: 0 | CH60: 0 | CI60: 0 | CJ60: 0 | CK60: 0 | CL60: 0 | CM60: 0 | CN60: 0 | CO60: 0 | CP60: 0 | CQ60: 0 | CR60: 0 | CS60: 0
F61: 0 | H61: 0 | J61: =IF(I61="NJ",0,IF(I61<'Scoring Tables'!$S$4,0,VLOOKUP(I61,T_Long,11,TRUE))) -> 0 | L61: =IF(K61="NT",0,IF(K61<'Scoring Tables'!$X$14,0,VLOOKUP(K61,T_Javlin,6,TRUE))) -> 0 | M61: =IFERROR((LARGE((F61,H61),1)+J61+L61),0) -> 0 | P61: 0 | Q61: 0 | R61: 0 | V61: 0 | X61: 0 | Y61: 0 | Z61: 0 | AA61: 0 | AD61: G | AG61: 0 | AH61: 0 | AI61: 0 | AJ61: 0 | AK61: 0 | AL61: 0 | AM61: 0 | AN61: 0 | AO61: 0 | AP61: 0 | AQ61: 0 | AR61: 0 | AS61: 0 | AT61: 0 | AU61: 0 | AV61: 0 | AW61: 0 | AX61: 0 | AY61: 0 | AZ61: 0 | BA61: 0 | BB61: 0 | BC61: 0 | BD61: 0 | BE61: 0 | BF61: 0 | BG61: 0 | BH61: 0 | BI61: 0 | BJ61: 0 | BK61: 0 | BL61: 0 | BM61: 0 | BN61: 0 | BO61: 0 | BP61: 0 | BQ61: 0 | BR61: 0 | BS61: 0 | BT61: 0 | BU61: 0 | BV61: 0 | BW61: 0 | BX61: 0 | BY61: 0 | BZ61: 0 | CA61: 0 | CB61: 0 | CC61: 0 | CD61: 0 | CE61: 0 | CF61: 0 | CG61: 0 | CH61: 0 | CI61: 0 | CJ61: 0 | CK61: 0 | CL61: 0 | CM61: 0 | CN61: 0 | CO61: 0 | CP61: 0 | CQ61: 0 | CR61: 0 | CS61: 0
F62: 0 | H62: 0 | J62: =IF(I62="NJ",0,IF(I62<'Scoring Tables'!$S$4,0,VLOOKUP(I62,T_Long,11,TRUE))) -> 0 | L62: =IF(K62="NT",0,IF(K62<'Scoring Tables'!$X$14,0,VLOOKUP(K62,T_Javlin,6,TRUE))) -> 0 | M62: =IFERROR((LARGE((F62,H62),1)+J62+L62),0) -> 0 | P62: 0 | Q62: 0 | R62: 0 | V62: 0 | X62: 0 | Y62: 0 | Z62: 0 | AA62: 0 | AD62: G | AG62: 0 | AH62: 0 | AI62: 0 | AJ62: 0 | AK62: 0 | AL62: 0 | AM62: 0 | AN62: 0 | AO62: 0 | AP62: 0 | AQ62: 0 | AR62: 0 | AS62: 0 | AT62: 0 | AU62: 0 | AV62: 0 | AW62: 0 | AX62: 0 | AY62: 0 | AZ62: 0 | BA62: 0 | BB62: 0 | BC62: 0 | BD62: 0 | BE62: 0 | BF62: 0 | BG62: 0 | BH62: 0 | BI62: 0 | BJ62: 0 | BK62: 0 | BL62: 0 | BM62: 0 | BN62: 0 | BO62: 0 | BP62: 0 | BQ62: 0 | BR62: 0 | BS62: 0 | BT62: 0 | BU62: 0 | BV62: 0 | BW62: 0 | BX62: 0 | BY62: 0 | BZ62: 0 | CA62: 0 | CB62: 0 | CC62: 0 | CD62: 0 | CE62: 0 | CF62: 0 | CG62: 0 | CH62: 0 | CI62: 0 | CJ62: 0 | CK62: 0 | CL62: 0 | CM62: 0 | CN62: 0 | CO62: 0 | CP62: 0 | CQ62: 0 | CR62: 0 | CS62: 0
F63: 0 | H63: 0 | J63: =IF(I63="NJ",0,IF(I63<'Scoring Tables'!$S$4,0,VLOOKUP(I63,T_Long,11,TRUE))) -> 0 | L63: =IF(K63="NT",0,IF(K63<'Scoring Tables'!$X$14,0,VLOOKUP(K63,T_Javlin,6,TRUE))) -> 0 | M63: =IFERROR((LARGE((F63,H63),1)+J63+L63),0) -> 0 | P63: 0 | Q63: 0 | R63: 0 | V63: 0 | X63: 0 | Y63: 0 | Z63: 0 | AA63: 0 | AD63: G | AG63: 0 | AH63: 0 | AI63: 0 | AJ63: 0 | AK63: 0 | AL63: 0 | AM63: 0 | AN63: 0 | AO63: 0 | AP63: 0 | AQ63: 0 | AR63: 0 | AS63: 0 | AT63: 0 | AU63: 0 | AV63: 0 | AW63: 0 | AX63: 0 | AY63: 0 | AZ63: 0 | BA63: 0 | BB63: 0 | BC63: 0 | BD63: 0 | BE63: 0 | BF63: 0 | BG63: 0 | BH63: 0 | BI63: 0 | BJ63: 0 | BK63: 0 | BL63: 0 | BM63: 0 | BN63: 0 | BO63: 0 | BP63: 0 | BQ63: 0 | BR63: 0 | BS63: 0 | BT63: 0 | BU63: 0 | BV63: 0 | BW63: 0 | BX63: 0 | BY63: 0 | BZ63: 0 | CA63: 0 | CB63: 0 | CC63: 0 | CD63: 0 | CE63: 0 | CF63: 0 | CG63: 0 | CH63: 0 | CI63: 0 | CJ63: 0 | CK63: 0 | CL63: 0 | CM63: 0 | CN63: 0 | CO63: 0 | CP63: 0 | CQ63: 0 | CR63: 0 | CS63: 0
F64: 0 | H64: 0 | J64: =IF(I64="NJ",0,IF(I64<'Scoring Tables'!$S$4,0,VLOOKUP(I64,T_Long,11,TRUE))) -> 0 | L64: =IF(K64="NT",0,IF(K64<'Scoring Tables'!$X$14,0,VLOOKUP(K64,T_Javlin,6,TRUE))) -> 0 | M64: =IFERROR((LARGE((F64,H64),1)+J64+L64),0) -> 0 | P64: 0 | Q64: 0 | R64: 0 | V64: 0 | X64: 0 | Y64: 0 | Z64: 0 | AA64: 0 | AD64: G | AG64: 0 | AH64: 0 | AI64: 0 | AJ64: 0 | AK64: 0 | AL64: 0 | AM64: 0 | AN64: 0 | AO64: 0 | AP64: 0 | AQ64: 0 | AR64: 0 | AS64: 0 | AT64: 0 | AU64: 0 | AV64: 0 | AW64: 0 | AX64: 0 | AY64: 0 | AZ64: 0 | BA64: 0 | BB64: 0 | BC64: 0 | BD64: 0 | BE64: 0 | BF64: 0 | BG64: 0 | BH64: 0 | BI64: 0 | BJ64: 0 | BK64: 0 | BL64: 0 | BM64: 0 | BN64: 0 | BO64: 0 | BP64: 0 | BQ64: 0 | BR64: 0 | BS64: 0 | BT64: 0 | BU64: 0 | BV64: 0 | BW64: 0 | BX64: 0 | BY64: 0 | BZ64: 0 | CA64: 0 | CB64: 0 | CC64: 0 | CD64: 0 | CE64: 0 | CF64: 0 | CG64: 0 | CH64: 0 | CI64: 0 | CJ64: 0 | CK64: 0 | CL64: 0 | CM64: 0 | CN64: 0 | CO64: 0 | CP64: 0 | CQ64: 0 | CR64: 0 | CS64: 0
F65: 0 | H65: 0 | J65: =IF(I65="NJ",0,IF(I65<'Scoring Tables'!$S$4,0,VLOOKUP(I65,T_Long,11,TRUE))) -> 0 | L65: =IF(K65="NT",0,IF(K65<'Scoring Tables'!$X$14,0,VLOOKUP(K65,T_Javlin,6,TRUE))) -> 0 | M65: =IFERROR((LARGE((F65,H65),1)+J65+L65),0) -> 0 | P65: 0 | Q65: 0 | R65: 0 | V65: 0 | X65: 0 | Y65: 0 | Z65: 0 | AA65: 0 | AD65: G | AG65: 0 | AH65: 0 | AI65: 0 | AJ65: 0 | AK65: 0 | AL65: 0 | AM65: 0 | AN65: 0 | AO65: 0 | AP65: 0 | AQ65: 0 | AR65: 0 | AS65: 0 | AT65: 0 | AU65: 0 | AV65: 0 | AW65: 0 | AX65: 0 | AY65: 0 | AZ65: 0 | BA65: 0 | BB65: 0 | BC65: 0 | BD65: 0 | BE65: 0 | BF65: 0 | BG65: 0 | BH65: 0 | BI65: 0 | BJ65: 0 | BK65: 0 | BL65: 0 | BM65: 0 | BN65: 0 | BO65: 0 | BP65: 0 | BQ65: 0 | BR65: 0 | BS65: 0 | BT65: 0 | BU65: 0 | BV65: 0 | BW65: 0 | BX65: 0 | BY65: 0 | BZ65: 0 | CA65: 0 | CB65: 0 | CC65: 0 | CD65: 0 | CE65: 0 | CF65: 0 | CG65: 0 | CH65: 0 | CI65: 0 | CJ65: 0 | CK65: 0 | CL65: 0 | CM65: 0 | CN65: 0 | CO65: 0 | CP65: 0 | CQ65: 0 | CR65: 0 | CS65: 0
F66: 0 | H66: 0 | J66: =IF(I66="NJ",0,IF(I66<'Scoring Tables'!$S$4,0,VLOOKUP(I66,T_Long,11,TRUE))) -> 0 | L66: =IF(K66="NT",0,IF(K66<'Scoring Tables'!$X$14,0,VLOOKUP(K66,T_Javlin,6,TRUE))) -> 0 | M66: =IFERROR((LARGE((F66,H66),1)+J66+L66),0) -> 0 | P66: 0 | Q66: 0 | R66: 0 | V66: 0 | X66: 0 | Y66: 0 | Z66: 0 | AA66: 0 | AD66: G | AG66: 0 | AH66: 0 | AI66: 0 | AJ66: 0 | AK66: 0 | AL66: 0 | AM66: 0 | AN66: 0 | AO66: 0 | AP66: 0 | AQ66: 0 | AR66: 0 | AS66: 0 | AT66: 0 | AU66: 0 | AV66: 0 | AW66: 0 | AX66: 0 | AY66: 0 | AZ66: 0 | BA66: 0 | BB66: 0 | BC66: 0 | BD66: 0 | BE66: 0 | BF66: 0 | BG66: 0 | BH66: 0 | BI66: 0 | BJ66: 0 | BK66: 0 | BL66: 0 | BM66: 0 | BN66: 0 | BO66: 0 | BP66: 0 | BQ66: 0 | BR66: 0 | BS66: 0 | BT66: 0 | BU66: 0 | BV66: 0 | BW66: 0 | BX66: 0 | BY66: 0 | BZ66: 0 | CA66: 0 | CB66: 0 | CC66: 0 | CD66: 0 | CE66: 0 | CF66: 0 | CG66: 0 | CH66: 0 | CI66: 0 | CJ66: 0 | CK66: 0 | CL66: 0 | CM66: 0 | CN66: 0 | CO66: 0 | CP66: 0 | CQ66: 0 | CR66: 0 | CS66: 0
F67: 0 | H67: 0 | J67: =IF(I67="NJ",0,IF(I67<'Scoring Tables'!$S$4,0,VLOOKUP(I67,T_Long,11,TRUE))) -> 0 | L67: =IF(K67="NT",0,IF(K67<'Scoring Tables'!$X$14,0,VLOOKUP(K67,T_Javlin,6,TRUE))) -> 0 | M67: =IFERROR((LARGE((F67,H67),1)+J67+L67),0) -> 0 | P67: 0 | Q67: 0 | R67: 0 | V67: 0 | X67: 0 | Y67: 0 | Z67: 0 | AA67: 0 | AD67: G | AG67: 0 | AH67: 0 | AI67: 0 | AJ67: 0 | AK67: 0 | AL67: 0 | AM67: 0 | AN67: 0 | AO67: 0 | AP67: 0 | AQ67: 0 | AR67: 0 | AS67: 0 | AT67: 0 | AU67: 0 | AV67: 0 | AW67: 0 | AX67: 0 | AY67: 0 | AZ67: 0 | BA67: 0 | BB67: 0 | BC67: 0 | BD67: 0 | BE67: 0 | BF67: 0 | BG67: 0 | BH67: 0 | BI67: 0 | BJ67: 0 | BK67: 0 | BL67: 0 | BM67: 0 | BN67: 0 | BO67: 0 | BP67: 0 | BQ67: 0 | BR67: 0 | BS67: 0 | BT67: 0 | BU67: 0 | BV67: 0 | BW67: 0 | BX67: 0 | BY67: 0 | BZ67: 0 | CA67: 0 | CB67: 0 | CC67: 0 | CD67: 0 | CE67: 0 | CF67: 0 | CG67: 0 | CH67: 0 | CI67: 0 | CJ67: 0 | CK67: 0 | CL67: 0 | CM67: 0 | CN67: 0 | CO67: 0 | CP67: 0 | CQ67: 0 | CR67: 0 | CS67: 0
F68: 0 | H68: 0 | J68: =IF(I68="NJ",0,IF(I68<'Scoring Tables'!$S$4,0,VLOOKUP(I68,T_Long,11,TRUE))) -> 0 | L68: =IF(K68="NT",0,IF(K68<'Scoring Tables'!$X$14,0,VLOOKUP(K68,T_Javlin,6,TRUE))) -> 0 | M68: =IFERROR((LARGE((F68,H68),1)+J68+L68),0) -> 0 | P68: 0 | Q68: 0 | R68: 0 | V68: 0 | X68: 0 | Y68: 0 | Z68: 0 | AA68: 0 | AD68: G | AG68: 0 | AH68: 0 | AI68: 0 | AJ68: 0 | AK68: 0 | AL68: 0 | AM68: 0 | AN68: 0 | AO68: 0 | AP68: 0 | AQ68: 0 | AR68: 0 | AS68: 0 | AT68: 0 | AU68: 0 | AV68: 0 | AW68: 0 | AX68: 0 | AY68: 0 | AZ68: 0 | BA68: 0 | BB68: 0 | BC68: 0 | BD68: 0 | BE68: 0 | BF68: 0 | BG68: 0 | BH68: 0 | BI68: 0 | BJ68: 0 | BK68: 0 | BL68: 0 | BM68: 0 | BN68: 0 | BO68: 0 | BP68: 0 | BQ68: 0 | BR68: 0 | BS68: 0 | BT68: 0 | BU68: 0 | BV68: 0 | BW68: 0 | BX68: 0 | BY68: 0 | BZ68: 0 | CA68: 0 | CB68: 0 | CC68: 0 | CD68: 0 | CE68: 0 | CF68: 0 | CG68: 0 | CH68: 0 | CI68: 0 | CJ68: 0 | CK68: 0 | CL68: 0 | CM68: 0 | CN68: 0 | CO68: 0 | CP68: 0 | CQ68: 0 | CR68: 0 | CS68: 0
A69: =SUMPRODUCT((C7:C68="F")*(M7:M68>0)) -> 19 | B69: Athletes - Girls | F69: =IF(E69="DNF",0,IF(E69=0,0,IF(E69<=14,VLOOKUP(E69,T_100m,15,TRUE),IF(E69<=15.2,VLOOKUP(E69,T_100m,15,TRUE),IF(E69<=21,VLOOKUP(E69-0.01,T_100m,15,TRUE)-1,0))))) -> 0 | H69: =IF(G69="DNF",0,IF(G69=0,0,VLOOKUP(G69,T_800m,11,TRUE)-1)) -> 0 | J69: =IF(I69="NJ",0,IF(I69<'Scoring Tables'!$S$4,0,VLOOKUP(I69,T_Long,11,TRUE))) -> 0 | L69: =IF(K69="NT",0,IF(K69<'Scoring Tables'!$X$14,0,VLOOKUP(K69,T_Javlin,6,TRUE))) -> 0 | M69: =(LARGE((F69,H69),1)+J69+L69) -> 0 | N69: =IF(M69=0,"",IF(C69="M",(RANK(M69,AG$7:AG$97)&"B"),RANK(M69,AH$7:AH$95)&"G")) ->  | O69: =IF(M69<15,"",HLOOKUP(M69,T_U11G_3_Events,3)) ->  | X69: =IF(P69=0,0,IF(C69="M",P69*1000+M69,0)) -> 0 | Y69: =IFERROR(IF(AND(P69>0,C69="M"), RANK(X69,$X$7:$X$68),0),0) -> 0 | Z69: =IF(R69>1,R69*1000+M69+ROW()/100,"") ->  | AG69: =IF(C69="M",M69,0) -> 0 | AH69: =IF(C69="F",M69,0) -> 0 | BD69: =IF($D69=BD$1,$M69,0) -> 0 | BE69: 0 | BF69: 0 | BG69: 0 | BH69: 0 | BI69: 0 | BJ69: 0 | BK69: 0 | BL69: 0 | BM69: 0 | BN69: =IF($D69=BN$1,$M69,0) -> 0 | BO69: 0 | BP69: 0 | BQ69: 0 | BR69: 0 | BS69: 0 | BT69: 0 | BU69: 0 | BV69: 0 | BW69: 0 | BX69: 0 | BY69: =AI69+BD69 -> 0 | BZ69: =AJ69+BE69 -> 0 | CA69: =AK69+BF69 -> 0 | CB69: =AL69+BG69 -> 0 | CC69: =AM69+BH69 -> 0 | CD69: =AN69+BI69 -> 0 | CE69: =AO69+BJ69 -> 0 | CF69: =AP69+BK69 -> 0 | CG69: =AQ69+BL69 -> 0 | CH69: =AR69+BM69 -> 0 | CI69: =AS69+BN69 -> 0 | CJ69: =AT69+BO69 -> 0 | CK69: =AU69+BP69 -> 0 | CL69: =AV69+BQ69 -> 0 | CM69: =AW69+BR69 -> 0 | CN69: =AX69+BS69 -> 0 | CO69: =AY69+BT69 -> 0 | CP69: =AZ69+BU69 -> 0 | CQ69: =BA69+BV69 -> 0 | CR69: =BB69+BW69 -> 0 | CS69: =BC69+BX69 -> 0
A70: =SUMPRODUCT((C7:C68="M")*(M7:M68>0)) -> 19 | B70: Athletes - Boys | F70: 0 | H70: 0 | J70: =IF(I70="NJ",0,IF(I70<'Scoring Tables'!$S$4,0,VLOOKUP(I70,T_Long,11,TRUE))) -> 0 | L70: =IF(K70="NT",0,IF(K70<'Scoring Tables'!$X$14,0,VLOOKUP(K70,T_Javlin,6,TRUE))) -> 0 | M70: =(LARGE((F70,H70),1)+J70+L70) -> 0 | AG70: 0 | AH70: 0 | BD70: 0 | BE70: 0 | BF70: 0 | BG70: 0 | BH70: 0 | BI70: 0 | BJ70: 0 | BK70: 0 | BL70: 0 | BM70: 0 | BN70: 0 | BO70: 0 | BP70: 0 | BQ70: 0 | BR70: 0 | BS70: 0 | BT70: 0 | BU70: 0 | BV70: 0 | BW70: 0 | BX70: 0 | BY70: 0 | BZ70: 0 | CA70: 0 | CB70: 0 | CC70: 0 | CD70: 0 | CE70: 0 | CF70: 0 | CG70: 0 | CH70: 0 | CI70: 0 | CJ70: 0 | CK70: 0 | CL70: 0 | CM70: 0 | CN70: 0 | CO70: 0 | CP70: 0 | CQ70: 0 | CR70: 0 | CS70: 0
H71: 0 | J71: =IF(I71="NJ",0,IF(I71<'Scoring Tables'!$S$4,0,VLOOKUP(I71,T_Long,11,TRUE))) -> 0 | AE71: 1 | AF71: A Team | AH71: Large (1) | AI71: =LARGE(AI$7:AI$70,$AE71) -> 0 | AJ71: =LARGE(AJ$7:AJ$70,1) -> 0 | AK71: =LARGE(AK$7:AK$70,$AE71) -> 156 | AL71: 0 | AM71: 0 | AN71: 104 | AO71: 120 | AP71: 0 | AQ71: 152 | AR71: 0 | AS71: 130 | AT71: 0 | AU71: =LARGE(AU$7:AU$70,$AE71) -> 103 | AV71: 0 | AW71: 83 | AX71: 0 | AY71: 129 | AZ71: 0 | BA71: 139 | BB71: 0 | BC71: 0 | BD71: 0 | BE71: =LARGE(BE$7:BE$70,$AE71) -> 0 | BF71: =LARGE(BF$7:BF$70,$AE71) -> 189 | BG71: 0 | BH71: 0 | BI71: 0 | BJ71: 103 | BK71: 0 | BL71: 147 | BM71: 0 | BN71: 163 | BO71: =LARGE(BO$7:BO$70,$AE71) -> 0 | BP71: 0 | BQ71: 0 | BR71: 169 | BS71: 0 | BT71: 161 | BU71: 0 | BV71: 146 | BW71: 0 | BX71: 0 | BY71: =LARGE(BY$7:BY$70,$AE71) -> 0 | BZ71: 0 | CA71: 189 | CB71: 0 | CC71: 0 | CD71: 104 | CE71: 120 | CF71: 0 | CG71: 152 | CH71: 0 | CI71: =LARGE(CI$7:CI$70,$AE71) -> 163 | CJ71: 0 | CK71: 103 | CL71: 0 | CM71: 169 | CN71: 0 | CO71: 161 | CP71: 0 | CQ71: 146 | CR71: 0 | CS71: 0
H72: 0 | J72: =IF(I72="NJ",0,IF(I72<'Scoring Tables'!$S$4,0,VLOOKUP(I72,T_Long,11,TRUE))) -> 0 | AE72: 2 | AH72: Large (2) | AI72: 0 | AJ72: =LARGE(AJ$7:AJ$70,2) -> 0 | AK72: 111 | AL72: 0 | AM72: 0 | AN72: 0 | AO72: 0 | AP72: 0 | AQ72: 126 | AR72: 0 | AS72: 0 | AT72: 0 | AU72: 0 | AV72: 0 | AW72: 0 | AX72: 0 | AY72: 110 | AZ72: 0 | BA72: 133 | BB72: 0 | BC72: 0 | BD72: 0 | BE72: 0 | BF72: 134 | BG72: 0 | BH72: 0 | BI72: 0 | BJ72: 103 | BK72: 0 | BL72: 0 | BM72: 0 | BN72: 0 | BO72: 0 | BP72: 0 | BQ72: 0 | BR72: 102 | BS72: 0 | BT72: 144 | BU72: 0 | BV72: 145 | BW72: 0 | BX72: 0 | BY72: 0 | BZ72: 0 | CA72: 156 | CB72: 0 | CC72: 0 | CD72: 0 | CE72: 103 | CF72: 0 | CG72: 147 | CH72: 0 | CI72: 130 | CJ72: 0 | CK72: 0 | CL72: 0 | CM72: 102 | CN72: 0 | CO72: 144 | CP72: 0 | CQ72: 145 | CR72: 0 | CS72: 0
AE73: 3 | AH73: Large (3) | AI73: 0 | AJ73: =LARGE(AJ$7:AJ$70,3) -> 0 | AK73: 0 | AL73: 0 | AM73: 0 | AN73: 0 | AO73: 0 | AP73: 0 | AQ73: 98 | AR73: 0 | AS73: 0 | AT73: 0 | AU73: 0 | AV73: 0 | AW73: 0 | AX73: 0 | AY73: 102 | AZ73: 0 | BA73: 128 | BB73: 0 | BC73: 0 | BD73: 0 | BE73: 0 | BF73: 113 | BG73: 0 | BH73: 0 | BI73: 0 | BJ73: 0 | BK73: 0 | BL73: 0 | BM73: 0 | BN73: 0 | BO73: 0 | BP73: 0 | BQ73: 0 | BR73: 99 | BS73: 0 | BT73: 135 | BU73: 0 | BV73: 141 | BW73: 0 | BX73: 0 | BY73: 0 | BZ73: 0 | CA73: 134 | CB73: 0 | CC73: 0 | CD73: 0 | CE73: 103 | CF73: 0 | CG73: 126 | CH73: 0 | CI73: 0 | CJ73: 0 | CK73: 0 | CL73: 0 | CM73: 99 | CN73: 0 | CO73: 135 | CP73: 0 | CQ73: 141 | CR73: 0 | CS73: 0
AB74: =(ROW()-73)*3 +1 -> 4 | AC74: =(ROW()-73)*3 +2 -> 5 | AD74: =(ROW()-73)*3 +3 -> 6 | AE74: 4 | AF74: B Team | AH74: Large (4) | AI74: 0 | AJ74: =LARGE(AJ$7:AJ$70,4) -> 0 | AK74: 0 | AL74: 0 | AM74: 0 | AN74: 0 | AO74: 0 | AP74: 0 | AQ74: 92 | AR74: 0 | AS74: 0 | AT74: 0 | AU74: 0 | AV74: 0 | AW74: 0 | AX74: 0 | AY74: 0 | AZ74: 0 | BA74: 122 | BB74: 0 | BC74: 0 | BD74: 0 | BE74: 0 | BF74: 0 | BG74: 0 | BH74: 0 | BI74: 0 | BJ74: 0 | BK74: 0 | BL74: 0 | BM74: 0 | BN74: 0 | BO74: 0 | BP74: 0 | BQ74: 0 | BR74: 0 | BS74: 0 | BT74: 125 | BU74: 0 | BV74: 114 | BW74: 0 | BX74: 0 | BY74: 0 | BZ74: 0 | CA74: 113 | CB74: 0 | CC74: 0 | CD74: 0 | CE74: 0 | CF74: 0 | CG74: 98 | CH74: 0 | CI74: 0 | CJ74: 0 | CK74: 0 | CL74: 0 | CM74: 83 | CN74: 0 | CO74: 129 | CP74: 0 | CQ74: 139 | CR74: 0 | CS74: 0
AB75: 7 | AC75: 8 | AD75: 9 | AE75: 5 | AH75: Large (5) | AI75: 0 | AJ75: =LARGE(AJ$7:AJ$70,5) -> 0 | AK75: 0 | AL75: 0 | AM75: 0 | AN75: 0 | AO75: 0 | AP75: 0 | AQ75: 0 | AR75: 0 | AS75: 0 | AT75: 0 | AU75: 0 | AV75: 0 | AW75: 0 | AX75: 0 | AY75: 0 | AZ75: 0 | BA75: 101 | BB75: 0 | BC75: 0 | BD75: 0 | BE75: 0 | BF75: 0 | BG75: 0 | BH75: 0 | BI75: 0 | BJ75: 0 | BK75: 0 | BL75: 0 | BM75: 0 | BN75: 0 | BO75: 0 | BP75: 0 | BQ75: 0 | BR75: 0 | BS75: 0 | BT75: 107 | BU75: 0 | BV75: 0 | BW75: 0 | BX75: 0 | BY75: 0 | BZ75: 0 | CA75: 111 | CB75: 0 | CC75: 0 | CD75: 0 | CE75: 0 | CF75: 0 | CG75: 92 | CH75: 0 | CI75: 0 | CJ75: 0 | CK75: 0 | CL75: 0 | CM75: 0 | CN75: 0 | CO75: 125 | CP75: 0 | CQ75: 133 | CR75: 0 | CS75: 0
AB76: 10 | AC76: 11 | AD76: 12 | AE76: 6 | AH76: Large (6) | AI76: 0 | AJ76: =LARGE(AJ$7:AJ$70,6) -> 0 | AK76: 0 | AL76: 0 | AM76: 0 | AN76: 0 | AO76: 0 | AP76: 0 | AQ76: 0 | AR76: 0 | AS76: 0 | AT76: 0 | AU76: 0 | AV76: 0 | AW76: 0 | AX76: 0 | AY76: 0 | AZ76: 0 | BA76: 0 | BB76: 0 | BC76: 0 | BD76: 0 | BE76: 0 | BF76: 0 | BG76: 0 | BH76: 0 | BI76: 0 | BJ76: 0 | BK76: 0 | BL76: 0 | BM76: 0 | BN76: 0 | BO76: 0 | BP76: 0 | BQ76: 0 | BR76: 0 | BS76: 0 | BT76: 0 | BU76: 0 | BV76: 0 | BW76: 0 | BX76: 0 | BY76: 0 | BZ76: 0 | CA76: 0 | CB76: 0 | CC76: 0 | CD76: 0 | CE76: 0 | CF76: 0 | CG76: 0 | CH76: 0 | CI76: 0 | CJ76: 0 | CK76: 0 | CL76: 0 | CM76: 0 | CN76: 0 | CO76: 110 | CP76: 0 | CQ76: 128 | CR76: 0 | CS76: 0
AB77: 13 | AC77: 14 | AD77: 15 | AE77: 7 | AF77: C Team | AH77: Large (7) | AI77: 0 | AK77: 0 | AL77: 0 | AM77: 0 | AN77: 0 | AO77: 0 | AP77: 0 | AQ77: 0 | AR77: 0 | AS77: 0 | AT77: 0 | AU77: 0 | AV77: 0 | AW77: 0 | AX77: 0 | AY77: 0 | AZ77: 0 | BA77: 0 | BB77: 0 | BC77: 0 | BD77: 0 | BE77: 0 | BF77: 0 | BG77: 0 | BH77: 0 | BI77: 0 | BJ77: 0 | BK77: 0 | BL77: 0 | BM77: 0 | BN77: 0 | BO77: 0 | BP77: 0 | BQ77: 0 | BR77: 0 | BS77: 0 | BT77: 0 | BU77: 0 | BV77: 0 | BW77: 0 | BX77: 0 | BY77: 0 | BZ77: 0 | CA77: 0 | CB77: 0 | CC77: 0 | CD77: 0 | CE77: 0 | CF77: 0 | CG77: 0 | CH77: 0 | CI77: 0 | CJ77: 0 | CK77: 0 | CL77: 0 | CM77: 0 | CN77: 0 | CO77: 107 | CP77: 0 | CQ77: 122 | CR77: 0 | CS77: 0
AB78: 16 | AC78: 17 | AD78: 18 | AE78: 8 | AH78: Large (8) | AI78: 0 | AK78: 0 | AL78: 0 | AM78: 0 | AN78: 0 | AO78: 0 | AP78: 0 | AQ78: 0 | AR78: 0 | AS78: 0 | AT78: 0 | AU78: 0 | AV78: 0 | AW78: 0 | AX78: 0 | AY78: 0 | AZ78: 0 | BA78: 0 | BB78: 0 | BC78: 0 | BD78: 0 | BE78: 0 | BF78: 0 | BG78: 0 | BH78: 0 | BI78: 0 | BJ78: 0 | BK78: 0 | BL78: 0 | BM78: 0 | BN78: 0 | BO78: 0 | BP78: 0 | BQ78: 0 | BR78: 0 | BS78: 0 | BT78: 0 | BU78: 0 | BV78: 0 | BW78: 0 | BX78: 0 | BY78: 0 | BZ78: 0 | CA78: 0 | CB78: 0 | CC78: 0 | CD78: 0 | CE78: 0 | CF78: 0 | CG78: 0 | CH78: 0 | CI78: 0 | CJ78: 0 | CK78: 0 | CL78: 0 | CM78: 0 | CN78: 0 | CO78: 102 | CP78: 0 | CQ78: 114 | CR78: 0 | CS78: 0
AB79: 19 | AC79: 20 | AD79: 21 | AE79: 9 | AH79: Large (9) | AI79: 0 | AK79: 0 | AL79: 0 | AM79: 0 | AN79: 0 | AO79: 0 | AP79: 0 | AQ79: 0 | AR79: 0 | AS79: 0 | AT79: 0 | AU79: 0 | AV79: 0 | AW79: 0 | AX79: 0 | AY79: 0 | AZ79: 0 | BA79: 0 | BB79: 0 | BC79: 0 | BD79: 0 | BE79: 0 | BF79: 0 | BG79: 0 | BH79: 0 | BI79: 0 | BJ79: 0 | BK79: 0 | BL79: 0 | BM79: 0 | BN79: 0 | BO79: 0 | BP79: 0 | BQ79: 0 | BR79: 0 | BS79: 0 | BT79: 0 | BU79: 0 | BV79: 0 | BW79: 0 | BX79: 0 | BY79: 0 | BZ79: 0 | CA79: 0 | CB79: 0 | CC79: 0 | CD79: 0 | CE79: 0 | CF79: 0 | CG79: 0 | CH79: 0 | CI79: 0 | CJ79: 0 | CK79: 0 | CL79: 0 | CM79: 0 | CN79: 0 | CO79: 0 | CP79: 0 | CQ79: 101 | CR79: 0 | CS79: 0
AB80: 22 | AC80: 23 | AD80: 24 | AE80: 10 | AF80: D Team | AH80: Large (10) | AI80: 0 | AJ80: =LARGE(AJ$7:AJ$70,8) -> 0 | AK80: 0 | AL80: 0 | AM80: 0 | AN80: 0 | AO80: 0 | AP80: 0 | AQ80: 0 | AR80: 0 | AS80: 0 | AT80: 0 | AU80: 0 | AV80: 0 | AW80: 0 | AX80: 0 | AY80: 0 | AZ80: 0 | BA80: 0 | BB80: 0 | BC80: 0 | BD80: 0 | BE80: 0 | BF80: 0 | BG80: 0 | BH80: 0 | BI80: 0 | BJ80: 0 | BK80: 0 | BL80: 0 | BM80: 0 | BN80: 0 | BO80: 0 | BP80: 0 | BQ80: 0 | BR80: 0 | BS80: 0 | BT80: 0 | BU80: 0 | BV80: 0 | BW80: 0 | BX80: 0 | BY80: 0 | BZ80: 0 | CA80: 0 | CB80: 0 | CC80: 0 | CD80: 0 | CE80: 0 | CF80: 0 | CG80: 0 | CH80: 0 | CI80: 0 | CJ80: 0 | CK80: 0 | CL80: 0 | CM80: 0 | CN80: 0 | CO80: 0 | CP80: 0 | CQ80: 0 | CR80: 0 | CS80: 0
AB81: 25 | AC81: 26 | AD81: 27 | AE81: 11 | AH81: Large (11) | AI81: 0 | AJ81: =LARGE(AJ$7:AJ$70,7) -> 0 | AK81: 0 | AL81: 0 | AM81: 0 | AN81: 0 | AO81: 0 | AP81: 0 | AQ81: 0 | AR81: 0 | AS81: 0 | AT81: 0 | AU81: 0 | AV81: 0 | AW81: 0 | AX81: 0 | AY81: 0 | AZ81: 0 | BA81: 0 | BB81: 0 | BC81: 0 | BD81: 0 | BE81: 0 | BF81: 0 | BG81: 0 | BH81: 0 | BI81: 0 | BJ81: 0 | BK81: 0 | BL81: 0 | BM81: 0 | BN81: 0 | BO81: 0 | BP81: 0 | BQ81: 0 | BR81: 0 | BS81: 0 | BT81: 0 | BU81: 0 | BV81: 0 | BW81: 0 | BX81: 0 | BY81: 0 | BZ81: 0 | CA81: 0 | CB81: 0 | CC81: 0 | CD81: 0 | CE81: 0 | CF81: 0 | CG81: 0 | CH81: 0 | CI81: 0 | CJ81: 0 | CK81: 0 | CL81: 0 | CM81: 0 | CN81: 0 | CO81: 0 | CP81: 0 | CQ81: 0 | CR81: 0 | CS81: 0 | CT81: =SUM(BY84:CS84) -> 38
AB82: 28 | AC82: 29 | AD82: 30 | AE82: 12 | AH82: Large (12) | AI82: 0 | AJ82: =LARGE(AJ$7:AJ$70,9) -> 0 | AK82: 0 | AL82: 0 | AM82: 0 | AN82: 0 | AO82: 0 | AP82: 0 | AQ82: 0 | AR82: 0 | AS82: 0 | AT82: 0 | AU82: 0 | AV82: 0 | AW82: 0 | AX82: 0 | AY82: 0 | AZ82: 0 | BA82: 0 | BB82: 0 | BC82: 0 | BD82: 0 | BE82: 0 | BF82: 0 | BG82: 0 | BH82: 0 | BI82: 0 | BJ82: 0 | BK82: 0 | BL82: 0 | BM82: 0 | BN82: 0 | BO82: 0 | BP82: 0 | BQ82: 0 | BR82: 0 | BS82: 0 | BT82: 0 | BU82: 0 | BV82: 0 | BW82: 0 | BX82: 0 | BY82: 0 | BZ82: 0 | CA82: 0 | CB82: 0 | CC82: 0 | CD82: 0 | CE82: 0 | CF82: 0 | CG82: 0 | CH82: 0 | CI82: 0 | CJ82: 0 | CK82: 0 | CL82: 0 | CM82: 0 | CN82: 0 | CO82: 0 | CP82: 0 | CQ82: 0 | CR82: 0 | CS82: 0
AB83: =(ROW()-73)*3 +1 -> 31 | AC83: =(ROW()-73)*3 +2 -> 32 | AD83: =(ROW()-73)*3 +3 -> 33 | AI83: =IF(COUNTIF(AI80:AI82,">0")>2,SUM(AI80:AI82),0) -> 0 | AJ83: 0 | AK83: 0 | AL83: 0 | AM83: 0 | AN83: 0 | AO83: 0 | AP83: 0 | AQ83: 0 | AR83: 0 | AS83: 0 | AT83: 0 | AU83: 0 | AV83: 0 | AW83: 0 | AX83: 0 | AY83: 0 | AZ83: 0 | BA83: 0 | BB83: 0 | BC83: 0 | BD83: =SUM(BD80:BD82) -> 0 | BE83: 0 | BF83: 0 | BG83: 0 | BH83: 0 | BI83: 0 | BJ83: 0 | BK83: 0 | BL83: 0 | BM83: 0 | BN83: 0 | BO83: 0 | BP83: 0 | BQ83: 0 | BR83: 0 | BS83: 0 | BT83: 0 | BU83: 0 | BV83: 0 | BW83: 0 | BX83: 0 | BY83: 0 | BZ83: 0 | CA83: 0 | CB83: 0 | CC83: 0 | CD83: 0 | CE83: 0 | CF83: 0 | CG83: 0 | CH83: 0 | CI83: 0 | CJ83: 0 | CK83: 0 | CL83: 0 | CM83: 0 | CN83: 0 | CO83: 0 | CP83: 0 | CQ83: 0 | CR83: 0 | CS83: 0
A84: MIXED TEAMS | H84: =IF(G84="DNF",0,IF(G84=0,0,VLOOKUP(G84,T_800m,11,TRUE)-1)) -> 0 | J84: =IF(I84="NJ",0,IF(I84<'Scoring Tables'!$S$4,0,VLOOKUP(I84,T_Long,11,TRUE))) -> 0 | P84: Total | R84: Team | AB84: =(ROW()-73)*3 +1 -> 34 | AC84: =(ROW()-73)*3 +2 -> 35 | AD84: =(ROW()-73)*3 +3 -> 36 | AH84: No in Team | AI84: =COUNTIF(AI7:AI70,">0") -> 0 | AJ84: 0 | AK84: 2 | AL84: 0 | AM84: 0 | AN84: 1 | AO84: 1 | AP84: 0 | AQ84: 4 | AR84: 0 | AS84: 1 | AT84: 0 | AU84: 1 | AV84: 0 | AW84: 1 | AX84: 0 | AY84: 3 | AZ84: 0 | BA84: 5 | BB84: 0 | BC84: 0 | BD84: 0 | BE84: 0 | BF84: =COUNTIF(BF7:BF70,">0") -> 3 | BG84: 0 | BH84: 0 | BI84: 0 | BJ84: 2 | BK84: 0 | BL84: 1 | BM84: 0 | BN84: 1 | BO84: =COUNTIF(BO7:BO70,">0") -> 0 | BP84: 0 | BQ84: 0 | BR84: 3 | BS84: 0 | BT84: 5 | BU84: 0 | BV84: 4 | BW84: 0 | BX84: 0 | BY84: 0 | BZ84: 0 | CA84: 5 | CB84: 0 | CC84: 0 | CD84: 1 | CE84: 3 | CF84: 0 | CG84: 5 | CH84: 0 | CI84: 2 | CJ84: 0 | CK84: 1 | CL84: 0 | CM84: 4 | CN84: 0 | CO84: 8 | CP84: 0 | CQ84: 9 | CR84: 0 | CS84: 0
A85: 1 | B85: =OFFSET($D$6,T85,0,1,1) -> Crewe & Nantwich | C85: =IFERROR(VLOOKUP(R85,$AB$94:$AD$105,3,1),0) ->  | D85: =OFFSET($B$6,T85,0,1,1) -> Atkinson, Oliver | E85: =OFFSET($M$6,T85,0,1,1) -> 189 | G85: =OFFSET($B$6,U85,0,1,1) -> Wilding, Esther | I85: =OFFSET($M$6,U85,0,1,1) -> 156 | K85: =OFFSET($B$6,S85,0,1,1) -> Stokes, Thomas | M85: =OFFSET($M$6,S85,0,1,1) -> 134 | P85: =OFFSET($R$6,T85,0,1,1) -> 479 | R85: =COUNTIF($B$85:B85,B85) -> 1 | S85: =MATCH((ROW()-85)*3 +3,$AA$7:$AA$51,0) -> 25 | T85: =MATCH((ROW()-85)*3 +1,$AA$7:$AA$51,0) -> 23 | U85: =MATCH((ROW()-85)*3 +2,$AA$7:$AA$51,0) -> 2 | AF85: A Team | AH85: Eligible Teams | AI85: =IFERROR(IF(AI$84>=3,SUM(AI71:AI73),0),0) -> 0 | AJ85: =IFERROR(IF(AJ$84>=3,SUM(AJ71:AJ73),0),0) -> 0 | AK85: 0 | AL85: 0 | AM85: 0 | AN85: 0 | AO85: 0 | AP85: 0 | AQ85: 376 | AR85: 0 | AS85: 0 | AT85: 0 | AU85: 0 | AV85: 0 | AW85: 0 | AX85: 0 | AY85: 341 | AZ85: 0 | BA85: 400 | BB85: 0 | BC85: 0 | BD85: 0 | BE85: 0 | BF85: 436 | BG85: 0 | BH85: 0 | BI85: 0 | BJ85: 0 | BK85: 0 | BL85: 0 | BM85: 0 | BN85: 0 | BO85: 0 | BP85: 0 | BQ85: 0 | BR85: 370 | BS85: 0 | BT85: 440 | BU85: 0 | BV85: 432 | BW85: 0 | BX85: 0 | BY85: 0 | BZ85: 0 | CA85: 479 | CB85: 0 | CC85: 0 | CD85: 0 | CE85: 326 | CF85: 0 | CG85: 425 | CH85: 0 | CI85: 0 | CJ85: 0 | CK85: 0 | CL85: 0 | CM85: 370 | CN85: 0 | CO85: 440 | CP85: 0 | CQ85: 432 | CR85: 0 | CS85: 0
A86: =A85+1 -> 2 | B86: Vale Royal | C86: =IFERROR(VLOOKUP(R86,$AB$94:$AD$105,3,1),0) ->  | D86: Griffith, Patrick | E86: 161 | G86: Carney, Dylan | I86: 144 | K86: Thorn, Ben | M86: 135 | P86: 440 | R86: =COUNTIF($B$85:B86,B86) -> 1 | S86: =MATCH((ROW()-85)*3 +3,$AA$7:$AA$51,0) -> 40 | T86: =MATCH((ROW()-85)*3 +1,$AA$7:$AA$51,0) -> 37 | U86: =MATCH((ROW()-85)*3 +2,$AA$7:$AA$51,0) -> 36 | AF86: B Team | AH86: Eligible Teams | AI86: =IFERROR(IF(AI$84>=6,SUM(AI$74:AI76),0),0) -> 0 | AJ86: =IFERROR(IF(AJ$84>=6,SUM(AJ$74:AJ76),0),0) -> 0 | AK86: =IFERROR(IF(AK$84>=6,SUM(AK$74:AK76),0),0) -> 0 | AL86: =IFERROR(IF(AL$84>=6,SUM(AL$74:AL76),0),0) -> 0 | AM86: =IFERROR(IF(AM$84>=6,SUM(AM$74:AM76),0),0) -> 0 | AN86: =IFERROR(IF(AN$84>=6,SUM(AN$74:AN76),0),0) -> 0 | AO86: =IFERROR(IF(AO$84>=6,SUM(AO$74:AO76),0),0) -> 0 | AP86: =IFERROR(IF(AP$84>=6,SUM(AP$74:AP76),0),0) -> 0 | AQ86: =IFERROR(IF(AQ$84>=6,SUM(AQ$74:AQ76),0),0) -> 0 | AR86: =IFERROR(IF(AR$84>=6,SUM(AR$74:AR76),0),0) -> 0 | AS86: =IFERROR(IF(AS$84>=6,SUM(AS$74:AS76),0),0) -> 0 | AT86: =IFERROR(IF(AT$84>=6,SUM(AT$74:AT76),0),0) -> 0 | AU86: =IFERROR(IF(AU$84>=6,SUM(AU$74:AU76),0),0) -> 0 | AV86: =IFERROR(IF(AV$84>=6,SUM(AV$74:AV76),0),0) -> 0 | AW86: =IFERROR(IF(AW$84>=6,SUM(AW$74:AW76),0),0) -> 0 | AX86: =IFERROR(IF(AX$84>=6,SUM(AX$74:AX76),0),0) -> 0 | AY86: =IFERROR(IF(AY$84>=6,SUM(AY$74:AY76),0),0) -> 0 | AZ86: =IFERROR(IF(AZ$84>=6,SUM(AZ$74:AZ76),0),0) -> 0 | BA86: =IFERROR(IF(BA$84>=6,SUM(BA$74:BA76),0),0) -> 0 | BB86: =IFERROR(IF(BB$84>=6,SUM(BB$74:BB76),0),0) -> 0 | BC86: =IFERROR(IF(BC$84>=6,SUM(BC$74:BC76),0),0) -> 0 | BD86: =IFERROR(IF(BD$84>=6,SUM(BD$74:BD76),0),0) -> 0 | BE86: =IFERROR(IF(BE$84>=6,SUM(BE$74:BE76),0),0) -> 0 | BF86: =IFERROR(IF(BF$84>=6,SUM(BF$74:BF76),0),0) -> 0 | BG86: =IFERROR(IF(BG$84>=6,SUM(BG$74:BG76),0),0) -> 0 | BH86: =IFERROR(IF(BH$84>=6,SUM(BH$74:BH76),0),0) -> 0 | BI86: =IFERROR(IF(BI$84>=6,SUM(BI$74:BI76),0),0) -> 0 | BJ86: =IFERROR(IF(BJ$84>=6,SUM(BJ$74:BJ76),0),0) -> 0 | BK86: =IFERROR(IF(BK$84>=6,SUM(BK$74:BK76),0),0) -> 0 | BL86: =IFERROR(IF(BL$84>=6,SUM(BL$74:BL76),0),0) -> 0 | BM86: =IFERROR(IF(BM$84>=6,SUM(BM$74:BM76),0),0) -> 0 | BN86: =IFERROR(IF(BN$84>=6,SUM(BN$74:BN76),0),0) -> 0 | BO86: =IFERROR(IF(BO$84>=6,SUM(BO$74:BO76),0),0) -> 0 | BP86: =IFERROR(IF(BP$84>=6,SUM(BP$74:BP76),0),0) -> 0 | BQ86: =IFERROR(IF(BQ$84>=6,SUM(BQ$74:BQ76),0),0) -> 0 | BR86: =IFERROR(IF(BR$84>=6,SUM(BR$74:BR76),0),0) -> 0 | BS86: =IFERROR(IF(BS$84>=6,SUM(BS$74:BS76),0),0) -> 0 | BT86: =IFERROR(IF(BT$84>=6,SUM(BT$74:BT76),0),0) -> 0 | BU86: =IFERROR(IF(BU$84>=6,SUM(BU$74:BU76),0),0) -> 0 | BV86: =IFERROR(IF(BV$84>=6,SUM(BV$74:BV76),0),0) -> 0 | BW86: =IFERROR(IF(BW$84>=6,SUM(BW$74:BW76),0),0) -> 0 | BX86: =IFERROR(IF(BX$84>=6,SUM(BX$74:BX76),0),0) -> 0 | BY86: =IFERROR(IF(BY$84>=6,SUM(BY$74:BY76),0),0) -> 0 | BZ86: =IFERROR(IF(BZ$84>=6,SUM(BZ$74:BZ76),0),0) -> 0 | CA86: =IFERROR(IF(CA$84>=6,SUM(CA$74:CA76),0),0) -> 0 | CB86: =IFERROR(IF(CB$84>=6,SUM(CB$74:CB76),0),0) -> 0 | CC86: =IFERROR(IF(CC$84>=6,SUM(CC$74:CC76),0),0) -> 0 | CD86: =IFERROR(IF(CD$84>=6,SUM(CD$74:CD76),0),0) -> 0 | CE86: =IFERROR(IF(CE$84>=6,SUM(CE$74:CE76),0),0) -> 0 | CF86: =IFERROR(IF(CF$84>=6,SUM(CF$74:CF76),0),0) -> 0 | CG86: =IFERROR(IF(CG$84>=6,SUM(CG$74:CG76),0),0) -> 0 | CH86: =IFERROR(IF(CH$84>=6,SUM(CH$74:CH76),0),0) -> 0 | CI86: =IFERROR(IF(CI$84>=6,SUM(CI$74:CI76),0),0) -> 0 | CJ86: =IFERROR(IF(CJ$84>=6,SUM(CJ$74:CJ76),0),0) -> 0 | CK86: =IFERROR(IF(CK$84>=6,SUM(CK$74:CK76),0),0) -> 0 | CL86: =IFERROR(IF(CL$84>=6,SUM(CL$74:CL76),0),0) -> 0 | CM86: =IFERROR(IF(CM$84>=6,SUM(CM$74:CM76),0),0) -> 0 | CN86: =IFERROR(IF(CN$84>=6,SUM(CN$74:CN76),0),0) -> 0 | CO86: =IFERROR(IF(CO$84>=6,SUM(CO$74:CO76),0),0) -> 364 | CP86: =IFERROR(IF(CP$84>=6,SUM(CP$74:CP76),0),0) -> 0 | CQ86: =IFERROR(IF(CQ$84>=6,SUM(CQ$74:CQ76),0),0) -> 400 | CR86: =IFERROR(IF(CR$84>=6,SUM(CR$74:CR76),0),0) -> 0 | CS86: =IFERROR(IF(CS$84>=6,SUM(CS$74:CS76),0),0) -> 0
A87: =A86+1 -> 3 | B87: West Cheshire | D87: Onomerike, Uzezi | E87: 146 | G87: Grinter, Zac | I87: 145 | K87: Shakespeare-Wetton, Harley | M87: 141 | P87: 432 | R87: =COUNTIF($B$85:B87,B87) -> 1 | S87: 44 | T87: 43 | U87: 42 | AF87: C Team | AH87: Eligible Teams | AI87: =IFERROR(IF(AI$84>=9,SUM(AI$77:AI79),0),0) -> 0 | AJ87: =IFERROR(IF(AJ$84>=9,SUM(AJ$77:AJ79),0),0) -> 0 | AK87: =IFERROR(IF(AK$84>=9,SUM(AK$77:AK79),0),0) -> 0 | AL87: =IFERROR(IF(AL$84>=9,SUM(AL$77:AL79),0),0) -> 0 | AM87: =IFERROR(IF(AM$84>=9,SUM(AM$77:AM79),0),0) -> 0 | AN87: =IFERROR(IF(AN$84>=9,SUM(AN$77:AN79),0),0) -> 0 | AO87: =IFERROR(IF(AO$84>=9,SUM(AO$77:AO79),0),0) -> 0 | AP87: =IFERROR(IF(AP$84>=9,SUM(AP$77:AP79),0),0) -> 0 | AQ87: =IFERROR(IF(AQ$84>=9,SUM(AQ$77:AQ79),0),0) -> 0 | AR87: =IFERROR(IF(AR$84>=9,SUM(AR$77:AR79),0),0) -> 0 | AS87: =IFERROR(IF(AS$84>=9,SUM(AS$77:AS79),0),0) -> 0 | AT87: =IFERROR(IF(AT$84>=9,SUM(AT$77:AT79),0),0) -> 0 | AU87: =IFERROR(IF(AU$84>=9,SUM(AU$77:AU79),0),0) -> 0 | AV87: =IFERROR(IF(AV$84>=9,SUM(AV$77:AV79),0),0) -> 0 | AW87: =IFERROR(IF(AW$84>=9,SUM(AW$77:AW79),0),0) -> 0 | AX87: =IFERROR(IF(AX$84>=9,SUM(AX$77:AX79),0),0) -> 0 | AY87: =IFERROR(IF(AY$84>=9,SUM(AY$77:AY79),0),0) -> 0 | AZ87: =IFERROR(IF(AZ$84>=9,SUM(AZ$77:AZ79),0),0) -> 0 | BA87: =IFERROR(IF(BA$84>=9,SUM(BA$77:BA79),0),0) -> 0 | BB87: =IFERROR(IF(BB$84>=9,SUM(BB$77:BB79),0),0) -> 0 | BC87: =IFERROR(IF(BC$84>=9,SUM(BC$77:BC79),0),0) -> 0 | BD87: =IFERROR(IF(BD$84>=9,SUM(BD$77:BD79),0),0) -> 0 | BE87: =IFERROR(IF(BE$84>=9,SUM(BE$77:BE79),0),0) -> 0 | BF87: =IFERROR(IF(BF$84>=9,SUM(BF$77:BF79),0),0) -> 0 | BG87: =IFERROR(IF(BG$84>=9,SUM(BG$77:BG79),0),0) -> 0 | BH87: =IFERROR(IF(BH$84>=9,SUM(BH$77:BH79),0),0) -> 0 | BI87: =IFERROR(IF(BI$84>=9,SUM(BI$77:BI79),0),0) -> 0 | BJ87: =IFERROR(IF(BJ$84>=9,SUM(BJ$77:BJ79),0),0) -> 0 | BK87: =IFERROR(IF(BK$84>=9,SUM(BK$77:BK79),0),0) -> 0 | BL87: =IFERROR(IF(BL$84>=9,SUM(BL$77:BL79),0),0) -> 0 | BM87: =IFERROR(IF(BM$84>=9,SUM(BM$77:BM79),0),0) -> 0 | BN87: =IFERROR(IF(BN$84>=9,SUM(BN$77:BN79),0),0) -> 0 | BO87: =IFERROR(IF(BO$84>=9,SUM(BO$77:BO79),0),0) -> 0 | BP87: =IFERROR(IF(BP$84>=9,SUM(BP$77:BP79),0),0) -> 0 | BQ87: =IFERROR(IF(BQ$84>=9,SUM(BQ$77:BQ79),0),0) -> 0 | BR87: =IFERROR(IF(BR$84>=9,SUM(BR$77:BR79),0),0) -> 0 | BS87: =IFERROR(IF(BS$84>=9,SUM(BS$77:BS79),0),0) -> 0 | BT87: =IFERROR(IF(BT$84>=9,SUM(BT$77:BT79),0),0) -> 0 | BU87: =IFERROR(IF(BU$84>=9,SUM(BU$77:BU79),0),0) -> 0 | BV87: =IFERROR(IF(BV$84>=9,SUM(BV$77:BV79),0),0) -> 0 | BW87: =IFERROR(IF(BW$84>=9,SUM(BW$77:BW79),0),0) -> 0 | BX87: =IFERROR(IF(BX$84>=9,SUM(BX$77:BX79),0),0) -> 0 | BY87: =IFERROR(IF(BY$84>=9,SUM(BY$77:BY79),0),0) -> 0 | BZ87: =IFERROR(IF(BZ$84>=9,SUM(BZ$77:BZ79),0),0) -> 0 | CA87: =IFERROR(IF(CA$84>=9,SUM(CA$77:CA79),0),0) -> 0 | CB87: =IFERROR(IF(CB$84>=9,SUM(CB$77:CB79),0),0) -> 0 | CC87: =IFERROR(IF(CC$84>=9,SUM(CC$77:CC79),0),0) -> 0 | CD87: =IFERROR(IF(CD$84>=9,SUM(CD$77:CD79),0),0) -> 0 | CE87: =IFERROR(IF(CE$84>=9,SUM(CE$77:CE79),0),0) -> 0 | CF87: =IFERROR(IF(CF$84>=9,SUM(CF$77:CF79),0),0) -> 0 | CG87: =IFERROR(IF(CG$84>=9,SUM(CG$77:CG79),0),0) -> 0 | CH87: =IFERROR(IF(CH$84>=9,SUM(CH$77:CH79),0),0) -> 0 | CI87: =IFERROR(IF(CI$84>=9,SUM(CI$77:CI79),0),0) -> 0 | CJ87: =IFERROR(IF(CJ$84>=9,SUM(CJ$77:CJ79),0),0) -> 0 | CK87: =IFERROR(IF(CK$84>=9,SUM(CK$77:CK79),0),0) -> 0 | CL87: =IFERROR(IF(CL$84>=9,SUM(CL$77:CL79),0),0) -> 0 | CM87: =IFERROR(IF(CM$84>=9,SUM(CM$77:CM79),0),0) -> 0 | CN87: =IFERROR(IF(CN$84>=9,SUM(CN$77:CN79),0),0) -> 0 | CO87: =IFERROR(IF(CO$84>=9,SUM(CO$77:CO79),0),0) -> 0 | CP87: =IFERROR(IF(CP$84>=9,SUM(CP$77:CP79),0),0) -> 0 | CQ87: =IFERROR(IF(CQ$84>=9,SUM(CQ$77:CQ79),0),0) -> 337 | CR87: =IFERROR(IF(CR$84>=9,SUM(CR$77:CR79),0),0) -> 0 | CS87: =IFERROR(IF(CS$84>=9,SUM(CS$77:CS79),0),0) -> 0
A88: 4 | B88: Macclesfield H | D88: Barry, Keira | E88: 152 | G88: Blunn, Hayden | I88: 147 | K88: Carroll, Serena | M88: 126 | P88: 425 | R88: =COUNTIF($B$85:B88,B88) -> 1 | S88: 6 | T88: 5 | U88: 28 | AF88: D Team | AH88: Eligible Teams | AI88: =IFERROR(IF(AI$84>=12,SUM(AI$80:AI82),0),0) -> 0 | AJ88: =IFERROR(IF(AJ$84>=12,SUM(AJ$80:AJ82),0),0) -> 0 | AK88: =IFERROR(IF(AK$84>=12,SUM(AK$80:AK82),0),0) -> 0 | AL88: =IFERROR(IF(AL$84>=12,SUM(AL$80:AL82),0),0) -> 0 | AM88: =IFERROR(IF(AM$84>=12,SUM(AM$80:AM82),0),0) -> 0 | AN88: =IFERROR(IF(AN$84>=12,SUM(AN$80:AN82),0),0) -> 0 | AO88: =IFERROR(IF(AO$84>=12,SUM(AO$80:AO82),0),0) -> 0 | AP88: =IFERROR(IF(AP$84>=12,SUM(AP$80:AP82),0),0) -> 0 | AQ88: =IFERROR(IF(AQ$84>=12,SUM(AQ$80:AQ82),0),0) -> 0 | AR88: =IFERROR(IF(AR$84>=12,SUM(AR$80:AR82),0),0) -> 0 | AS88: =IFERROR(IF(AS$84>=12,SUM(AS$80:AS82),0),0) -> 0 | AT88: =IFERROR(IF(AT$84>=12,SUM(AT$80:AT82),0),0) -> 0 | AU88: =IFERROR(IF(AU$84>=12,SUM(AU$80:AU82),0),0) -> 0 | AV88: =IFERROR(IF(AV$84>=12,SUM(AV$80:AV82),0),0) -> 0 | AW88: =IFERROR(IF(AW$84>=12,SUM(AW$80:AW82),0),0) -> 0 | AX88: =IFERROR(IF(AX$84>=12,SUM(AX$80:AX82),0),0) -> 0 | AY88: =IFERROR(IF(AY$84>=12,SUM(AY$80:AY82),0),0) -> 0 | AZ88: =IFERROR(IF(AZ$84>=12,SUM(AZ$80:AZ82),0),0) -> 0 | BA88: =IFERROR(IF(BA$84>=12,SUM(BA$80:BA82),0),0) -> 0 | BB88: =IFERROR(IF(BB$84>=12,SUM(BB$80:BB82),0),0) -> 0 | BC88: =IFERROR(IF(BC$84>=12,SUM(BC$80:BC82),0),0) -> 0 | BD88: =IFERROR(IF(BD$84>=12,SUM(BD$80:BD82),0),0) -> 0 | BE88: =IFERROR(IF(BE$84>=12,SUM(BE$80:BE82),0),0) -> 0 | BF88: =IFERROR(IF(BF$84>=12,SUM(BF$80:BF82),0),0) -> 0 | BG88: =IFERROR(IF(BG$84>=12,SUM(BG$80:BG82),0),0) -> 0 | BH88: =IFERROR(IF(BH$84>=12,SUM(BH$80:BH82),0),0) -> 0 | BI88: =IFERROR(IF(BI$84>=12,SUM(BI$80:BI82),0),0) -> 0 | BJ88: =IFERROR(IF(BJ$84>=12,SUM(BJ$80:BJ82),0),0) -> 0 | BK88: =IFERROR(IF(BK$84>=12,SUM(BK$80:BK82),0),0) -> 0 | BL88: =IFERROR(IF(BL$84>=12,SUM(BL$80:BL82),0),0) -> 0 | BM88: =IFERROR(IF(BM$84>=12,SUM(BM$80:BM82),0),0) -> 0 | BN88: =IFERROR(IF(BN$84>=12,SUM(BN$80:BN82),0),0) -> 0 | BO88: =IFERROR(IF(BO$84>=12,SUM(BO$80:BO82),0),0) -> 0 | BP88: =IFERROR(IF(BP$84>=12,SUM(BP$80:BP82),0),0) -> 0 | BQ88: =IFERROR(IF(BQ$84>=12,SUM(BQ$80:BQ82),0),0) -> 0 | BR88: =IFERROR(IF(BR$84>=12,SUM(BR$80:BR82),0),0) -> 0 | BS88: =IFERROR(IF(BS$84>=12,SUM(BS$80:BS82),0),0) -> 0 | BT88: =IFERROR(IF(BT$84>=12,SUM(BT$80:BT82),0),0) -> 0 | BU88: =IFERROR(IF(BU$84>=12,SUM(BU$80:BU82),0),0) -> 0 | BV88: =IFERROR(IF(BV$84>=12,SUM(BV$80:BV82),0),0) -> 0 | BW88: =IFERROR(IF(BW$84>=12,SUM(BW$80:BW82),0),0) -> 0 | BX88: =IFERROR(IF(BX$84>=12,SUM(BX$80:BX82),0),0) -> 0 | BY88: =IFERROR(IF(BY$84>=12,SUM(BY$80:BY82),0),0) -> 0 | BZ88: =IFERROR(IF(BZ$84>=12,SUM(BZ$80:BZ82),0),0) -> 0 | CA88: =IFERROR(IF(CA$84>=12,SUM(CA$80:CA82),0),0) -> 0 | CB88: =IFERROR(IF(CB$84>=12,SUM(CB$80:CB82),0),0) -> 0 | CC88: =IFERROR(IF(CC$84>=12,SUM(CC$80:CC82),0),0) -> 0 | CD88: =IFERROR(IF(CD$84>=12,SUM(CD$80:CD82),0),0) -> 0 | CE88: =IFERROR(IF(CE$84>=12,SUM(CE$80:CE82),0),0) -> 0 | CF88: =IFERROR(IF(CF$84>=12,SUM(CF$80:CF82),0),0) -> 0 | CG88: =IFERROR(IF(CG$84>=12,SUM(CG$80:CG82),0),0) -> 0 | CH88: =IFERROR(IF(CH$84>=12,SUM(CH$80:CH82),0),0) -> 0 | CI88: =IFERROR(IF(CI$84>=12,SUM(CI$80:CI82),0),0) -> 0 | CJ88: =IFERROR(IF(CJ$84>=12,SUM(CJ$80:CJ82),0),0) -> 0 | CK88: =IFERROR(IF(CK$84>=12,SUM(CK$80:CK82),0),0) -> 0 | CL88: =IFERROR(IF(CL$84>=12,SUM(CL$80:CL82),0),0) -> 0 | CM88: =IFERROR(IF(CM$84>=12,SUM(CM$80:CM82),0),0) -> 0 | CN88: =IFERROR(IF(CN$84>=12,SUM(CN$80:CN82),0),0) -> 0 | CO88: =IFERROR(IF(CO$84>=12,SUM(CO$80:CO82),0),0) -> 0 | CP88: =IFERROR(IF(CP$84>=12,SUM(CP$80:CP82),0),0) -> 0 | CQ88: =IFERROR(IF(CQ$84>=12,SUM(CQ$80:CQ82),0),0) -> 0 | CR88: =IFERROR(IF(CR$84>=12,SUM(CR$80:CR82),0),0) -> 0 | CS88: =IFERROR(IF(CS$84>=12,SUM(CS$80:CS82),0),0) -> 0
A89: 5 | B89: West Cheshire | C89: B | D89: Bojang, Fatoumatta | E89: 139 | G89: Pughe, Imogen | I89: 133 | K89: Jones, Stephanie | M89: 128 | P89: 400 | R89: =COUNTIF($B$85:B89,B89) -> 2 | S89: 18 | T89: 17 | U89: 20 | AH89: Rank | AI89: =IF(AI85>2,RANK(AI85,$AI$85:$BC$87),"") ->  | AJ89: =IF(AJ85>2,RANK(AJ85,$AI$85:$BC$87),"") ->  | AQ89: 2 | AY89: 3 | BA89: 1 | BD89: =IF(BD85>2,RANK(BD85,$BD$85:$BX$87),"") ->  | BE89: =IF(BE85>2,RANK(BE85,$BD$85:$BX$87),"") ->  | BF89: 2 | BR89: 4 | BT89: 1 | BV89: 3 | BY89: =IF(BY85>2,RANK(BY85,$BY$85:$CS$88),"") ->  | BZ89: =IF(BZ85>2,RANK(BZ85,$BY$85:$CS$88),"") ->  | CA89: 1 | CE89: 9 | CG89: 4 | CM89: 6 | CO89: 2 | CQ89: 3
A90: 6 | B90: Stockport H | D90: Doodson, Jack | E90: 169 | G90: Ayre, Sam | I90: 102 | K90: Culmer, Tom | M90: 99 | P90: 370 | R90: =COUNTIF($B$85:B90,B90) -> 1 | S90: 33 | T90: 34 | U90: 31 | AH90: Rank | AI90: =IF(AI86>2,RANK(AI86,$AI$85:$BC$87),"") ->  | BD90: =IF(BD86>2,RANK(BD86,$BD$85:$BX$87),"") ->  | BE90: =IF(BE86>2,RANK(BE86,$BD$85:$BX$87),"") ->  | BY90: =IF(BY86>2,RANK(BY86,$BY$85:$CS$88),"") ->  | BZ90: =IF(BZ86>2,RANK(BZ86,$BY$85:$CS$88),"") ->  | CO90: 7 | CQ90: 5
A91: 7 | B91: Vale Royal | C91: B | D91: Sproston, Hannah | E91: 129 | G91: Haffenden, Peter | I91: 125 | K91: Stapleton, Scarlett | M91: 110 | P91: 364 | R91: =COUNTIF($B$85:B91,B91) -> 2 | S91: 14 | T91: 13 | U91: 38 | AH91: Rank | AI91: =IF(AI87>2,RANK(AI87,$AI$85:$BC$87),"") ->  | BD91: =IF(BD87>2,RANK(BD87,$BD$85:$BX$87),"") ->  | BY91: =IF(BY87>2,RANK(BY87,$BY$85:$CS$88),"") ->  | CQ91: 8
A92: 8 | B92: West Cheshire | C92: C | D92: Shillington, Isla | E92: 122 | G92: Bugg, Harry | I92: 114 | K92: Bemand, Jodi | M92: 101 | P92: 337 | R92: =COUNTIF($B$85:B92,B92) -> 3 | S92: 16 | T92: 22 | U92: 41 | AH92: Rank | AI92: =IF(AI88>2,RANK(AI88,$AI$85:$BC$87),"") ->  | BD92: =IF(BD88>2,RANK(BD88,$BD$85:$BX$87),"") ->  | BY92: =IF(BY88>2,RANK(BY88,$BY$85:$CS$88),"") -> 
A93: 9 | B93: Handforth WAAC | D93: Duce, Anna | E93: 120 | G93: Cann, Marcus | I93: 103 | K93: Branthwaite, Owen | M93: 103 | P93: 326 | R93: =COUNTIF($B$85:B93,B93) -> 1 | S93: 26 | T93: 4 | U93: 27 | AB93: Rank | AC93: Total
A94: 10 | R94: =COUNTIF($B$85:B94,B94) -> 1 | AB94: 1 | AC94: 1
A95: 11 | C95: 0 | AB95: 2 | AC95: 1 | AD95: B
A96: 12 | C96: 0 | AB96: 3 | AC96: 1 | AD96: C
AB97: 4 | AC97: 2 | AD97: D
AB98: 5 | AC98: 2 | AD98: E
A99: Girls Teams | F99: =IF(E99="DNF",0,IF(E99=0,0,IF(E99<=14,VLOOKUP(E99,T_100m,15,TRUE),IF(E99<=15.2,VLOOKUP(E99,T_100m,15,TRUE),IF(E99<=21,VLOOKUP(E99-0.01,T_100m,15,TRUE)-1,0))))) -> 0 | H99: =IF(G99="DNF",0,IF(G99=0,0,VLOOKUP(G99,T_800m,11,TRUE)-1)) -> 0 | J99: =IF(I99="NJ",0,IF(I99<'Scoring Tables'!$S$4,0,VLOOKUP(I99,T_Long,11,TRUE))) -> 0 | L99: =IF(K99="NT",0,IF(K99<'Scoring Tables'!$X$14,0,VLOOKUP(K99,T_Javlin,6,TRUE))) -> 0 | M99: =(LARGE((F99,H99),1)+J99+L99) -> 0 | N99: =IF(M99=0,"",IF(C99="M",(RANK(M99,AG$7:AG$97)&"B"),RANK(M99,AH$7:AH$95)&"G")) ->  | O99: =IF(M99<15,"",HLOOKUP(M99,T_U11G_3_Events,3)) ->  | P99: Total | R99: Team | AB99: 6 | AC99: 2 | AD99: F
A100: 1 | B100: =OFFSET($D$6,S100,0,1,1) -> Macclesfield H | C100: =IFERROR(VLOOKUP(R100,$AB$94:$AD$105,3,1),0) ->  | D100: =OFFSET($B$6,S100,0,1,1) -> Dilworth, Rebecca | E100: =OFFSET($M$6,S100,0,1,1) -> 98 | G100: =OFFSET($B$6,T100,0,1,1) ->  | I100: =OFFSET($M$6,T100,0,1,1) ->  | K100: =OFFSET($B$6,U100,0,1,1) ->  | M100: =OFFSET($M$6,U100,0,1,1) ->  | P100: =OFFSET($R$6,S100,0,1,1) -> 0 | R100: =COUNTIF($B$100:B100,B100) -> 1 | S100: =MATCH((ROW()-100)*3 +1,$W$7:$W$68,0) -> 7 | T100: =MATCH((ROW()-100)*3 +2,$W$7:$W$68,0) ->  | U100: =MATCH((ROW()-100)*3 +3,$W$7:$W$68,0) ->  | AB100: 7 | AC100: 3 | AD100: G
A101: 2 | B101: =OFFSET($D$6,S101,0,1,1) ->  | C101: =IFERROR(VLOOKUP(R101,$AB$94:$AD$105,3,1),0) ->  | D101: =OFFSET($B$6,S101,0,1,1) ->  | E101: =OFFSET($M$6,S101,0,1,1) ->  | G101: =OFFSET($B$6,T101,0,1,1) ->  | I101: =OFFSET($M$6,T101,0,1,1) ->  | K101: =OFFSET($B$6,U101,0,1,1) ->  | M101: =OFFSET($M$6,U101,0,1,1) ->  | P101: =OFFSET($R$6,S101,0,1,1) ->  | R101: =COUNTIF($B$100:B101,B101) -> 1 | S101: =MATCH((ROW()-100)*3 +1,$W$7:$W$68,0) ->  | T101: =MATCH((ROW()-100)*3 +2,$W$7:$W$68,0) ->  | U101: =MATCH((ROW()-100)*3 +3,$W$7:$W$68,0) ->  | AB101: 8 | AC101: 3
A102: 3 | B102: =OFFSET($D$6,S102,0,1,1) ->  | C102: B | D102: =OFFSET($B$6,S102,0,1,1) ->  | E102: =OFFSET($M$6,S102,0,1,1) ->  | G102: =OFFSET($B$6,T102,0,1,1) ->  | I102: =OFFSET($M$6,T102,0,1,1) ->  | K102: =OFFSET($B$6,U102,0,1,1) ->  | M102: =OFFSET($M$6,U102,0,1,1) ->  | P102: =OFFSET($R$6,S102,0,1,1) ->  | R102: =COUNTIF($B$100:B102,B102) -> 2 | S102: =MATCH((ROW()-100)*3 +1,$W$7:$W$68,0) ->  | T102: =MATCH((ROW()-100)*3 +2,$W$7:$W$68,0) ->  | U102: =MATCH((ROW()-100)*3 +3,$W$7:$W$68,0) ->  | AB102: 9 | AC102: 3
A103: 4 | B103: =OFFSET($D$6,S103,0,1,1) ->  | C103: C | D103: =OFFSET($B$6,S103,0,1,1) ->  | E103: =OFFSET($M$6,S103,0,1,1) ->  | G103: =OFFSET($B$6,T103,0,1,1) ->  | I103: =OFFSET($M$6,T103,0,1,1) ->  | K103: =OFFSET($B$6,U103,0,1,1) ->  | M103: =OFFSET($M$6,U103,0,1,1) ->  | P103: =OFFSET($R$6,S103,0,1,1) ->  | R103: =COUNTIF($B$100:B103,B103) -> 3 | S103: =MATCH((ROW()-100)*3 +1,$W$7:$W$68,0) ->  | T103: =MATCH((ROW()-100)*3 +2,$W$7:$W$68,0) ->  | U103: =MATCH((ROW()-100)*3 +3,$W$7:$W$68,0) ->  | AB103: 10 | AC103: 4
A104: 5 | B104: =OFFSET($D$6,S104,0,1,1) ->  | C104: D | D104: =OFFSET($B$6,S104,0,1,1) ->  | E104: =OFFSET($M$6,S104,0,1,1) ->  | G104: =OFFSET($B$6,T104,0,1,1) ->  | I104: =OFFSET($M$6,T104,0,1,1) ->  | K104: =OFFSET($B$6,U104,0,1,1) ->  | M104: =OFFSET($M$6,U104,0,1,1) ->  | P104: =OFFSET($R$6,S104,0,1,1) ->  | R104: =COUNTIF($B$100:B104,B104) -> 4 | S104: =MATCH((ROW()-100)*3 +1,$W$7:$W$68,0) ->  | T104: =MATCH((ROW()-100)*3 +2,$W$7:$W$68,0) ->  | U104: =MATCH((ROW()-100)*3 +3,$W$7:$W$68,0) ->  | AB104: 11 | AC104: 4
A105: 6 | C105: 0 | AB105: 12 | AC105: 4
A106: 7 | C106: 0
A107: 8 | C107: 0
A109: Boys Teams | P109: Total | R109: Team
A110: 1 | B110: =OFFSET($D$6,S110,0,1,1) -> Vale Royal | C110: =IFERROR(VLOOKUP(R110,$AB$94:$AD$105,3,1),0) ->  | D110: =OFFSET($B$6,S110,0,1,1) -> Griffith, Patrick | E110: =OFFSET($M$6,S110,0,1,1) -> 161 | G110: =OFFSET($B$6,T110,0,1,1) -> Carney, Dylan | I110: =OFFSET($M$6,T110,0,1,1) -> 144 | K110: =OFFSET($B$6,U110,0,1,1) -> Jenkins, Hadyn | M110: =OFFSET($M$6,U110,0,1,1) -> 113 | P110: =OFFSET($R$6,S110,0,1,1) -> 440 | R110: =COUNTIF($B$110:B110,B110) -> 1 | S110: =MATCH((ROW()-110)*3 +1,$Y$7:$Y$68,0) -> 37 | T110: =MATCH((ROW()-110)*3 +2,$Y$7:$Y$68,0) -> 36 | U110: =MATCH((ROW()-110)*3 +3,$Y$7:$Y$68,0) -> 24
A111: 2 | B111: =OFFSET($D$6,S111,0,1,1) -> West Cheshire | C111: =IFERROR(VLOOKUP(R111,$AB$94:$AD$105,3,1),0) ->  | D111: =OFFSET($B$6,S111,0,1,1) -> Grinter, Zac | E111: =OFFSET($M$6,S111,0,1,1) -> 145 | G111: =OFFSET($B$6,T111,0,1,1) -> Shakespeare-Wetton, Harley | I111: =OFFSET($M$6,T111,0,1,1) -> 141 | K111: =OFFSET($B$6,U111,0,1,1) -> Ayre, Sam | M111: =OFFSET($M$6,U111,0,1,1) -> 102 | P111: =OFFSET($R$6,S111,0,1,1) -> 432 | R111: =COUNTIF($B$110:B111,B111) -> 1 | S111: =MATCH((ROW()-110)*3 +1,$Y$7:$Y$68,0) -> 42 | T111: =MATCH((ROW()-110)*3 +2,$Y$7:$Y$68,0) -> 44 | U111: =MATCH((ROW()-110)*3 +3,$Y$7:$Y$68,0) -> 31
A112: 3 | B112: =OFFSET($D$6,S112,0,1,1) -> Stockport H | D112: =OFFSET($B$6,S112,0,1,1) -> Culmer, Frank | E112: =OFFSET($M$6,S112,0,1,1) -> 0 | G112: =OFFSET($B$6,T112,0,1,1) ->  | I112: =OFFSET($M$6,T112,0,1,1) ->  | K112: =OFFSET($B$6,U112,0,1,1) ->  | M112: =OFFSET($M$6,U112,0,1,1) ->  | P112: =OFFSET($R$6,S112,0,1,1) -> 0 | R112: =COUNTIF($B$110:B112,B112) -> 1 | S112: =MATCH((ROW()-110)*3 +1,$Y$7:$Y$68,0) -> 32 | T112: =MATCH((ROW()-110)*3 +2,$Y$7:$Y$68,0) ->  | U112: =MATCH((ROW()-110)*3 +3,$Y$7:$Y$68,0) -> 
A113: 4 | B113: =OFFSET($D$6,S113,0,1,1) ->  | D113: =OFFSET($B$6,S113,0,1,1) ->  | E113: =OFFSET($M$6,S113,0,1,1) ->  | G113: =OFFSET($B$6,T113,0,1,1) ->  | I113: =OFFSET($M$6,T113,0,1,1) ->  | K113: =OFFSET($B$6,U113,0,1,1) ->  | M113: =OFFSET($M$6,U113,0,1,1) ->  | P113: =OFFSET($R$6,S113,0,1,1) ->  | R113: =COUNTIF($B$110:B113,B113) -> 1 | S113: =MATCH((ROW()-110)*3 +1,$Y$7:$Y$68,0) ->  | T113: =MATCH((ROW()-110)*3 +2,$Y$7:$Y$68,0) ->  | U113: =MATCH((ROW()-110)*3 +3,$Y$7:$Y$68,0) -> 
A114: 5 | B114: =OFFSET($D$6,S114,0,1,1) ->  | C114: B | D114: =OFFSET($B$6,S114,0,1,1) ->  | E114: =OFFSET($M$6,S114,0,1,1) ->  | G114: =OFFSET($B$6,T114,0,1,1) ->  | I114: =OFFSET($M$6,T114,0,1,1) ->  | K114: =OFFSET($B$6,U114,0,1,1) ->  | M114: =OFFSET($M$6,U114,0,1,1) ->  | P114: =OFFSET($R$6,S114,0,1,1) ->  | R114: =COUNTIF($B$110:B114,B114) -> 2 | S114: =MATCH((ROW()-110)*3 +1,$Y$7:$Y$68,0) ->  | T114: =MATCH((ROW()-110)*3 +2,$Y$7:$Y$68,0) ->  | U114: =MATCH((ROW()-110)*3 +3,$Y$7:$Y$68,0) -> 
A115: 6 | C115: 0
A116: 7 | C116: 0
A117: 8 | C117: 0

Sheet U13B Tri
A1: CHESHIRE COUNTY ATHLETICS ASSOCIATION - Junior Multievent Championship, Macclesfield
I2: U13 Boys
A4: Arranged by: | C4: =ArrangedBy -> Handforth W A A C | H4: Scorer: | K4: =Scorer -> H Branthwaite | X4: Date: | Z4: =Date -> 2015-09-13
A5: Sponsored by: | C5: =Sponsor -> Jones Homes | H5: Checked by: | K5: S Cathery & M Norman
A6: No. | B6: Name | C6: Club | D6: Cheshire | E6: 100m | F6: Score | G6: Grade | H6: 75m Hurdles | I6: Score | J6: Grade | K6: 800m | L6: Score | M6: Grade | N6: Long Jump | O6: Score | P6: Grade | Q6: High Jump | R6: Score | S6: Grade | T6: Shot | U6: Score | V6: Grade | W6: Jav. | X6: Score | Y6: Grade | Z6: Total Score 3 events | AA6: Chesh Posit'n | AB6: Open Posit'n | AC6: Five Star Award | AG6: Chesh Only | AH6: Last Col
A7: 68 | B7: Verbickas, Ben | C7: Crewe & Nantwich | D7: C | F7: =IF(E7="DNF",0,IF(E7=0,0,IF(E7<=14,VLOOKUP(E7,T_100m,15,TRUE),IF(E7<=15.2,VLOOKUP(E7,T_100m,15,TRUE),IF(E7<=21,VLOOKUP(E7-0.01,T_100m,15,TRUE)-1,0))))) -> 0 | G7: =IF(F7=0,0,IF(E7<=INDEX(AAA_U13B_100m,1,1),"G1",IF(E7<=INDEX(AAA_U13B_100m,1,2),"G2",IF(E7<=INDEX(AAA_U13B_100m,1,3),"G3",IF(E7<=INDEX(AAA_U13B_100m,1,4),"G4",0))))) -> 0 | H7: 15.2 | I7: =IF(H7="DNF",0,IF(H7=0,0,VLOOKUP(H7,T_70_Hurdles,7,TRUE))) -> 56 | J7: =IF(I7=0,0,IF(H7<=INDEX(AAA_U13B_75mH,1,1),"G1",IF(H7<=INDEX(AAA_U13B_75mH,1,2),"G2",IF(H7<=INDEX(AAA_U13B_75mH,1,3),"G3",IF(H7<=INDEX(AAA_U13B_75mH,1,4),"G4",0))))) -> G4 | K7: 00:02:46.800 | L7: =IF(K7="DNF",0,IF(K7=0,0,VLOOKUP(K7,T_800m,11,TRUE)-1)) -> 66 | M7: =IF(L7=0,0,IF(K7<=INDEX(AAA_U13B_800m,1,1),"G1",IF(K7<=INDEX(AAA_U13B_800m,1,2),"G2",IF(K7<=INDEX(AAA_U13B_800m,1,3),"G3",IF(K7<=INDEX(AAA_U13B_800m,1,4),"G4",0))))) -> 0 | N7: 2.93 | O7: =IF(N7="NJ",0,IF(N7=0,0,VLOOKUP(N7,T_Long,11,TRUE))) -> 35 | P7: =IF(O7=0,0,IF(N7>=INDEX(AAA_U13B_LJ,1,1),"G1",IF(N7>=INDEX(AAA_U13B_LJ,1,2),"G2",IF(N7>=INDEX(AAA_U13B_LJ,1,3),"G3",IF(N7>=INDEX(AAA_U13B_LJ,1,4),"G4",0))))) -> 0 | R7: =IF(Q7="NJ",0,IF(Q7=0,0,VLOOKUP(Q7,T_High,12,TRUE))) -> 0 | S7: =IF(R7=0,0,IF(Q7>=INDEX(AAA_U13B_HJ,1,1),"G1",IF(Q7>=INDEX(AAA_U13B_HJ,1,2),"G2",IF(Q7>=INDEX(AAA_U13B_HJ,1,3),"G3",IF(Q7>=INDEX(AAA_U13B_HJ,1,4),"G4",0))))) -> 0 | T7: 4.44 | U7: =IF(T7="NT",0,IF(T7<2,0,VLOOKUP(T7,T_Shot,8,TRUE))) -> 35 | V7: =IF(U7=0,0,IF(T7>=INDEX(AAA_U13B_Shot,1,1),"G1",IF(T7>=INDEX(AAA_U13B_Shot,1,2),"G2",IF(T7>=INDEX(AAA_U13B_Shot,1,3),"G3",IF(T7>=INDEX(AAA_U13B_Shot,1,4),"G4",0))))) -> 0 | X7: =IF(W7="NT",0,IF(W7<4,0,VLOOKUP(W7,T_Javlin,6,TRUE))) -> 0 | Y7: =IF(X7=0,0,IF(W7>=INDEX(AAA_U13B_Jav,1,1),"G1",IF(W7>=INDEX(AAA_U13B_Jav,1,2),"G2",IF(W7>=INDEX(AAA_U13B_Jav,1,3),"G3",IF(W7>=INDEX(AAA_U13B_Jav,1,4),"G4",0))))) -> 0 | Z7: =(LARGE((F7,I7,L7),1)+LARGE((O7,R7),1)+LARGE((U7,X7),1)) -> 136 | AA7: =IF(AG7=0,"",RANK(Z7,AG$7:AG$41)) -> 11 | AB7: =IF(Z7=0,"",RANK(Z7,Z$7:Z$41)) -> 13 | AC7: =IF(Z7<15,"",HLOOKUP(Z7,T_U13B_3_Events,5)) -> 3* | AG7: =IF(D7="C",Z7,0) -> 136
A8: 69 | B8: Cathery, Joseph | C8: Handforth WAAC | D8: C | F8: 0 | G8: 0 | H8: 16.5 | I8: 43 | J8: 0 | K8: 00:03:15.600 | L8: 52 | M8: 0 | N8: 3.67 | O8: 60 | P8: 0 | R8: 0 | S8: 0 | U8: 0 | V8: 0 | W8: 14.47 | X8: 42 | Y8: 0 | Z8: =(LARGE((F8,I8,L8),1)+LARGE((O8,R8),1)+LARGE((U8,X8),1)) -> 154 | AA8: 10 | AB8: 12 | AC8: 3* | AG8: 154
A9: 70 | B9: Horne, Brandon | C9: Handforth WAAC | D9: C | F9: 0 | G9: 0 | I9: 0 | J9: 0 | L9: 0 | M9: 0 | O9: 0 | P9: 0 | Q9: 1.18 | R9: 54 | S9: 0 | T9: 6.62 | U9: 57 | V9: 0 | X9: 0 | Y9: 0 | Z9: =(LARGE((F9,I9,L9),1)+LARGE((O9,R9),1)+LARGE((U9,X9),1)) -> 111 | AA9: 13 | AB9: 15 | AC9: 2* | AG9: 111
A10: 71 | B10: Danson, Sam | C10: Macclesfield H | D10: C | F10: 0 | G10: 0 | I10: 0 | J10: 0 | L10: 0 | M10: 0 | O10: 0 | P10: 0 | R10: 0 | S10: 0 | U10: 0 | V10: 0 | X10: 0 | Y10: 0 | Z10: =(LARGE((F10,I10,L10),1)+LARGE((O10,R10),1)+LARGE((U10,X10),1)) -> 0 | AG10: 0
A11: 72 | B11: Frith, Morgan | C11: Macclesfield H | D11: C | E11: 13.3 | F11: 80 | G11: G3 | I11: 0 | J11: 0 | L11: 0 | M11: 0 | N11: 4.73 | O11: 78 | P11: G1 | R11: 0 | S11: 0 | T11: 6.37 | U11: 54 | V11: 0 | X11: 0 | Y11: 0 | Z11: =(LARGE((F11,I11,L11),1)+LARGE((O11,R11),1)+LARGE((U11,X11),1)) -> 212 | AA11: 1 | AB11: 1 | AC11: 5* | AG11: 212
A12: 73 | B12: Roberts, Thomas | C12: Macclesfield H | D12: C | F12: 0 | G12: 0 | I12: 0 | J12: 0 | K12: 00:02:42.700 | L12: 68 | M12: 0 | O12: 0 | P12: 0 | Q12: 1.18 | R12: 54 | S12: 0 | U12: 0 | V12: 0 | W12: 15.87 | X12: 48 | Y12: 0 | Z12: =(LARGE((F12,I12,L12),1)+LARGE((O12,R12),1)+LARGE((U12,X12),1)) -> 170 | AA12: 9 | AB12: 10 | AC12: 4* | AG12: 170
A13: 74 | B13: Thompson, Jacob | C13: Macclesfield H | D13: C | F13: 0 | G13: 0 | H13: 13.5 | I13: 73 | J13: G2 | L13: 0 | M13: 0 | O13: 0 | P13: 0 | Q13: 1.33 | R13: 69 | S13: G4 | U13: 0 | V13: 0 | W13: 15.73 | X13: 47 | Y13: 0 | Z13: =(LARGE((F13,I13,L13),1)+LARGE((O13,R13),1)+LARGE((U13,X13),1)) -> 189 | AA13: 4 | AB13: 5 | AC13: 4* | AG13: 189
A14: 75 | B14: Townend, Louis | C14: Macclesfield H | D14: C | E14: 14.5 | F14: 63 | G14: 0 | I14: 0 | J14: 0 | L14: 0 | M14: 0 | N14: 3.82 | O14: 65 | P14: 0 | R14: 0 | S14: 0 | T14: 5.63 | U14: 47 | V14: 0 | X14: 0 | Y14: 0 | Z14: =(LARGE((F14,I14,L14),1)+LARGE((O14,R14),1)+LARGE((U14,X14),1)) -> 175 | AA14: 8 | AB14: 9 | AC14: 4* | AG14: 175
A15: 76 | B15: Cooper, Matthew | C15: Manchester H | E15: 14.1 | F15: 71 | G15: 0 | I15: 0 | J15: 0 | K15: 00:02:30.500 | L15: 74 | M15: G4 | N15: 3.4 | O15: 51 | P15: 0 | R15: 0 | S15: 0 | T15: 5.29 | U15: 43 | V15: 0 | X15: 0 | Y15: 0 | Z15: =(LARGE((F15,I15,L15),1)+LARGE((O15,R15),1)+LARGE((U15,X15),1)) -> 168 | AB15: 11 | AC15: 4* | AG15: 0
A16: 77 | B16: Hopkins, Jamie | C16: Southport Waterloo | F16: 0 | G16: 0 | H16: 14.6 | I16: 62 | J16: G4 | K16: 00:02:42.400 | L16: 68 | M16: 0 | O16: 0 | P16: 0 | Q16: 1.36 | R16: 72 | S16: G3 | U16: 0 | V16: 0 | W16: 22.46 | X16: 70 | Y16: G4 | Z16: =(LARGE((F16,I16,L16),1)+LARGE((O16,R16),1)+LARGE((U16,X16),1)) -> 210 | AB16: 2 | AC16: 5* | AG16: 0
A17: 78 | B17: Culmer, William | C17: Stockport H | D17: C | F17: 0 | G17: 0 | H17: 15.2 | I17: 56 | J17: G4 | K17: 00:02:54.300 | L17: 62 | M17: 0 | N17: 3.36 | O17: 50 | P17: 0 | R17: 0 | S17: 0 | U17: 0 | V17: 0 | W17: 25.33 | X17: 73 | Y17: G4 | Z17: =(LARGE((F17,I17,L17),1)+LARGE((O17,R17),1)+LARGE((U17,X17),1)) -> 185 | AA17: 6 | AB17: 7 | AC17: 4* | AG17: 185
A18: 79 | B18: Houlden, Matthew | C18: Stockport H | D18: C | E18: 13 | F18: 83 | G18: G2 | I18: 0 | J18: 0 | L18: 0 | M18: 0 | N18: 3.95 | O18: 69 | P18: 0 | R18: 0 | S18: 0 | T18: 6 | U18: 51 | V18: 0 | X18: 0 | Y18: 0 | Z18: =(LARGE((F18,I18,L18),1)+LARGE((O18,R18),1)+LARGE((U18,X18),1)) -> 203 | AA18: 2 | AB18: 3 | AC18: 5* | AG18: 203
A19: 80 | B19: Shaw, Adam | C19: Warrington | D19: C | F19: 0 | G19: 0 | H19: 12.9 | I19: 79 | J19: G1 | L19: 0 | M19: 0 | O19: 0 | P19: 0 | Q19: 1.24 | R19: 60 | S19: 0 | T19: 6.26 | U19: 53 | V19: 0 | X19: 0 | Y19: 0 | Z19: =(LARGE((F19,I19,L19),1)+LARGE((O19,R19),1)+LARGE((U19,X19),1)) -> 192 | AA19: 3 | AB19: 4 | AC19: 4* | AG19: 192
A20: 81 | B20: Bugg, Dylan | C20: West Cheshire | D20: C | E20: 14.5 | F20: 63 | G20: 0 | I20: 0 | J20: 0 | K20: 00:02:38.500 | L20: 70 | M20: 0 | N20: 3.66 | O20: 60 | P20: 0 | R20: 0 | S20: 0 | U20: 0 | V20: 0 | W20: 17.05 | X20: 53 | Y20: 0 | Z20: =(LARGE((F20,I20,L20),1)+LARGE((O20,R20),1)+LARGE((U20,X20),1)) -> 183 | AA20: 7 | AB20: 8 | AC20: 4* | AG20: 183
A21: 82 | B21: Howe, Adam | C21: West Cheshire | D21: C | E21: 13.9 | F21: 74 | G21: G4 | I21: 0 | J21: 0 | K21: 00:02:47.800 | L21: 66 | M21: 0 | O21: 0 | P21: 0 | Q21: 1.24 | R21: 60 | S21: 0 | T21: 6.46 | U21: 55 | V21: 0 | X21: 0 | Y21: 0 | Z21: =(LARGE((F21,I21,L21),1)+LARGE((O21,R21),1)+LARGE((U21,X21),1)) -> 189 | AA21: 4 | AB21: 5 | AC21: 4* | AG21: 189
A22: 83 | B22: Smith, Ivor | C22: West Cheshire | D22: C | E22: 15.7 | F22: 44 | G22: 0 | I22: 0 | J22: 0 | L22: 0 | M22: 0 | N22: 3.15 | O22: 43 | P22: 0 | R22: 0 | S22: 0 | T22: 4.57 | U22: 36 | V22: 0 | X22: 0 | Y22: 0 | Z22: =(LARGE((F22,I22,L22),1)+LARGE((O22,R22),1)+LARGE((U22,X22),1)) -> 123 | AA22: 12 | AB22: 14 | AC22: 3* | AG22: 123
F23: =IF(E23="DNF",0,IF(E23=0,0,IF(E23<=14,VLOOKUP(E23,T_100m,15,TRUE),IF(E23<=15.2,VLOOKUP(E23,T_100m,15,TRUE),IF(E23<=21,VLOOKUP(E23-0.01,T_100m,15,TRUE)-1,0))))) -> 0 | G23: =IF(F23=0,0,IF(E23<=INDEX(AAA_U13B_100m,1,1),"G1",IF(E23<=INDEX(AAA_U13B_100m,1,2),"G2",IF(E23<=INDEX(AAA_U13B_100m,1,3),"G3",IF(E23<=INDEX(AAA_U13B_100m,1,4),"G4",0))))) -> 0 | I23: =IF(H23="DNF",0,IF(H23=0,0,VLOOKUP(H23,T_70_Hurdles,7,TRUE))) -> 0 | J23: =IF(I23=0,0,IF(H23<=INDEX(AAA_U13B_75mH,1,1),"G1",IF(H23<=INDEX(AAA_U13B_75mH,1,2),"G2",IF(H23<=INDEX(AAA_U13B_75mH,1,3),"G3",IF(H23<=INDEX(AAA_U13B_75mH,1,4),"G4",0))))) -> 0 | L23: =IF(K23="DNF",0,IF(K23=0,0,VLOOKUP(K23,T_800m,11,TRUE)-1)) -> 0 | M23: =IF(L23=0,0,IF(K23<=INDEX(AAA_U13B_800m,1,1),"G1",IF(K23<=INDEX(AAA_U13B_800m,1,2),"G2",IF(K23<=INDEX(AAA_U13B_800m,1,3),"G3",IF(K23<=INDEX(AAA_U13B_800m,1,4),"G4",0))))) -> 0 | O23: =IF(N23="NJ",0,IF(N23=0,0,VLOOKUP(N23,T_Long,11,TRUE))) -> 0 | P23: =IF(O23=0,0,IF(N23>=INDEX(AAA_U13B_LJ,1,1),"G1",IF(N23>=INDEX(AAA_U13B_LJ,1,2),"G2",IF(N23>=INDEX(AAA_U13B_LJ,1,3),"G3",IF(N23>=INDEX(AAA_U13B_LJ,1,4),"G4",0))))) -> 0 | R23: =IF(Q23="NJ",0,IF(Q23=0,0,VLOOKUP(Q23,T_High,12,TRUE))) -> 0 | S23: =IF(R23=0,0,IF(Q23>=INDEX(AAA_U13B_HJ,1,1),"G1",IF(Q23>=INDEX(AAA_U13B_HJ,1,2),"G2",IF(Q23>=INDEX(AAA_U13B_HJ,1,3),"G3",IF(Q23>=INDEX(AAA_U13B_HJ,1,4),"G4",0))))) -> 0 | U23: =IF(T23="NT",0,IF(T23<2,0,VLOOKUP(T23,T_Shot,8,TRUE))) -> 0 | V23: =IF(U23=0,0,IF(T23>=INDEX(AAA_U13B_Shot,1,1),"G1",IF(T23>=INDEX(AAA_U13B_Shot,1,2),"G2",IF(T23>=INDEX(AAA_U13B_Shot,1,3),"G3",IF(T23>=INDEX(AAA_U13B_Shot,1,4),"G4",0))))) -> 0 | X23: =IF(W23="NT",0,IF(W23<4,0,VLOOKUP(W23,T_Javlin,6,TRUE))) -> 0 | Y23: =IF(X23=0,0,IF(W23>=INDEX(AAA_U13B_Jav,1,1),"G1",IF(W23>=INDEX(AAA_U13B_Jav,1,2),"G2",IF(W23>=INDEX(AAA_U13B_Jav,1,3),"G3",IF(W23>=INDEX(AAA_U13B_Jav,1,4),"G4",0))))) -> 0 | Z23: =(LARGE((F23,I23,L23),1)+LARGE((O23,R23),1)+LARGE((U23,X23),1)) -> 0 | AA23: =IF(AG23=0,"",RANK(Z23,AG$7:AG$41)) ->  | AB23: =IF(Z23=0,"",RANK(Z23,Z$7:Z$41)) ->  | AG23: 0
F24: 0 | G24: 0 | I24: 0 | J24: 0 | L24: 0 | M24: 0 | O24: 0 | P24: 0 | R24: 0 | S24: 0 | U24: 0 | V24: 0 | X24: 0 | Y24: 0 | Z24: =(LARGE((F24,I24,L24),1)+LARGE((O24,R24),1)+LARGE((U24,X24),1)) -> 0 | AG24: 0
F25: 0 | G25: 0 | I25: 0 | J25: 0 | L25: 0 | M25: 0 | O25: 0 | P25: 0 | R25: 0 | S25: 0 | U25: 0 | V25: 0 | X25: 0 | Y25: 0 | Z25: =(LARGE((F25,I25,L25),1)+LARGE((O25,R25),1)+LARGE((U25,X25),1)) -> 0 | AG25: 0
F26: 0 | G26: 0 | I26: 0 | J26: 0 | L26: 0 | M26: 0 | O26: 0 | P26: 0 | R26: 0 | S26: 0 | U26: 0 | V26: 0 | X26: 0 | Y26: 0 | Z26: =(LARGE((F26,I26,L26),1)+LARGE((O26,R26),1)+LARGE((U26,X26),1)) -> 0 | AG26: 0
F27: 0 | G27: 0 | I27: 0 | J27: 0 | L27: 0 | M27: 0 | O27: 0 | P27: 0 | R27: 0 | S27: 0 | U27: 0 | V27: 0 | X27: 0 | Y27: 0 | Z27: =(LARGE((F27,I27,L27),1)+LARGE((O27,R27),1)+LARGE((U27,X27),1)) -> 0 | AG27: 0
F28: 0 | G28: 0 | I28: 0 | J28: 0 | L28: 0 | M28: 0 | O28: 0 | P28: 0 | R28: 0 | S28: 0 | U28: 0 | V28: 0 | X28: 0 | Y28: 0 | Z28: =(LARGE((F28,I28,L28),1)+LARGE((O28,R28),1)+LARGE((U28,X28),1)) -> 0 | AG28: 0
F29: 0 | G29: 0 | I29: 0 | J29: 0 | L29: 0 | M29: 0 | O29: 0 | P29: 0 | R29: 0 | S29: 0 | U29: 0 | V29: 0 | X29: 0 | Y29: 0 | Z29: =(LARGE((F29,I29,L29),1)+LARGE((O29,R29),1)+LARGE((U29,X29),1)) -> 0 | AG29: 0
F30: 0 | G30: 0 | I30: 0 | J30: 0 | L30: 0 | M30: 0 | O30: 0 | P30: 0 | R30: 0 | S30: 0 | U30: 0 | V30: 0 | X30: 0 | Y30: 0 | Z30: =(LARGE((F30,I30,L30),1)+LARGE((O30,R30),1)+LARGE((U30,X30),1)) -> 0 | AG30: 0
F31: 0 | G31: 0 | I31: 0 | J31: 0 | L31: 0 | M31: 0 | O31: 0 | P31: 0 | R31: 0 | S31: 0 | U31: 0 | V31: 0 | X31: 0 | Y31: 0 | Z31: =(LARGE((F31,I31,L31),1)+LARGE((O31,R31),1)+LARGE((U31,X31),1)) -> 0 | AG31: 0
F32: 0 | G32: 0 | I32: 0 | J32: 0 | L32: 0 | M32: 0 | O32: 0 | P32: 0 | R32: 0 | S32: 0 | U32: 0 | V32: 0 | X32: 0 | Y32: 0 | Z32: =(LARGE((F32,I32,L32),1)+LARGE((O32,R32),1)+LARGE((U32,X32),1)) -> 0 | AG32: 0
F33: 0 | G33: 0 | I33: 0 | J33: 0 | L33: 0 | M33: 0 | O33: 0 | P33: 0 | R33: 0 | S33: 0 | U33: 0 | V33: 0 | X33: 0 | Y33: 0 | Z33: =(LARGE((F33,I33,L33),1)+LARGE((O33,R33),1)+LARGE((U33,X33),1)) -> 0 | AG33: 0
F34: 0 | G34: 0 | I34: 0 | J34: 0 | L34: 0 | M34: 0 | O34: 0 | P34: 0 | R34: 0 | S34: 0 | U34: 0 | V34: 0 | X34: 0 | Y34: 0 | Z34: =(LARGE((F34,I34,L34),1)+LARGE((O34,R34),1)+LARGE((U34,X34),1)) -> 0 | AG34: 0
F35: 0 | G35: 0 | I35: 0 | J35: 0 | L35: 0 | M35: 0 | O35: 0 | P35: 0 | R35: 0 | S35: 0 | U35: 0 | V35: 0 | X35: 0 | Y35: 0 | Z35: =(LARGE((F35,I35,L35),1)+LARGE((O35,R35),1)+LARGE((U35,X35),1)) -> 0 | AG35: 0
F36: 0 | G36: 0 | I36: 0 | J36: 0 | L36: 0 | M36: 0 | O36: 0 | P36: 0 | R36: 0 | S36: 0 | U36: 0 | V36: 0 | X36: 0 | Y36: 0 | Z36: =(LARGE((F36,I36,L36),1)+LARGE((O36,R36),1)+LARGE((U36,X36),1)) -> 0 | AG36: 0
F37: 0 | G37: 0 | I37: 0 | J37: 0 | L37: 0 | M37: 0 | O37: 0 | P37: 0 | R37: 0 | S37: 0 | U37: 0 | V37: 0 | X37: 0 | Y37: 0 | Z37: =(LARGE((F37,I37,L37),1)+LARGE((O37,R37),1)+LARGE((U37,X37),1)) -> 0 | AG37: 0
F38: 0 | G38: 0 | I38: 0 | J38: 0 | L38: 0 | M38: 0 | O38: 0 | P38: 0 | R38: 0 | S38: 0 | U38: 0 | V38: 0 | X38: 0 | Y38: 0 | Z38: =(LARGE((F38,I38,L38),1)+LARGE((O38,R38),1)+LARGE((U38,X38),1)) -> 0 | AG38: 0
F39: 0 | G39: 0 | I39: 0 | J39: 0 | L39: 0 | M39: 0 | O39: 0 | P39: 0 | R39: 0 | S39: 0 | U39: 0 | V39: 0 | X39: 0 | Y39: 0 | Z39: =(LARGE((F39,I39,L39),1)+LARGE((O39,R39),1)+LARGE((U39,X39),1)) -> 0 | AG39: 0
F40: 0 | G40: 0 | I40: 0 | J40: 0 | L40: 0 | M40: 0 | O40: 0 | P40: 0 | R40: 0 | S40: 0 | U40: 0 | V40: 0 | X40: 0 | Y40: 0 | Z40: =(LARGE((F40,I40,L40),1)+LARGE((O40,R40),1)+LARGE((U40,X40),1)) -> 0 | AG40: 0
F41: 0 | G41: 0 | I41: 0 | J41: 0 | L41: 0 | M41: 0 | O41: 0 | P41: 0 | R41: 0 | S41: 0 | U41: 0 | V41: 0 | X41: 0 | Y41: 0 | Z41: =(LARGE((F41,I41,L41),1)+LARGE((O41,R41),1)+LARGE((U41,X41),1)) -> 0 | AG41: 0
A42: =COUNTIF(Z7:Z41,">0") -> 15 | B42: Open | C42: Cheshire | D42: =SUMPRODUCT((D7:D27="C")*(Z7:Z27>0)) -> 13

Sheet U13G Tri
A1: =EventTitle -> CHESHIRE COUNTY ATHLETICS ASSOCIATION - Junior Multievent Championship, Macclesfield
I2: U13 Girls
A4: Arranged by: | C4: =ArrangedBy -> Handforth W A A C | H4: Scorer: | K4: =Scorer -> H Branthwaite | X4: Date: | Z4: =Date -> 2015-09-13
A5: Sponsored by: | C5: =Sponsor -> Jones Homes | H5: Checked by: | K5: S Cathery & M Norman
A6: No. | B6: Name | C6: Club | D6: Cheshire | E6: 100m | F6: Score | G6: Grade | H6: 70m Hurdles | I6: Score | J6: Grade | K6: 800m | L6: Score | M6: Grade | N6: Long Jump | O6: Score | P6: Grade | Q6: High Jump | R6: Score | S6: Grade | T6: Shot | U6: Score | V6: Grade | W6: Jav. | X6: Score | Y6: Grade | Z6: Total Score 3 events | AA6: Chesh Posit'n | AB6: Open Posit'n | AC6: Five Star Award | AG6: Chesh Only | AH6: Last Col
A7: 45 | B7: Simpson, Emma | C7: Altrincham & District | E7: 15.4 | F7: =IF(E7="DNF",0,IF(E7=0,0,IF(E7<=14,VLOOKUP(E7,T_100m,15,TRUE),IF(E7<=15.2,VLOOKUP(E7,T_100m,15,TRUE),IF(E7<=21,VLOOKUP(E7-0.01,T_100m,15,TRUE)-1,0))))) -> 47 | G7: =IF(F7=0,0,IF(E7<=INDEX(AAA_U13G_100m,1,1),"G1",IF(E7<=INDEX(AAA_U13G_100m,1,2),"G2",IF(E7<=INDEX(AAA_U13G_100m,1,3),"G3",IF(E7<=INDEX(AAA_U13G_100m,1,4),"G4",0))))) -> 0 | I7: =IF(H7="DNF",0,IF(H7=0,0,VLOOKUP(H7,T_70_Hurdles,7,TRUE))) -> 0 | J7: =IF(I7=0,0,IF(H7<=INDEX(AAA_U13G_70mH,1,1),"G1",IF(H7<=INDEX(AAA_U13G_70mH,1,2),"G2",IF(H7<=INDEX(AAA_U13G_70mH,1,3),"G3",IF(H7<=INDEX(AAA_U13G_70mH,1,4),"G4",0))))) -> 0 | L7: =IF(K7="DNF",0,IF(K7=0,0,VLOOKUP(K7,T_800m,11,TRUE)-1)) -> 0 | M7: =IF(L7=0,0,IF(K7<=INDEX(AAA_U13G_800m,1,1),"G1",IF(K7<=INDEX(AAA_U13G_800m,1,2),"G2",IF(K7<=INDEX(AAA_U13G_800m,1,3),"G3",IF(K7<=INDEX(AAA_U13G_800m,1,4),"G4",0))))) -> 0 | N7: 3.89 | O7: =IF(N7="NJ",0,IF(N7=0,0,VLOOKUP(N7,T_Long,11,TRUE))) -> 67 | P7: =IF(O7=0,0,IF(N7>=INDEX(AAA_U13G_LJ,1,1),"G1",IF(N7>=INDEX(AAA_U13G_LJ,1,2),"G2",IF(N7>=INDEX(AAA_U13G_LJ,1,3),"G3",IF(N7>=INDEX(AAA_U13G_LJ,1,4),"G4",0))))) -> 0 | R7: =IF(Q7="NJ",0,IF(Q7=0,0,VLOOKUP(Q7,T_High,12,TRUE))) -> 0 | S7: =IF(R7=0,0,IF(Q7>=INDEX(AAA_U13G_HJ,1,1),"G1",IF(Q7>=INDEX(AAA_U13G_HJ,1,2),"G2",IF(Q7>=INDEX(AAA_U13G_HJ,1,3),"G3",IF(Q7>=INDEX(AAA_U13G_HJ,1,4),"G4",0))))) -> 0 | U7: =IF(T7="NT",0,IF(T7<2,0,VLOOKUP(T7,T_Shot,8,TRUE))) -> 0 | V7: =IF(U7=0,0,IF(T7>=INDEX(AAA_U13G_Shot,1,1),"G1",IF(T7>=INDEX(AAA_U13G_Shot,1,2),"G2",IF(T7>=INDEX(AAA_U13G_Shot,1,3),"G3",IF(T7>=INDEX(AAA_U13G_Shot,1,4),"G4",0))))) -> 0 | W7: 16.85 | X7: =IF(W7="NT",0,IF(W7<4,0,VLOOKUP(W7,T_Javlin,6,TRUE))) -> 52 | Y7: =IF(X7=0,0,IF(W7>=INDEX(AAA_U13G_Jav,1,1),"G1",IF(W7>=INDEX(AAA_U13G_Jav,1,2),"G2",IF(W7>=INDEX(AAA_U13G_Jav,1,3),"G3",IF(W7>=INDEX(AAA_U13G_Jav,1,4),"G4",0))))) -> G4 | Z7: =(LARGE((F7,I7,L7),1)+LARGE((O7,R7),1)+LARGE((U7,X7),1)) -> 166 | AA7: =IF(AG7=0,"",RANK(Z7,AG$7:AG$41)) ->  | AB7: =IF(Z7=0,"",RANK(Z7,Z$7:Z$41)) -> 10 | AC7: =IF(Z7<15,"",HLOOKUP(Z7,T_U13G_3_Events,5)) -> 5* | AG7: =IF(D7="C",Z7,0) -> 0
A8: 46 | B8: Fowler, Olivia | C8: Crewe & Nantwich | D8: C | F8: 0 | G8: 0 | H8: 13.8 | I8: 70 | J8: 0 | K8: 00:02:53.400 | L8: 63 | M8: 0 | N8: 3.31 | O8: 48 | P8: 0 | R8: 0 | S8: 0 | U8: 0 | V8: 0 | W8: 11.46 | X8: 30 | Y8: 0 | Z8: =(LARGE((F8,I8,L8),1)+LARGE((O8,R8),1)+LARGE((U8,X8),1)) -> 148 | AA8: 8 | AB8: 12 | AC8: 4* | AG8: 148
A9: 47 | B9: Lewis, Megan | C9: East Cheshire H | F9: 0 | G9: 0 | I9: 0 | J9: 0 | K9: 00:02:35.300 | L9: 72 | M9: G3 | O9: 0 | P9: 0 | Q9: 1.24 | R9: 60 | S9: 0 | U9: 0 | V9: 0 | W9: 20 | X9: 65 | Y9: G3 | Z9: =(LARGE((F9,I9,L9),1)+LARGE((O9,R9),1)+LARGE((U9,X9),1)) -> 197 | AB9: 7 | AC9: 5* | AG9: 0
A10: 48 | B10: Cathery, Isabel | C10: Handforth WAAC | D10: C | E10: 18.6 | F10: 15 | G10: 0 | I10: 0 | J10: 0 | L10: 0 | M10: 0 | N10: 1.66 | O10: 0 | P10: 0 | R10: 0 | S10: 0 | T10: 3.42 | U10: 25 | V10: 0 | X10: 0 | Y10: 0 | Z10: =(LARGE((F10,I10,L10),1)+LARGE((O10,R10),1)+LARGE((U10,X10),1)) -> 40 | AA10: 16 | AB10: 22 | AG10: 40
A11: 49 | B11: Merry, Immy | C11: Handforth WAAC | D11: C | E11: 15 | F11: 53 | G11: 0 | I11: 0 | J11: 0 | L11: 0 | M11: 0 | N11: 3.35 | O11: 49 | P11: 0 | R11: 0 | S11: 0 | T11: 3.88 | U11: 29 | V11: 0 | X11: 0 | Y11: 0 | Z11: =(LARGE((F11,I11,L11),1)+LARGE((O11,R11),1)+LARGE((U11,X11),1)) -> 131 | AA11: 12 | AB11: 17 | AC11: 4* | AG11: 131
A12: 50 | B12: Sheekey, Freya | C12: Handforth WAAC | D12: C | E12: 15.8 | F12: 43 | G12: 0 | I12: 0 | J12: 0 | L12: 0 | M12: 0 | N12: 3.3 | O12: 48 | P12: 0 | R12: 0 | S12: 0 | U12: 0 | V12: 0 | W12: 10.61 | X12: 27 | Y12: 0 | Z12: =(LARGE((F12,I12,L12),1)+LARGE((O12,R12),1)+LARGE((U12,X12),1)) -> 118 | AA12: 14 | AB12: 19 | AC12: 3* | AG12: 118
A13: 51 | B13: Carey, Liliana | C13: Macclesfield H | D13: C | E13: 17 | F13: 31 | G13: 0 | I13: 0 | J13: 0 | L13: 0 | M13: 0 | N13: 2.98 | O13: 37 | P13: 0 | R13: 0 | S13: 0 | T13: 6.99 | U13: 60 | V13: G4 | X13: 0 | Y13: 0 | Z13: =(LARGE((F13,I13,L13),1)+LARGE((O13,R13),1)+LARGE((U13,X13),1)) -> 128 | AA13: 13 | AB13: 18 | AC13: 4* | AG13: 128
A14: 52 | B14: Dutton, Poppy | C14: Macclesfield H | D14: C | E14: 15.1 | F14: 51 | G14: 0 | I14: 0 | J14: 0 | L14: 0 | M14: 0 | O14: 0 | P14: 0 | Q14: 1.18 | R14: 54 | S14: 0 | U14: 0 | V14: 0 | W14: 12.19 | X14: 33 | Y14: 0 | Z14: =(LARGE((F14,I14,L14),1)+LARGE((O14,R14),1)+LARGE((U14,X14),1)) -> 138 | AA14: 10 | AB14: 15 | AC14: 4* | AG14: 138
A15: 53 | B15: Greeney, Libby | C15: Macclesfield H | D15: C | E15: 15.5 | F15: 46 | G15: 0 | I15: 0 | J15: 0 | K15: 00:03:01.900 | L15: 59 | M15: 0 | N15: 3.27 | O15: 47 | P15: 0 | R15: 0 | S15: 0 | T15: 3.63 | U15: 27 | V15: 0 | X15: 0 | Y15: 0 | Z15: =(LARGE((F15,I15,L15),1)+LARGE((O15,R15),1)+LARGE((U15,X15),1)) -> 133 | AA15: 11 | AB15: 16 | AC15: 4* | AG15: 133
A16: 54 | B16: Heslop, Sian | C16: Macclesfield H | D16: C | F16: 0 | G16: 0 | H16: 15.2 | I16: 56 | J16: 0 | K16: 00:02:35.900 | L16: 72 | M16: G4 | N16: 3.28 | O16: 47 | P16: 0 | R16: 0 | S16: 0 | U16: 0 | V16: 0 | W16: 11.01 | X16: 29 | Y16: 0 | Z16: =(LARGE((F16,I16,L16),1)+LARGE((O16,R16),1)+LARGE((U16,X16),1)) -> 148 | AA16: 8 | AB16: 12 | AC16: 4* | AG16: 148
A17: 55 | B17: Dale, Alice | C17: Sale H | F17: 0 | G17: 0 | H17: 12.6 | I17: 82 | J17: G3 | L17: 0 | M17: 0 | O17: 0 | P17: 0 | Q17: 1.3 | R17: 66 | S17: G3 | U17: 0 | V17: 0 | W17: 20.8 | X17: 68 | Y17: G3 | Z17: =(LARGE((F17,I17,L17),1)+LARGE((O17,R17),1)+LARGE((U17,X17),1)) -> 216 | AB17: 3 | AC17: 5* | AG17: 0
A18: 56 | B18: Whittaker, Scarlett | C18: Sale H | D18: C | F18: 0 | G18: 0 | H18: 12.4 | I18: 84 | J18: G3 | L18: 0 | M18: 0 | N18: 3.99 | O18: 70 | P18: G4 | R18: 0 | S18: 0 | T18: 7.84 | U18: 69 | V18: G2 | X18: 0 | Y18: 0 | Z18: =(LARGE((F18,I18,L18),1)+LARGE((O18,R18),1)+LARGE((U18,X18),1)) -> 223 | AA18: 2 | AB18: 2 | AC18: 5* | AG18: 223
A19: 57 | B19: Burgess, Lauren | C19: Stockport H | F19: 0 | G19: 0 | H19: 14.1 | I19: 67 | J19: 0 | K19: 00:02:54.400 | L19: 62 | M19: 0 | N19: 3.58 | O19: 57 | P19: 0 | R19: 0 | S19: 0 | U19: 0 | V19: 0 | W19: 11.95 | X19: 32 | Y19: 0 | Z19: =(LARGE((F19,I19,L19),1)+LARGE((O19,R19),1)+LARGE((U19,X19),1)) -> 156 | AB19: 11 | AC19: 4* | AG19: 0
A20: 58 | B20: Martin, Millie | C20: Stockport H | E20: 20 | F20: 6 | G20: 0 | I20: 0 | J20: 0 | K20: 00:03:42.800 | L20: 38 | M20: 0 | N20: 2.34 | O20: 16 | P20: 0 | R20: 0 | S20: 0 | T20: 2.53 | U20: 16 | V20: 0 | X20: 0 | Y20: 0 | Z20: =(LARGE((F20,I20,L20),1)+LARGE((O20,R20),1)+LARGE((U20,X20),1)) -> 70 | AB20: 21 | AC20: 1* | AG20: 0
A21: 59 | B21: Wild, Evie | C21: Stockport H | F21: 0 | G21: 0 | I21: 0 | J21: 0 | K21: 00:02:40.600 | L21: 69 | M21: G4 | N21: 2.81 | O21: 31 | P21: 0 | R21: 0 | S21: 0 | U21: 0 | V21: 0 | W21: 13.92 | X21: 40 | Y21: 0 | Z21: =(LARGE((F21,I21,L21),1)+LARGE((O21,R21),1)+LARGE((U21,X21),1)) -> 140 | AB21: 14 | AC21: 4* | AG21: 0
A22: 60 | B22: Cartwright, Abigail | C22: West Cheshire | D22: C | E22: 16.2 | F22: 39 | G22: 0 | I22: 0 | J22: 0 | K22: 00:02:59.200 | L22: 60 | M22: 0 | N22: 2.97 | O22: 37 | P22: 0 | R22: 0 | S22: 0 | U22: 0 | V22: 0 | W22: 8.47 | X22: 19 | Y22: 0 | Z22: =(LARGE((F22,I22,L22),1)+LARGE((O22,R22),1)+LARGE((U22,X22),1)) -> 116 | AA22: 15 | AB22: 20 | AC22: 3* | AG22: 116
A23: 61 | B23: Crayston, Anna | C23: West Cheshire | D23: C | F23: 0 | G23: 0 | I23: 0 | J23: 0 | K23: 00:02:31.100 | L23: 74 | M23: G2 | N23: 4.71 | O23: 78 | P23: G1 | R23: 0 | S23: 0 | T23: 5.76 | U23: 48 | V23: 0 | X23: 0 | Y23: 0 | Z23: =(LARGE((F23,I23,L23),1)+LARGE((O23,R23),1)+LARGE((U23,X23),1)) -> 200 | AA23: 5 | AB23: 6 | AC23: 5* | AG23: 200
A24: 62 | B24: Hall, Jessica | C24: West Cheshire | D24: C | E24: 14.9 | F24: 55 | G24: 0 | I24: 0 | J24: 0 | L24: 0 | M24: 0 | N24: 3.6 | O24: 58 | P24: 0 | R24: 0 | S24: 0 | U24: 0 | V24: 0 | W24: 20.63 | X24: 67 | Y24: G3 | Z24: =(LARGE((F24,I24,L24),1)+LARGE((O24,R24),1)+LARGE((U24,X24),1)) -> 180 | AA24: 7 | AB24: 9 | AC24: 5* | AG24: 180
A25: 63 | B25: Jayaram, Mimi | C25: West Cheshire | D25: C | F25: 0 | G25: 0 | I25: 0 | J25: 0 | L25: 0 | M25: 0 | O25: 0 | P25: 0 | R25: 0 | S25: 0 | U25: 0 | V25: 0 | X25: 0 | Y25: 0 | Z25: =(LARGE((F25,I25,L25),1)+LARGE((O25,R25),1)+LARGE((U25,X25),1)) -> 0 | AG25: 0
A26: 64 | B26: Jones, Lauren Eve | C26: West Cheshire | D26: C | E26: 14.9 | F26: 55 | G26: 0 | I26: 0 | J26: 0 | L26: 0 | M26: 0 | O26: 0 | P26: 0 | Q26: 1.3 | R26: 66 | S26: G3 | U26: 0 | V26: 0 | W26: 18.79 | X26: 60 | Y26: G4 | Z26: =(LARGE((F26,I26,L26),1)+LARGE((O26,R26),1)+LARGE((U26,X26),1)) -> 181 | AA26: 6 | AB26: 8 | AC26: 5* | AG26: 181
A27: 65 | B27: Misantoni, Emily | C27: West Cheshire | D27: C | E27: 13.7 | F27: 76 | G27: G2 | I27: 0 | J27: 0 | K27: 00:02:28.300 | L27: 76 | M27: G1 | O27: 0 | P27: 0 | Q27: 1.36 | R27: 72 | S27: G2 | T27: 7.46 | U27: 65 | V27: G3 | X27: 0 | Y27: 0 | Z27: =(LARGE((F27,I27,L27),1)+LARGE((O27,R27),1)+LARGE((U27,X27),1)) -> 213 | AA27: 3 | AB27: 4 | AC27: 5* | AG27: 213
A28: 66 | B28: Pawlett, Abigail | C28: West Cheshire | D28: C | F28: 0 | G28: 0 | H28: 11.2 | I28: 96 | J28: G1 | L28: 0 | M28: 0 | O28: 0 | P28: 0 | Q28: 1.39 | R28: 75 | S28: G2 | T28: 9.42 | U28: 78 | V28: G1 | X28: 0 | Y28: 0 | Z28: =(LARGE((F28,I28,L28),1)+LARGE((O28,R28),1)+LARGE((U28,X28),1)) -> 249 | AA28: 1 | AB28: 1 | AC28: 5* | AG28: 249
A29: 67 | B29: Tipping, Evie | C29: West Cheshire | D29: C | F29: 0 | G29: 0 | H29: 12.9 | I29: 79 | J29: G4 | K29: 00:02:51.800 | L29: 64 | M29: 0 | O29: 0 | P29: 0 | Q29: 1.27 | R29: 63 | S29: G4 | T29: 8.1 | U29: 71 | V29: G2 | X29: 0 | Y29: 0 | Z29: =(LARGE((F29,I29,L29),1)+LARGE((O29,R29),1)+LARGE((U29,X29),1)) -> 213 | AA29: 3 | AB29: 4 | AC29: 5* | AG29: 213
F30: 0 | G30: 0 | I30: 0 | J30: 0 | L30: 0 | M30: 0 | O30: 0 | P30: 0 | R30: 0 | S30: 0 | U30: 0 | V30: 0 | X30: 0 | Y30: 0 | Z30: =(LARGE((F30,I30,L30),1)+LARGE((O30,R30),1)+LARGE((U30,X30),1)) -> 0 | AG30: 0
F31: 0 | G31: 0 | I31: 0 | J31: 0 | L31: 0 | M31: 0 | O31: 0 | P31: 0 | R31: 0 | S31: 0 | U31: 0 | V31: 0 | X31: 0 | Y31: 0 | Z31: =(LARGE((F31,I31,L31),1)+LARGE((O31,R31),1)+LARGE((U31,X31),1)) -> 0 | AG31: 0
F32: 0 | G32: 0 | I32: 0 | J32: 0 | L32: 0 | M32: 0 | O32: 0 | P32: 0 | R32: 0 | S32: 0 | U32: 0 | V32: 0 | X32: 0 | Y32: 0 | Z32: =(LARGE((F32,I32,L32),1)+LARGE((O32,R32),1)+LARGE((U32,X32),1)) -> 0 | AG32: 0
F33: 0 | G33: 0 | I33: 0 | J33: 0 | L33: 0 | M33: 0 | O33: 0 | P33: 0 | R33: 0 | S33: 0 | U33: 0 | V33: 0 | X33: 0 | Y33: 0 | Z33: =(LARGE((F33,I33,L33),1)+LARGE((O33,R33),1)+LARGE((U33,X33),1)) -> 0 | AG33: 0
F34: 0 | G34: 0 | I34: 0 | J34: 0 | L34: 0 | M34: 0 | O34: 0 | P34: 0 | R34: 0 | S34: 0 | U34: 0 | V34: 0 | X34: 0 | Y34: 0 | Z34: =(LARGE((F34,I34,L34),1)+LARGE((O34,R34),1)+LARGE((U34,X34),1)) -> 0 | AG34: 0
F35: 0 | G35: 0 | I35: 0 | J35: 0 | L35: 0 | M35: 0 | O35: 0 | P35: 0 | R35: 0 | S35: 0 | U35: 0 | V35: 0 | X35: 0 | Y35: 0 | Z35: =(LARGE((F35,I35,L35),1)+LARGE((O35,R35),1)+LARGE((U35,X35),1)) -> 0 | AG35: 0
F36: 0 | G36: 0 | I36: 0 | J36: 0 | L36: 0 | M36: 0 | O36: 0 | P36: 0 | R36: 0 | S36: 0 | U36: 0 | V36: 0 | X36: 0 | Y36: 0 | Z36: =(LARGE((F36,I36,L36),1)+LARGE((O36,R36),1)+LARGE((U36,X36),1)) -> 0 | AG36: 0
F37: 0 | G37: 0 | I37: 0 | J37: 0 | L37: 0 | M37: 0 | O37: 0 | P37: 0 | R37: 0 | S37: 0 | U37: 0 | V37: 0 | X37: 0 | Y37: 0 | Z37: =(LARGE((F37,I37,L37),1)+LARGE((O37,R37),1)+LARGE((U37,X37),1)) -> 0 | AG37: 0
F38: 0 | G38: 0 | I38: 0 | J38: 0 | L38: 0 | M38: 0 | O38: 0 | P38: 0 | R38: 0 | S38: 0 | U38: 0 | V38: 0 | X38: 0 | Y38: 0 | Z38: =(LARGE((F38,I38,L38),1)+LARGE((O38,R38),1)+LARGE((U38,X38),1)) -> 0 | AG38: 0
F39: 0 | G39: 0 | I39: 0 | J39: 0 | L39: 0 | M39: 0 | O39: 0 | P39: 0 | R39: 0 | S39: 0 | U39: 0 | V39: 0 | X39: 0 | Y39: 0 | Z39: =(LARGE((F39,I39,L39),1)+LARGE((O39,R39),1)+LARGE((U39,X39),1)) -> 0 | AG39: 0
F40: 0 | G40: 0 | I40: 0 | J40: 0 | L40: 0 | M40: 0 | O40: 0 | P40: 0 | R40: 0 | S40: 0 | U40: 0 | V40: 0 | X40: 0 | Y40: 0 | Z40: =(LARGE((F40,I40,L40),1)+LARGE((O40,R40),1)+LARGE((U40,X40),1)) -> 0 | AG40: 0
F41: 0 | G41: 0 | I41: 0 | J41: 0 | L41: 0 | M41: 0 | O41: 0 | P41: 0 | R41: 0 | S41: 0 | U41: 0 | V41: 0 | X41: 0 | Y41: 0 | Z41: =(LARGE((F41,I41,L41),1)+LARGE((O41,R41),1)+LARGE((U41,X41),1)) -> 0 | AG41: 0
A42: =COUNTIF(Z7:Z41,">0") -> 22 | B42: Open | C42: Cheshire | D42: =SUMPRODUCT((D7:D41="C")*(Z7:Z41>0)) -> 16

Sheet U15B Pent
A1: =EventTitle -> CHESHIRE COUNTY ATHLETICS ASSOCIATION - Junior Multievent Championship, Macclesfield
H2: U15 Boys Pentathlon
A4: Arranged by: | C4: =ArrangedBy -> Handforth W A A C | H4: Scorer: | K4: =Scorer -> H Branthwaite | R4: Date: | T4: =Date -> 2015-09-13
A5: Sponsored by: | C5: =Sponsor -> Jones Homes | H5: Checked by: | K5: S Cathery & M Norman
A6: No. | B6: Name | C6: Club | D6: Cheshire | E6: 80m Hurdles | F6: Points | G6: Grade | H6: 800m | I6: Points | J6: Grade | K6: Long Jump | L6: Points | M6: Grade | N6: High Jump | O6: Points | P6: Grade | Q6: Shot | R6: Points | S6: Grade | T6: Total Points | U6: Chesh Posit'n | V6: Open Posit'n | W6: Five Star Award | AB6: Chesh Only | AC6: Last Col
A7: 102 | B7: Henshaw, Jamie | C7: Handforth WAAC | D7: C | E7: 19.4 | F7: =IF(E7="DNF",0,IF(E7=0,0,ROUNDDOWN(INDEX(ESAA_U13B_80mH,1,3)*(INDEX(ESAA_U13B_80mH,1,4)-E7-0.24)^INDEX(ESAA_U13B_80mH,1,5),0))) -> 110 | G7: =IF(F7=0,0,IF(E7<=INDEX(AAA_U15B_80mH,1,1),"G1",IF(E7<=INDEX(AAA_U15B_80mH,1,2),"G2",IF(E7<=INDEX(AAA_U15B_80mH,1,3),"G3",IF(E7<=INDEX(AAA_U15B_80mH,1,4),"G4",0))))) -> 0 | H7: 00:03:29.300 | I7: 0 | J7: =IF(I7=0,0,IF(H7<=INDEX(AAA_U15B_800m,1,1),"G1",IF(H7<=INDEX(AAA_U15B_800m,1,2),"G2",IF(H7<=INDEX(AAA_U15B_800m,1,3),"G3",IF(H7<=INDEX(AAA_U15B_800m,1,4),"G4",0))))) -> 0 | K7: 3.11 | L7: =IF(K7="NJ",0,IF(K7=0,0,ROUNDDOWN(INDEX(MP_LJ,1,3)*(K7*100-INDEX(MP_LJ,1,4))^INDEX(MP_LJ,1,5),0))) -> 79 | M7: =IF(L7=0,0,IF(K7>=INDEX(AAA_U15B_LJ,1,1),"G1",IF(K7>=INDEX(AAA_U15B_LJ,1,2),"G2",IF(K7>=INDEX(AAA_U15B_LJ,1,3),"G3",IF(K7>=INDEX(AAA_U15B_LJ,1,4),"G4",0))))) -> 0 | N7: NJ | O7: =IF(N7="NJ",0,IF(N7=0,0,ROUNDDOWN(INDEX(MP_HJ,1,3)*(N7*100-INDEX(MP_HJ,1,4))^INDEX(MP_HJ,1,5),0))) -> 0 | P7: =IF(O7=0,0,IF(N7>=INDEX(AAA_U15B_HJ,1,1),"G1",IF(N7>=INDEX(AAA_U15B_HJ,1,2),"G2",IF(N7>=INDEX(AAA_U15B_HJ,1,3),"G3",IF(N7>=INDEX(AAA_U15B_HJ,1,4),"G4",0))))) -> 0 | Q7: NT | R7: =IF(Q7="NT",0,IF(Q7=0,0,ROUNDDOWN(INDEX(MP_Shot,1,3)*(Q7-INDEX(MP_Shot,1,4))^INDEX(MP_Shot,1,5),0))) -> 0 | S7: =IF(R7=0,0,IF(Q7>=INDEX(AAA_U15B_Shot,1,1),"G1",IF(Q7>=INDEX(AAA_U15B_Shot,1,2),"G2",IF(Q7>=INDEX(AAA_U15B_Shot,1,3),"G3",IF(Q7>=INDEX(AAA_U15B_Shot,1,4),"G4",0))))) -> 0 | T7: =SUM(F7,I7,L7,O7,,R7) -> 189 | U7: =IF(AB7=0,"",RANK(T7,AB$7:AB$35)) -> 6 | V7: =IF(T7=0,"",RANK(T7,T$7:T$35)) -> 7 | AB7: =IF(D7="C",T7,0) -> 189
A8: 103 | B8: Carey, Joshua | C8: Macclesfield H | D8: C | F8: 0 | G8: 0 | I8: =IF(H8="DNF",0,IF(H8=0,0,ROUNDDOWN(INDEX(ESAA_U17M_800m,1,3)*(INDEX(ESAA_U17M_800m,1,4)-H8*24*60*60)^INDEX(ESAA_U17M_800m,1,5),0))) -> 0 | J8: 0 | L8: 0 | M8: 0 | O8: 0 | P8: 0 | R8: 0 | S8: 0 | T8: 0 | W8: =IF(T8<15,"",HLOOKUP(T8,T_U15B_3_Events,7)) ->  | AB8: 0
A9: 104 | B9: Boyd, Harry | C9: Sale H | D9: C | E9: 14.3 | F9: 457 | G9: 0 | H9: 00:02:34.500 | I9: =IF(H9="DNF",0,IF(H9=0,0,ROUNDDOWN(INDEX(ESAA_U17M_800m,1,3)*(INDEX(ESAA_U17M_800m,1,4)-H9*24*60*60)^INDEX(ESAA_U17M_800m,1,5),0))) -> 270 | J9: 0 | K9: 4.77 | L9: 339 | M9: 0 | N9: 1.38 | O9: 303 | P9: 0 | Q9: 8.77 | R9: 412 | S9: 0 | T9: 1781 | U9: 3 | V9: 3 | W9: 5* | AB9: 1781
A10: 105 | B10: Connor, Matthew | C10: Stockport H | F10: 0 | G10: 0 | I10: 0 | J10: 0 | L10: 0 | M10: 0 | O10: 0 | P10: 0 | R10: 0 | S10: 0 | T10: 0 | AB10: 0
A11: 106 | B11: Ramirez, Emilio | C11: Stockport H | E11: 15.9 | F11: 325 | G11: 0 | H11: 00:02:36.100 | I11: 253 | J11: 0 | K11: 3.86 | L11: 184 | M11: 0 | N11: 1.23 | O11: 206 | P11: 0 | Q11: 8.28 | R11: 383 | S11: 0 | T11: 1351 | V11: 5 | W11: 5* | AB11: 0
A12: 107 | B12: Stewart, Cameron | C12: Stockport H | D12: C | E12: 13.3 | F12: 549 | G12: G4 | H12: 00:02:52.500 | I12: 106 | J12: 0 | K12: 5.04 | L12: 390 | M12: G4 | N12: 1.8 | O12: 627 | P12: G1 | Q12: 8.54 | R12: 398 | S12: 0 | T12: 2070 | U12: 2 | V12: 2 | W12: 5* | AB12: 2070
A13: 108 | B13: Herrington, Joshua | C13: Warrington | D13: C | E13: 12.3 | F13: 649 | G13: G2 | H13: 00:02:28 | I13: 346 | J13: 0 | K13: 4.91 | L13: 365 | M13: 0 | N13: 1.65 | O13: 504 | P13: G2 | Q13: 6.19 | R13: 260 | S13: 0 | T13: 2124 | U13: 1 | V13: 1 | W13: 5* | AB13: 2124
A14: 109 | B14: Bowyer, Finnian | C14: West Cheshire | D14: C | E14: 14.6 | F14: 430 | G14: 0 | H14: 00:02:52.800 | I14: 104 | J14: 0 | K14: 3.95 | L14: 198 | M14: 0 | N14: 1.44 | O14: 345 | P14: 0 | Q14: 7.29 | R14: 324 | S14: 0 | T14: 1401 | U14: 4 | V14: 4 | W14: 5* | AB14: 1401
A15: 110 | B15: Mason, Alexander | C15: West Cheshire | D15: C | E15: 18.2 | F15: 172 | G15: 0 | H15: 00:02:21.300 | I15: 433 | J15: 0 | K15: 3.49 | L15: 129 | M15: 0 | N15: 0 | O15: 0 | P15: 0 | Q15: 6.64 | R15: 286 | S15: 0 | T15: 1020 | U15: 5 | V15: 6 | W15: 5* | AB15: 1020
F16: 0 | G16: 0 | I16: 0 | J16: 0 | L16: 0 | M16: 0 | O16: 0 | P16: 0 | R16: 0 | S16: 0 | T16: 0 | AB16: 0
F17: 0 | G17: 0 | I17: 0 | J17: 0 | L17: 0 | M17: 0 | O17: 0 | P17: 0 | R17: 0 | S17: 0 | T17: 0 | W17: =IF(T17<15,"",HLOOKUP(T17,T_U15B_3_Events,7)) ->  | AB17: 0
F18: 0 | G18: 0 | I18: 0 | J18: 0 | L18: 0 | M18: 0 | O18: 0 | P18: 0 | R18: 0 | S18: 0 | T18: 0 | AB18: 0
F19: 0 | G19: 0 | I19: 0 | J19: 0 | L19: 0 | M19: 0 | O19: 0 | P19: 0 | R19: 0 | S19: 0 | T19: 0 | AB19: 0
F20: 0 | G20: 0 | I20: 0 | J20: 0 | L20: 0 | M20: 0 | O20: 0 | P20: 0 | R20: 0 | S20: 0 | T20: 0 | AB20: 0
F21: 0 | G21: 0 | I21: 0 | J21: 0 | L21: 0 | M21: 0 | O21: 0 | P21: 0 | R21: 0 | S21: 0 | T21: 0 | AB21: 0
F22: 0 | G22: 0 | I22: 0 | J22: 0 | L22: 0 | M22: 0 | O22: 0 | P22: 0 | R22: 0 | S22: 0 | T22: 0 | AB22: 0
F23: 0 | G23: 0 | I23: 0 | J23: 0 | L23: 0 | M23: 0 | O23: 0 | P23: 0 | R23: 0 | S23: 0 | T23: 0 | AB23: 0
F24: 0 | G24: 0 | I24: 0 | J24: 0 | L24: 0 | M24: 0 | O24: 0 | P24: 0 | R24: 0 | S24: 0 | T24: 0 | AB24: 0
F25: 0 | G25: 0 | I25: 0 | J25: 0 | L25: 0 | M25: 0 | O25: 0 | P25: 0 | R25: 0 | S25: 0 | T25: 0 | AB25: 0
F26: 0 | G26: 0 | I26: 0 | J26: 0 | L26: 0 | M26: 0 | O26: 0 | P26: 0 | R26: 0 | S26: 0 | T26: 0 | AB26: 0
F27: 0 | G27: 0 | I27: 0 | J27: 0 | L27: 0 | M27: 0 | O27: 0 | P27: 0 | R27: 0 | S27: 0 | T27: 0 | AB27: 0
F28: 0 | G28: 0 | I28: 0 | J28: 0 | L28: 0 | M28: 0 | O28: 0 | P28: 0 | R28: 0 | S28: 0 | T28: 0 | AB28: 0
F29: 0 | G29: 0 | I29: 0 | J29: 0 | L29: 0 | M29: 0 | O29: 0 | P29: 0 | R29: 0 | S29: 0 | T29: 0 | AB29: 0
F30: 0 | G30: 0 | I30: 0 | J30: 0 | L30: 0 | M30: 0 | O30: 0 | P30: 0 | R30: 0 | S30: 0 | T30: 0 | AB30: 0
F31: 0 | G31: 0 | I31: 0 | J31: 0 | L31: 0 | M31: 0 | O31: 0 | P31: 0 | R31: 0 | S31: 0 | T31: 0 | AB31: 0
F32: 0 | G32: 0 | I32: 0 | J32: 0 | L32: 0 | M32: 0 | O32: 0 | P32: 0 | R32: 0 | S32: 0 | T32: 0 | AB32: 0
F33: 0 | G33: 0 | I33: 0 | J33: 0 | L33: 0 | M33: 0 | O33: 0 | P33: 0 | R33: 0 | S33: 0 | T33: 0 | AB33: 0
F34: 0 | G34: 0 | I34: 0 | J34: 0 | L34: 0 | M34: 0 | O34: 0 | P34: 0 | R34: 0 | S34: 0 | T34: 0 | AB34: 0
F35: 0 | G35: 0 | I35: 0 | J35: 0 | L35: 0 | M35: 0 | O35: 0 | P35: 0 | R35: 0 | S35: 0 | T35: 0 | AB35: 0
A36: =COUNTIF(T7:T35,">0") -> 7 | B36: Open | C36: Cheshire | D36: =SUMPRODUCT((D7:D35="C")*(T7:T35>0)) -> 6

Sheet U15G Pent
A1: =EventTitle -> CHESHIRE COUNTY ATHLETICS ASSOCIATION - Junior Multievent Championship, Macclesfield
H2: U15 Girls Pentathlon
A4: Arranged by: | C4: =ArrangedBy -> Handforth W A A C | H4: Scorer: | K4: =Scorer -> H Branthwaite | R4: Date: | T4: =Date -> 2015-09-13
A5: Sponsored by: | C5: =Sponsor -> Jones Homes | H5: Checked by: | K5: S Cathery & M Norman
A6: No. | B6: Name | C6: Club | D6: Cheshire | E6: 75m Hurdles | F6: Points | G6: Grade | H6: 800m | I6: Points | J6: Grade | K6: Long Jump | L6: Points | M6: Grade | N6: High Jump | O6: Points | P6: Grade | Q6: Shot | R6: Points | S6: Grade | T6: Total Points | U6: Chesh Posit'n | V6: Open Posit'n | W6: Five Star Award | AB6: Chesh Only | AC6: Last Col
A7: 84 | B7: Atkinson, Amelia | C7: Crewe & Nantwich | D7: C | E7: 13.3 | F7: =IF(E7="DNF",0,IF(E7=0,0,IF(E7>22.7,"0",VLOOKUP(ROUNDUP(E7,1),T_ESAA_U15G_75mH,2,TRUE)))) -> 539 | G7: =IF(F7=0,0,IF(E7<=INDEX(AAA_U15G_75mH,1,1),"G1",IF(E7<=INDEX(AAA_U15G_75mH,1,2),"G2",IF(E7<=INDEX(AAA_U15G_75mH,1,3),"G3",IF(E7<=INDEX(AAA_U15G_75mH,1,4),"G4",0))))) -> G4 | H7: 00:02:39.600 | I7: =IF(H7="DNF",0,IF(H7=0,0,ROUNDDOWN(INDEX(WP_800m,1,3)*(INDEX(WP_800m,1,4)-H7*24*60*60)^INDEX(WP_800m,1,5),0))) -> 577 | J7: =IF(I7=0,0,IF(H7<=INDEX(AAA_U15G_800m,1,1),"G1",IF(H7<=INDEX(AAA_U15G_800m,1,2),"G2",IF(H7<=INDEX(AAA_U15G_800m,1,3),"G3",IF(H7<=INDEX(AAA_U15G_800m,1,4),"G4",0))))) -> 0 | K7: 3.83 | L7: =IF(K7="NJ",0,IF(K7=0,0,ROUNDDOWN(INDEX(WP_LJ,1,3)*(K7*100-INDEX(WP_LJ,1,4))^INDEX(WP_LJ,1,5),0))) -> 270 | M7: =IF(L7=0,0,IF(K7>=INDEX(AAA_U15G_LJ,1,1),"G1",IF(K7>=INDEX(AAA_U15G_LJ,1,2),"G2",IF(K7>=INDEX(AAA_U15G_LJ,1,3),"G3",IF(K7>=INDEX(AAA_U15G_LJ,1,4),"G4",0))))) -> 0 | N7: 1.39 | O7: =IF(N7="NJ",0,IF(N7=0,0,ROUNDDOWN(INDEX(WP_HJ,1,3)*(N7*100-INDEX(WP_HJ,1,4))^INDEX(WP_HJ,1,5),0))) -> 502 | P7: =IF(O7=0,0,IF(N7>=INDEX(AAA_U15G_HJ,1,1),"G1",IF(N7>=INDEX(AAA_U15G_HJ,1,2),"G2",IF(N7>=INDEX(AAA_U15G_HJ,1,3),"G3",IF(N7>=INDEX(AAA_U15G_HJ,1,4),"G4",0))))) -> 0 | Q7: 6.65 | R7: =IF(Q7="NT",0,IF(Q7=0,0,ROUNDDOWN(INDEX(WP_Shot,1,3)*(Q7-INDEX(WP_Shot,1,4))^INDEX(WP_Shot,1,5),0))) -> 313 | S7: =IF(R7=0,0,IF(Q7>=INDEX(AAA_U15G_Shot,1,1),"G1",IF(Q7>=INDEX(AAA_U15G_Shot,1,2),"G2",IF(Q7>=INDEX(AAA_U15G_Shot,1,3),"G3",IF(Q7>=INDEX(AAA_U15G_Shot,1,4),"G4",0))))) -> 0 | T7: =SUM(F7,I7,L7,O7,,R7) -> 2201 | U7: =IF(AB7=0,"",RANK(T7,AB$7:AB$35)) -> 3 | V7: =IF(T7=0,"",RANK(T7,T$7:T$35)) -> 5 | AB7: =IF(D7="C",T7,0) -> 2201
A8: 85 | B8: Leydon, Zoe | C8: Crewe & Nantwich | D8: C | E8: 14.6 | F8: 430 | G8: 0 | H8: 00:02:35.800 | I8: 622 | J8: 0 | K8: 3.9 | L8: 285 | M8: 0 | N8: 1.24 | O8: 350 | P8: 0 | Q8: 5.98 | R8: 270 | S8: 0 | T8: 1957 | U8: 6 | V8: 10 | W8: =IF(T8<15,"",HLOOKUP(T8,T_U15B_3_Events,7)) -> 5* | AB8: 1957
A9: 86 | B9: Palin, Jennifer | C9: Crewe & Nantwich | D9: C | E9: 16.3 | F9: 307 | G9: 0 | H9: 00:03:24.200 | I9: 173 | J9: 0 | K9: 3.81 | L9: 265 | M9: 0 | N9: 1.33 | O9: 439 | P9: 0 | Q9: 6.33 | R9: 292 | S9: 0 | T9: 1476 | U9: 9 | V9: 14 | AB9: 1476
A10: 87 | B10: Farrell, Alfi | C10: East Cheshire H | E10: 13.4 | F10: 530 | G10: G4 | H10: 00:02:51.600 | I10: 447 | J10: 0 | K10: 4.07 | L10: 324 | M10: 0 | N10: 1.33 | O10: 439 | P10: 0 | Q10: 7.96 | R10: 397 | S10: 0 | T10: 2137 | V10: 7 | W10: =IF(T10<15,"",HLOOKUP(T10,T_U15B_3_Events,7)) -> 5* | AB10: 0
A11: 88 | B11: Skidmore, Chloe | C11: East Cheshire H | E11: 14 | F11: 480 | G11: 0 | H11: 00:02:37.700 | I11: 600 | J11: 0 | K11: 4.23 | L11: 362 | M11: 0 | N11: 1.24 | O11: 350 | P11: 0 | Q11: 6.85 | R11: 325 | S11: 0 | T11: 2117 | V11: 8 | W11: 5* | AB11: 0
A12: 89 | B12: Keep, Morgan | C12: Handforth WAAC | D12: C | E12: 20 | F12: 109 | G12: 0 | H12: 00:03:37.300 | I12: 97 | J12: 0 | K12: 2.65 | L12: 53 | M12: 0 | N12: 1.09 | O12: 214 | P12: 0 | Q12: 5.04 | R12: 211 | S12: 0 | T12: 684 | U12: 10 | V12: 15 | W12: 5* | AB12: 684
A13: 90 | B13: Hickey, Laura | C13: Leigh H | E13: 12.1 | F13: 663 | G13: G2 | H13: 00:02:43.900 | I13: 529 | J13: 0 | K13: 4.9 | L13: 532 | M13: G2 | N13: 1.42 | O13: 534 | P13: G4 | Q13: 6.18 | R13: 283 | S13: 0 | T13: 2541 | V13: 2 | W13: 5* | AB13: 0
A14: 91 | B14: McLean, Sanna | C14: Leigh H | F14: 0 | G14: 0 | I14: 0 | J14: 0 | L14: 0 | M14: 0 | O14: 0 | P14: 0 | R14: 0 | S14: 0 | T14: 0 | AB14: 0
A15: 92 | B15: Cobey, Eve | C15: Macclesfield H | D15: C | E15: 17.6 | F15: 228 | G15: 0 | H15: 00:02:47.800 | I15: 487 | J15: 0 | K15: 4.04 | L15: 317 | M15: 0 | N15: 1.24 | O15: 350 | P15: 0 | Q15: 5.43 | R15: 235 | S15: 0 | T15: 1617 | U15: 8 | V15: 13 | W15: 5* | AB15: 1617
A16: 93 | B16: Elliot, Josephine | C16: Macclesfield H | D16: C | E16: 18.2 | F16: 196 | G16: 0 | H16: 00:02:36.700 | I16: 611 | J16: 0 | K16: 4.57 | L16: 446 | M16: G4 | N16: 1.27 | O16: 379 | P16: 0 | Q16: 7.28 | R16: 353 | S16: 0 | T16: 1985 | U16: 5 | V16: 9 | AB16: 1985
A17: 94 | B17: Harrison, Chloe | C17: Macclesfield H | D17: C | F17: 0 | G17: 0 | I17: 0 | J17: 0 | L17: 0 | M17: 0 | O17: 0 | P17: 0 | R17: 0 | S17: 0 | T17: 0 | AB17: 0
A18: 95 | B18: Kyriacou, Sam | C18: Macclesfield H | D18: C | E18: 16.7 | F18: 282 | G18: 0 | H18: 00:02:35.600 | I18: 624 | J18: 0 | K18: 3.64 | L18: 229 | M18: 0 | N18: 1.21 | O18: 321 | P18: 0 | Q18: 5.76 | R18: 256 | S18: 0 | T18: 1712 | U18: 7 | V18: 12 | W18: 5.04 | AB18: 1712
A19: 96 | B19: Lowery, Emily | C19: Macclesfield H | D19: C | E19: 14.7 | F19: 422 | G19: 0 | H19: 00:02:26.100 | I19: 743 | J19: G4 | K19: 3.89 | L19: 283 | M19: 0 | N19: 1.33 | O19: 439 | P19: 0 | Q19: 5.8 | R19: 259 | S19: 0 | T19: 2146 | U19: 4 | V19: 6 | W19: =IF(T19<15,"",HLOOKUP(T19,T_U15B_3_Events,7)) -> 5* | AB19: 2146
A20: 97 | B20: McTiffin, Lois | C20: Sale H | D20: C | E20: 12.7 | F20: 599 | G20: G3 | H20: 00:02:39.800 | I20: 575 | J20: 0 | K20: 4.65 | L20: 466 | M20: G4 | N20: 1.48 | O20: 599 | P20: G3 | Q20: 9.56 | R20: 501 | S20: G3 | T20: 2740 | U20: 1 | V20: 1 | W20: =IF(T20<15,"",HLOOKUP(T20,T_U15B_3_Events,7)) -> 5* | AB20: 2740
A21: 98 | B21: Giller, Alice | C21: Stockport H | D21: C | F21: 0 | G21: 0 | I21: 0 | J21: 0 | L21: 0 | M21: 0 | O21: 0 | P21: 0 | R21: 0 | S21: 0 | T21: 0 | W21: =IF(T21<15,"",HLOOKUP(T21,T_U15B_3_Events,7)) ->  | AB21: 0
A22: 99 | B22: Giller, Catherine | C22: Stockport H | D22: C | E22: 12.4 | F22: 630 | G22: G3 | H22: 00:02:51.400 | I22: 449 | J22: 0 | K22: 4.68 | L22: 474 | M22: G4 | N22: 1.27 | O22: 379 | P22: 0 | Q22: 6.34 | R22: 293 | S22: 0 | T22: 2225 | U22: 2 | V22: 4 | W22: =IF(T22<15,"",HLOOKUP(T22,T_U15B_3_Events,7)) -> 5* | AB22: 2225
A23: 100 | B23: Morrison, Tasmin | C23: Trafford | E23: 14.7 | F23: 422 | G23: 0 | H23: 00:02:58.900 | I23: 375 | J23: 0 | K23: 4.05 | L23: 319 | M23: 0 | N23: 1.24 | O23: 350 | P23: 0 | Q23: 5.95 | R23: 268 | S23: 0 | T23: 1734 | V23: 11 | AB23: 0
A24: 101 | B24: Rowlands, Emma | C24: Wirral AC | E24: 13.3 | F24: 539 | G24: G4 | H24: 00:02:48.500 | I24: 479 | J24: 0 | K24: 4.27 | L24: 371 | M24: 0 | N24: 1.36 | O24: 470 | P24: 0 | Q24: 9.57 | R24: 501 | S24: G3 | T24: 2360 | V24: 3 | W24: =IF(T24<15,"",HLOOKUP(T24,T_U15B_3_Events,7)) -> 5* | AB24: 0
F25: 0 | G25: 0 | I25: 0 | J25: 0 | L25: 0 | M25: 0 | O25: 0 | P25: 0 | R25: 0 | S25: 0 | T25: 0 | AB25: 0
F26: 0 | G26: 0 | I26: 0 | J26: 0 | L26: 0 | M26: 0 | O26: 0 | P26: 0 | R26: 0 | S26: 0 | T26: 0 | AB26: 0
F27: 0 | G27: 0 | I27: 0 | J27: 0 | L27: 0 | M27: 0 | O27: 0 | P27: 0 | R27: 0 | S27: 0 | T27: 0 | AB27: 0
F28: 0 | G28: 0 | I28: 0 | J28: 0 | L28: 0 | M28: 0 | O28: 0 | P28: 0 | R28: 0 | S28: 0 | T28: 0 | AB28: 0
F29: 0 | G29: 0 | I29: 0 | J29: 0 | L29: 0 | M29: 0 | O29: 0 | P29: 0 | R29: 0 | S29: 0 | T29: 0 | AB29: 0
F30: 0 | G30: 0 | I30: 0 | J30: 0 | L30: 0 | M30: 0 | O30: 0 | P30: 0 | R30: 0 | S30: 0 | T30: 0 | AB30: 0
F31: 0 | G31: 0 | I31: 0 | J31: 0 | L31: 0 | M31: 0 | O31: 0 | P31: 0 | R31: 0 | S31: 0 | T31: 0 | AB31: 0
F32: 0 | G32: 0 | I32: 0 | J32: 0 | L32: 0 | M32: 0 | O32: 0 | P32: 0 | R32: 0 | S32: 0 | T32: 0 | AB32: 0
F33: 0 | G33: 0 | I33: 0 | J33: 0 | L33: 0 | M33: 0 | O33: 0 | P33: 0 | R33: 0 | S33: 0 | T33: 0 | AB33: 0
F34: 0 | G34: 0 | I34: 0 | J34: 0 | L34: 0 | M34: 0 | O34: 0 | P34: 0 | R34: 0 | S34: 0 | T34: 0 | AB34: 0
F35: 0 | G35: 0 | I35: 0 | J35: 0 | L35: 0 | M35: 0 | O35: 0 | P35: 0 | R35: 0 | S35: 0 | T35: 0 | AB35: 0
A36: =COUNTIF(T7:T35,">0") -> 15 | B36: Open | C36: Cheshire | D36: =SUMPRODUCT((D7:D35="C")*(T7:T35>0)) -> 10

Sheet U17W Pent
A1: =EventTitle -> CHESHIRE COUNTY ATHLETICS ASSOCIATION - Junior Multievent Championship, Macclesfield
H2: U17 Women Pentathlon
A4: Arranged by: | C4: =ArrangedBy -> Handforth W A A C | H4: Scorer: | K4: =Scorer -> H Branthwaite | R4: Date: | T4: =Date -> 2015-09-13
A5: Sponsored by: | C5: =Sponsor -> Jones Homes | H5: Checked by: | K5: S Cathery & M Norman
A6: No. | B6: Name | C6: Club | D6: Cheshire | E6: 80m Hurdles | F6: Points | G6: Grade | H6: Shot | I6: Points | J6: Grade | K6: Long Jump | L6: Points | M6: Grade | N6: High Jump | O6: Points | P6: Grade | Q6: 800m | R6: Points | S6: Grade | T6: Total Points | U6: Chesh Posit'n | V6: Open Posit'n | W6: Five Star Award | AB6: Chesh Only | AC6: Last Col
A7: 111 | B7: Hughes, Liberty | C7: Crewe & Nantwich | D7: C | E7: 13.1 | F7: =IF(E7="DNF",0,IF(E7=0,0,IF(E7>23.7,"0",VLOOKUP(ROUNDUP(E7,1),T_ESAA_U17G_80mH,2,TRUE)))) -> 663 | G7: =IF(F7=0,0,IF(E7<=INDEX(AAA_U17W_80mH,1,1),"G1",IF(E7<=INDEX(AAA_U17W_80mH,1,2),"G2",IF(E7<=INDEX(AAA_U17W_80mH,1,3),"G3",IF(E7<=INDEX(AAA_U17W_80mH,1,4),"G4",0))))) -> G4 | H7: 8.37 | I7: =IF(H7="NT",0,IF(H7=0,0,ROUNDDOWN(INDEX(WP_Shot,1,3)*(H7-INDEX(WP_Shot,1,4))^INDEX(WP_Shot,1,5),0))) -> 423 | J7: =IF(I7=0,0,IF(H7>=INDEX(AAA_U17W_Shot,1,1),"G1",IF(H7>=INDEX(AAA_U17W_Shot,1,2),"G2",IF(H7>=INDEX(AAA_U17W_Shot,1,3),"G3",IF(H7>=INDEX(AAA_U17W_Shot,1,4),"G4",0))))) -> 0 | K7: 5.25 | L7: =IF(K7="NJ",0,IF(K7=0,0,ROUNDDOWN(INDEX(WP_LJ,1,3)*(K7*100-INDEX(WP_LJ,1,4))^INDEX(WP_LJ,1,5),0))) -> 628 | M7: =IF(L7=0,0,IF(K7>=INDEX(AAA_U17W_LJ,1,1),"G1",IF(K7>=INDEX(AAA_U17W_LJ,1,2),"G2",IF(K7>=INDEX(AAA_U17W_LJ,1,3),"G3",IF(K7>=INDEX(AAA_U17W_LJ,1,4),"G4",0))))) -> G2 | N7: 1.48 | O7: =IF(N7="NJ",0,IF(N7=0,0,ROUNDDOWN(INDEX(WP_HJ,1,3)*(N7*100-INDEX(WP_HJ,1,4))^INDEX(WP_HJ,1,5),0))) -> 599 | P7: =IF(O7=0,0,IF(N7>=INDEX(AAA_U17W_HJ,1,1),"G1",IF(N7>=INDEX(AAA_U17W_HJ,1,2),"G2",IF(N7>=INDEX(AAA_U17W_HJ,1,3),"G3",IF(N7>=INDEX(AAA_U17W_HJ,1,4),"G4",0))))) -> 0 | Q7: 00:02:35.600 | R7: =IF(Q7="DNF",0,IF(Q7=0,0,ROUNDDOWN(INDEX(WP_800m,1,3)*(INDEX(WP_800m,1,4)-Q7*24*60*60)^INDEX(WP_800m,1,5),0))) -> 624 | S7: =IF(R7=0,0,IF(Q7<=INDEX(AAA_U17W_800m,1,1),"G1",IF(Q7<=INDEX(AAA_U17W_800m,1,2),"G2",IF(Q7<=INDEX(AAA_U17W_800m,1,3),"G3",IF(Q7<=INDEX(AAA_U17W_800m,1,4),"G4",0))))) -> 0 | T7: =SUM(F7,I7,L7,O7,,R7) -> 2937 | U7: =IF(AB7=0,"",RANK(T7,AB$7:AB$21)) -> 1 | V7: =IF(T7=0,"",RANK(T7,T$7:T$21)) -> 1 | W7: =IF(T7<15,"",HLOOKUP(T7,T_U13B_3_Events,5)) -> 5* | AB7: =IF(D7="C",T7,0) -> 2937
A8: 112 | B8: Cooper, Katie | C8: Manchester H | E8: 17 | F8: 327 | G8: 0 | H8: 8.03 | I8: 401 | J8: 0 | K8: 3.85 | L8: 274 | M8: 0 | N8: 1.15 | O8: 266 | P8: 0 | Q8: 00:02:46.600 | R8: 500 | S8: 0 | T8: 1768 | V8: 5 | W8: =IF(T8<15,"",HLOOKUP(T8,T_U13B_3_Events,5)) -> 5* | AB8: 0
A9: 113 | B9: Decker, Sophie | C9: Stockport H | D9: C | E9: 12.9 | F9: 686 | G9: G4 | H9: 8.5 | I9: 432 | J9: 0 | K9: 4.76 | L9: 495 | M9: 0 | N9: 1.39 | O9: 502 | P9: 0 | Q9: 00:02:36.100 | R9: 618 | S9: 0 | T9: 2733 | U9: 2 | V9: 2 | W9: =IF(T9<15,"",HLOOKUP(T9,T_U13B_3_Events,5)) -> 5* | AB9: 2733
A10: 114 | B10: Jackson, Amy | C10: Stockport H | D10: C | E10: 13.7 | F10: 599 | G10: 0 | H10: 7.05 | I10: 338 | J10: 0 | K10: 4.49 | L10: 426 | M10: 0 | N10: 1.39 | O10: 502 | P10: 0 | Q10: 00:03:01 | R10: 356 | S10: 0 | T10: 2221 | U10: 4 | V10: 4 | AB10: 2221
A11: 115 | B11: Shaw, Hannah | C11: Warrington | D11: C | E11: 14.2 | F11: 549 | G11: 0 | H11: 7.02 | I11: 336 | J11: 0 | K11: 4.3 | L11: 379 | M11: 0 | N11: 1.42 | O11: 534 | P11: 0 | Q11: 00:02:49.600 | R11: 468 | S11: 0 | T11: 2266 | U11: 3 | V11: 3 | W11: =IF(T11<15,"",HLOOKUP(T11,T_U13B_3_Events,5)) -> 5* | AB11: 2266
F12: 0 | G12: 0 | I12: 0 | J12: 0 | L12: 0 | M12: 0 | O12: 0 | P12: 0 | R12: 0 | S12: 0 | T12: 0 | AB12: 0
F13: 0 | G13: 0 | I13: 0 | J13: 0 | L13: 0 | M13: 0 | O13: 0 | P13: 0 | R13: 0 | S13: 0 | T13: 0 | AB13: 0
F14: 0 | G14: 0 | I14: 0 | J14: 0 | L14: 0 | M14: 0 | O14: 0 | P14: 0 | R14: 0 | S14: 0 | T14: 0 | AB14: 0
F15: 0 | G15: 0 | I15: 0 | J15: 0 | L15: 0 | M15: 0 | O15: 0 | P15: 0 | R15: 0 | S15: 0 | T15: 0 | AB15: 0
F16: 0 | G16: 0 | I16: 0 | J16: 0 | L16: 0 | M16: 0 | O16: 0 | P16: 0 | R16: 0 | S16: 0 | T16: 0 | AB16: 0
F17: 0 | G17: 0 | I17: 0 | J17: 0 | L17: 0 | M17: 0 | O17: 0 | P17: 0 | R17: 0 | S17: 0 | T17: 0 | AB17: 0
F18: 0 | G18: 0 | I18: 0 | J18: 0 | L18: 0 | M18: 0 | O18: 0 | P18: 0 | R18: 0 | S18: 0 | T18: 0 | AB18: 0
F19: 0 | G19: 0 | I19: 0 | J19: 0 | L19: 0 | M19: 0 | O19: 0 | P19: 0 | R19: 0 | S19: 0 | T19: 0 | AB19: 0
F20: 0 | G20: 0 | I20: 0 | J20: 0 | L20: 0 | M20: 0 | O20: 0 | P20: 0 | R20: 0 | S20: 0 | T20: 0 | AB20: 0
F21: 0 | G21: 0 | I21: 0 | J21: 0 | L21: 0 | M21: 0 | O21: 0 | P21: 0 | R21: 0 | S21: 0 | T21: 0 | AB21: 0
A22: =COUNTIF(T7:T21,">0") -> 5 | B22: Open | C22: Cheshire | D22: =SUMPRODUCT((D7:D21="C")*(T7:T21>0)) -> 4

Sheet U17M Pent
A1: =EventTitle -> CHESHIRE COUNTY ATHLETICS ASSOCIATION - Junior Multievent Championship, Macclesfield
H2: U17 Men Pentathlon
A4: Arranged by: | C4: =ArrangedBy -> Handforth W A A C | H4: Scorer: | K4: =Scorer -> H Branthwaite | R4: Date: | T4: =Date -> 2015-09-13
A5: Sponsored by: | C5: =Sponsor -> Jones Homes | H5: Checked by: | K5: S Cathery & M Norman
A6: No. | B6: Name | C6: Club | D6: Cheshire | E6: 100m Hurdles | F6: Points | G6: Grade | H6: Shot | I6: Points | J6: Grade | K6: Long Jump | L6: Points | M6: Grade | N6: High Jump | O6: Points | P6: Grade | Q6: 800m | R6: Points | S6: Grade | T6: Total Points | U6: Chesh Posit'n | V6: Open Posit'n | W6: Five Star Award | AB6: Chesh Only | AC6: Last Col
A7: 116 | B7: Palin, Lewis | C7: Crewe & Nantwich | D7: C | E7: 15.3 | F7: =IF(E7="DNF",0,IF(E7=0,0,ROUNDDOWN(INDEX(ESAA_U17M_100mH,1,3)*(INDEX(ESAA_U17M_100mH,1,4)-E7-0.24)^INDEX(ESAA_U17M_100mH,1,5),0))) -> 635 | G7: =IF(E7=0,0,IF(E7<=INDEX(AAA_U17M_100mH,1,1),"G1",IF(E7<=INDEX(AAA_U17M_100mH,1,2),"G2",IF(E7<=INDEX(AAA_U17M_100mH,1,3),"G3",IF(E7<=INDEX(AAA_U17M_100mH,1,4),"G4",0))))) -> G4 | H7: 5.82 | I7: =IF(H7="NT",0,IF(H7=0,0,ROUNDDOWN(INDEX(MP_Shot,1,3)*(H7-INDEX(MP_Shot,1,4))^INDEX(MP_Shot,1,5),0))) -> 238 | J7: =IF(I7=0,0,IF(H7>=INDEX(AAA_U17M_Shot,1,1),"G1",IF(H7>=INDEX(AAA_U17M_Shot,1,2),"G2",IF(H7>=INDEX(AAA_U17M_Shot,1,3),"G3",IF(H7>=INDEX(AAA_U17M_Shot,1,4),"G4",0))))) -> 0 | K7: 5.53 | L7: =IF(K7="NJ",0,IF(K7=0,0,ROUNDDOWN(INDEX(MP_LJ,1,3)*(K7*100-INDEX(MP_LJ,1,4))^INDEX(MP_LJ,1,5),0))) -> 487 | M7: =IF(L7=0,0,IF(K7>=INDEX(AAA_U17M_LJ,1,1),"G1",IF(K7>=INDEX(AAA_U17M_LJ,1,2),"G2",IF(K7>=INDEX(AAA_U17M_LJ,1,3),"G3",IF(K7>=INDEX(AAA_U17M_LJ,1,4),"G4",0))))) -> 0 | N7: 1.5 | O7: =IF(N7="NJ",0,IF(N7=0,0,ROUNDDOWN(INDEX(MP_HJ,1,3)*(N7*100-INDEX(MP_HJ,1,4))^INDEX(MP_HJ,1,5),0))) -> 389 | P7: =IF(O7=0,0,IF(N7>=INDEX(AAA_U17M_HJ,1,1),"G1",IF(N7>=INDEX(AAA_U17M_HJ,1,2),"G2",IF(N7>=INDEX(AAA_U17M_HJ,1,3),"G3",IF(N7>=INDEX(AAA_U17M_HJ,1,4),"G4",0))))) -> 0 | Q7: 00:02:25.200 | R7: =IF(Q7="DNF",0,IF(Q7=0,0,ROUNDDOWN(INDEX(ESAA_U17M_800m,1,3)*(INDEX(ESAA_U17M_800m,1,4)-Q7*24*60*60)^INDEX(ESAA_U17M_800m,1,5),0))) -> 382 | S7: =IF(Q7=0,0,IF(Q7<=INDEX(AAA_U17M_800m,1,1),"G1",IF(Q7<=INDEX(AAA_U17M_800m,1,2),"G2",IF(Q7<=INDEX(AAA_U17M_800m,1,3),"G3",IF(Q7<=INDEX(AAA_U17M_800m,1,4),"G4",0))))) -> 0 | T7: =SUM(F7,I7,L7,O7,,R7) -> 2131 | U7: =IF(AB7=0,"",RANK(T7,AB$7:AB$21)) -> 3 | V7: =IF(T7=0,"",RANK(T7,T$7:T$21)) -> 3 | W7: =IF(T7<15,"",HLOOKUP(T7,T_U13B_3_Events,5)) -> 5* | AB7: =IF(D7="C",T7,0) -> 2131
A8: 117 | B8: Milligan, Ethan | C8: West Cheshire | D8: C | F8: 0 | G8: 0 | I8: 0 | J8: 0 | L8: 0 | M8: 0 | O8: 0 | P8: 0 | R8: 0 | S8: 0 | T8: 0 | AB8: 0
A9: 118 | B9: Simpson, Harry | C9: Macclesfield H | D9: C | E9: 15.4 | F9: 625 | G9: G4 | H9: 7.49 | I9: 336 | J9: 0 | K9: 5.31 | L9: 443 | M9: 0 | N9: 1.35 | O9: 283 | P9: 0 | Q9: 00:02:10 | R9: 601 | S9: 0 | T9: 2288 | U9: 1 | V9: 1 | W9: 5* | AB9: 2288
A10: 119 | B10: Roe, Franklyn | C10: Crewe & Nantwich | D10: C | E10: 16.3 | F10: 537 | G10: 0 | H10: 8.22 | I10: 379 | J10: 0 | K10: 5.54 | L10: 490 | M10: 0 | N10: 1.62 | O10: 480 | P10: 0 | Q10: 00:02:32.300 | R10: 295 | S10: 0 | T10: 2181 | U10: 2 | V10: 2 | W10: 5* | AB10: 2181
F11: 0 | G11: 0 | I11: 0 | J11: 0 | L11: 0 | M11: 0 | O11: 0 | P11: 0 | R11: 0 | S11: 0 | T11: 0 | AB11: 0
F12: 0 | G12: 0 | I12: 0 | J12: 0 | L12: 0 | M12: 0 | O12: 0 | P12: 0 | R12: 0 | S12: 0 | T12: 0 | AB12: 0
F13: 0 | G13: 0 | I13: 0 | J13: 0 | L13: 0 | M13: 0 | O13: 0 | P13: 0 | R13: 0 | S13: 0 | T13: 0 | AB13: 0
F14: 0 | G14: 0 | I14: 0 | J14: 0 | L14: 0 | M14: 0 | O14: 0 | P14: 0 | R14: 0 | S14: 0 | T14: 0 | AB14: 0
F15: 0 | G15: 0 | I15: 0 | J15: 0 | L15: 0 | M15: 0 | O15: 0 | P15: 0 | R15: 0 | S15: 0 | T15: 0 | AB15: 0
F16: 0 | G16: 0 | I16: 0 | J16: 0 | L16: 0 | M16: 0 | O16: 0 | P16: 0 | R16: 0 | S16: 0 | T16: 0 | AB16: 0
F17: 0 | G17: 0 | I17: 0 | J17: 0 | L17: 0 | M17: 0 | O17: 0 | P17: 0 | R17: 0 | S17: 0 | T17: 0 | AB17: 0
F18: 0 | G18: 0 | I18: 0 | J18: 0 | L18: 0 | M18: 0 | O18: 0 | P18: 0 | R18: 0 | S18: 0 | T18: 0 | AB18: 0
F19: 0 | G19: 0 | I19: 0 | J19: 0 | L19: 0 | M19: 0 | O19: 0 | P19: 0 | R19: 0 | S19: 0 | T19: 0 | AB19: 0
F20: 0 | G20: 0 | I20: 0 | J20: 0 | L20: 0 | M20: 0 | O20: 0 | P20: 0 | R20: 0 | S20: 0 | T20: 0 | AB20: 0
F21: 0 | G21: 0 | I21: 0 | J21: 0 | L21: 0 | M21: 0 | O21: 0 | P21: 0 | R21: 0 | S21: 0 | T21: 0 | AB21: 0
A22: =COUNTIF(T7:T21,">0") -> 3 | B22: Open | C22: Cheshire | D22: =SUMPRODUCT((D7:D21="C")*(T7:T21>0)) -> 3

Sheet Scoring Tables
B1: SPRINTS | F1: DISTANCE | I1: HURDLES | N1: STEEPLE CHASE | AH1: ESAA U15G 75m Hurdles | AJ1: ESAA U17G 80m Hurdles
A2: Points | B2: 100m | C2: 200m | D2: 300m | E2: 400m | F2: 800m | G2: 1500m | H2: 3000m | I2: 55m | J2: 70m 75m 80m | K2: 100m 110m | L2: 300m | M2: 400m | N2: 1500m | O2: 2000m | P2: Points | Q2: Points | R2: High Jump | S2: Long Jump | T2: Triple Jump | U2: Pole Vault | V2: Shot | W2: Discus | X2: Javelin | Y2: Hammer | Z2: Standing Long Jump | AA2: Standing Triple Jump | AB2: Vertical Jump | AC2: Points | AH2: Manual Timing | AJ2: Manual Timing
A3: Amt. Per Extra Pt. | B3: 0.1 | P3: Amt. Per Extra Pt. | Q3: Amt. Per Extra Pt. | AC3: Amt. Per Extra Pt. | AH3: 8.3 | AI3: OFFSCALE | AJ3: 9 | AK3: OFFSCALE
A4: 100 | B4: 11.3 | F4: 00:02:00 | P4: 100 | Q4: 1 | R4: 0.65 | S4: 1.9 | AC4: 1 | AH4: 8.4 | AI4: ERR | AJ4: 9.1 | AK4: ERR
A5: 99 | B5: 11.4 | F5: 00:02:02 | P5: 99 | Q5: 2 | R5: 0.66 | S5: 1.93 | AC5: 2 | AH5: 8.5 | AI5: ERR | AJ5: 9.2 | AK5: ERR
A6: 98 | B6: 11.5 | F6: 00:02:04 | P6: 98 | Q6: 3 | R6: 0.67 | S6: 1.97 | AC6: 3 | AH6: 8.6 | AI6: ERR | AJ6: 9.3 | AK6: ERR
A7: 97 | B7: 11.6 | F7: 00:02:06 | P7: 97 | Q7: 4 | R7: 0.68 | S7: 2 | AC7: 4 | AH7: 8.7 | AI7: ERR | AJ7: 9.4 | AK7: ERR
A8: 96 | B8: 11.7 | F8: 00:02:08 | J8: 11.2 | P8: 96 | Q8: 5 | R8: 0.69 | S8: 2.03 | AC8: 5 | AH8: 8.9 | AI8: ERR | AJ8: 9.5 | AK8: ERR
A9: 95 | B9: 11.8 | F9: 00:02:10 | J9: 11.3 | P9: 95 | Q9: 6 | R9: 0.7 | S9: 2.05 | AC9: 6 | AH9: 9 | AI9: ERR | AJ9: 9.6 | AK9: ERR
A10: 94 | B10: 11.9 | F10: 00:02:11 | J10: 11.4 | P10: 94 | Q10: 7 | R10: 0.71 | S10: 2.07 | AC10: 7 | AH10: 9.1 | AI10: 1103 | AJ10: 9.7 | AK10: 1182
A11: 93 | B11: 12 | F11: 00:02:12 | J11: 11.5 | P11: 93 | Q11: 8 | R11: 0.72 | S11: 2.1 | AC11: 8 | AH11: 9.2 | AI11: 1084 | AJ11: 9.8 | AK11: 1162
A12: 92 | B12: 12.1 | F12: 00:02:13 | J12: 11.6 | P12: 92 | Q12: 9 | R12: 0.73 | S12: 2.13 | AC12: 9 | AH12: 9.3 | AI12: 1066 | AJ12: 9.9 | AK12: 1142
A13: 91 | B13: 12.2 | F13: 00:02:14 | J13: 11.7 | P13: 91 | Q13: 10 | R13: 0.74 | S13: 2.16 | AC13: 10 | AH13: 9.4 | AI13: 1048 | AJ13: 10 | AK13: 1122
A14: 90 | B14: 12.3 | F14: 00:02:15 | J14: 11.8 | P14: 90 | Q14: 11 | R14: 0.75 | S14: 2.19 | V14: 2 | X14: 4 | AC14: 11 | AH14: 9.5 | AI14: 1030 | AJ14: 10.1 | AK14: 1103
A15: 89 | B15: 12.4 | F15: 00:02:16 | J15: 11.9 | P15: 89 | Q15: 12 | R15: 0.76 | S15: 2.22 | V15: 2.1 | X15: 4.5 | AC15: 12 | AH15: 9.6 | AI15: 1012 | AJ15: 10.2 | AK15: 1084
A16: 88 | B16: 12.5 | F16: 00:02:17 | J16: 12 | P16: 88 | Q16: 13 | R16: 0.77 | S16: 2.25 | V16: 2.2 | X16: 5 | AC16: 13 | AH16: 9.7 | AI16: 995 | AJ16: 10.3 | AK16: 1066
A17: 87 | B17: 12.6 | F17: 00:02:18 | J17: 12.1 | P17: 87 | Q17: 14 | R17: 0.78 | S17: 2.28 | V17: 2.3 | X17: 5.5 | AC17: 14 | AH17: 9.8 | AI17: 978 | AJ17: 10.4 | AK17: 1048
A18: 86 | B18: 12.7 | F18: 00:02:19 | J18: 12.2 | P18: 86 | Q18: 15 | R18: 0.79 | S18: 2.31 | V18: 2.4 | X18: 6 | AC18: 15 | AH18: 9.9 | AI18: 962 | AJ18: 10.5 | AK18: 1030
A19: 85 | B19: 12.8 | F19: 00:02:20 | J19: 12.3 | P19: 85 | Q19: 16 | R19: 0.8 | S19: 2.34 | V19: 2.5 | X19: 6.5 | AC19: 16 | AH19: 10 | AI19: 946 | AJ19: 10.6 | AK19: 1012
A20: 84 | B20: 12.9 | F20: 00:02:21 | J20: 12.4 | P20: 84 | Q20: 17 | R20: 0.81 | S20: 2.37 | V20: 2.6 | X20: 7 | AC20: 17 | AH20: 10.1 | AI20: 930 | AJ20: 10.7 | AK20: 995
A21: 83 | B21: 13 | F21: 00:02:22 | J21: 12.5 | P21: 83 | Q21: 18 | R21: 0.82 | S21: 2.4 | V21: 2.7 | X21: 7.5 | AC21: 18 | AH21: 10.2 | AI21: 914 | AJ21: 10.8 | AK21: 978
A22: 82 | B22: 13.1 | F22: 00:02:23 | J22: 12.6 | P22: 82 | Q22: 19 | R22: 0.83 | S22: 2.43 | V22: 2.8 | X22: 8 | AC22: 19 | AH22: 10.3 | AI22: 899 | AJ22: 10.9 | AK22: 962
A23: 81 | B23: 13.2 | F23: 00:02:24 | J23: 12.7 | P23: 81 | Q23: 20 | R23: 0.84 | S23: 2.46 | V23: 2.9 | X23: 8.5 | AC23: 20 | AH23: 10.4 | AI23: 884 | AJ23: 11 | AK23: 946
A24: 80 | B24: 13.3 | F24: 00:02:25 | J24: 12.8 | P24: 80 | Q24: 21 | R24: 0.85 | S24: 2.49 | V24: 3 | X24: 9 | AC24: 21 | AH24: 10.5 | AI24: 869 | AJ24: 11.1 | AK24: 930
A25: 79 | B25: 13.4 | F25: 00:02:26 | J25: 12.9 | P25: 79 | Q25: 22 | R25: 0.86 | S25: 2.52 | V25: 3.1 | X25: 9.25 | AC25: 22 | AH25: 10.6 | AI25: 855 | AJ25: 11.2 | AK25: 914
A26: 78 | B26: 13.5 | F26: 00:02:27 | J26: 13 | P26: 78 | Q26: 23 | R26: 0.87 | S26: 2.55 | V26: 3.2 | X26: 9.5 | AC26: 23 | AH26: 10.7 | AI26: 840 | AJ26: 11.3 | AK26: 899
A27: 77 | B27: 13.6 | F27: 00:02:28 | J27: 13.1 | P27: 77 | Q27: 24 | R27: 0.88 | S27: 2.58 | V27: 3.3 | X27: 9.75 | AC27: 24 | AH27: 10.8 | AI27: 826 | AJ27: 11.4 | AK27: 884
A28: 76 | B28: 13.7 | F28: 00:02:29 | J28: 13.2 | P28: 76 | Q28: 25 | R28: 0.89 | S28: 2.61 | V28: 3.4 | X28: 10 | AC28: 25 | AH28: 10.9 | AI28: 813 | AJ28: 11.5 | AK28: 869
A29: 75 | B29: 13.8 | F29: 00:02:30 | J29: 13.3 | P29: 75 | Q29: 26 | R29: 0.9 | S29: 2.64 | V29: 3.5 | X29: 10.25 | AC29: 26 | AH29: 11 | AI29: 799 | AJ29: 11.6 | AK29: 855
A30: 74 | B30: 13.9 | F30: 00:02:32 | J30: 13.4 | P30: 74 | Q30: 27 | R30: 0.91 | S30: 2.67 | V30: 3.6 | X30: 10.5 | AC30: 27 | AH30: 11.1 | AI30: 786 | AJ30: 11.7 | AK30: 840
A31: 73 | B31: 14 | F31: 00:02:34 | J31: 13.5 | P31: 73 | Q31: 28 | R31: 0.92 | S31: 2.7 | V31: 3.7 | X31: 10.75 | AC31: 28 | AH31: 11.2 | AI31: 773 | AJ31: 11.8 | AK31: 826
A32: 72 | F32: 00:02:36 | J32: 13.6 | P32: 72 | Q32: 29 | R32: 0.93 | S32: 2.73 | V32: 3.8 | X32: 11 | AC32: 29 | AH32: 11.3 | AI32: 760 | AJ32: 11.9 | AK32: 813
A33: 71 | B33: 14.1 | F33: 00:02:38 | J33: 13.7 | P33: 71 | Q33: 30 | R33: 0.94 | S33: 2.76 | V33: 3.9 | X33: 11.25 | AC33: 30 | AH33: 11.4 | AI33: 747 | AJ33: 12 | AK33: 799
A34: 70 | F34: 00:02:40 | J34: 13.8 | P34: 70 | Q34: 31 | R34: 0.95 | S34: 2.79 | V34: 4 | X34: 11.5 | AC34: 31 | AH34: 11.5 | AI34: 734 | AJ34: 12.1 | AK34: 786
A35: 69 | B35: 14.2 | F35: 00:02:42 | J35: 13.9 | P35: 69 | Q35: 32 | R35: 0.96 | S35: 2.82 | V35: 4.1 | X35: 11.75 | AC35: 32 | AH35: 11.6 | AI35: 722 | AJ35: 12.2 | AK35: 773
A36: 68 | F36: 00:02:44 | J36: 14 | P36: 68 | Q36: 33 | R36: 0.97 | S36: 2.85 | V36: 4.2 | X36: 12 | AC36: 33 | AH36: 11.7 | AI36: 710 | AJ36: 12.3 | AK36: 760
A37: 67 | B37: 14.3 | F37: 00:02:46 | J37: 14.1 | P37: 67 | Q37: 34 | R37: 0.98 | S37: 2.88 | V37: 4.3 | X37: 12.25 | AC37: 34 | AH37: 11.8 | AI37: 698 | AJ37: 12.4 | AK37: 747
A38: 66 | F38: 00:02:48 | J38: 14.2 | P38: 66 | Q38: 35 | R38: 0.99 | S38: 2.91 | V38: 4.4 | X38: 12.5 | AC38: 35 | AH38: 11.9 | AI38: 686 | AJ38: 12.5 | AK38: 734
A39: 65 | B39: 14.4 | F39: 00:02:50 | J39: 14.3 | P39: 65 | Q39: 36 | R39: 1 | S39: 2.94 | V39: 4.5 | X39: 12.75 | AC39: 36 | AH39: 12 | AI39: 675 | AJ39: 12.6 | AK39: 722
A40: 64 | F40: 00:02:52 | J40: 14.4 | P40: 64 | Q40: 37 | R40: 1.01 | S40: 2.97 | V40: 4.6 | X40: 13 | AC40: 37 | AH40: 12.1 | AI40: 663 | AJ40: 12.7 | AK40: 710
A41: 63 | B41: 14.5 | F41: 00:02:54 | J41: 14.5 | P41: 63 | Q41: 38 | R41: 1.02 | S41: 3 | V41: 4.7 | X41: 13.25 | AC41: 38 | AH41: 12.2 | AI41: 652 | AJ41: 12.8 | AK41: 698
A42: 62 | F42: 00:02:56 | J42: 14.6 | P42: 62 | Q42: 39 | R42: 1.03 | S42: 3.03 | V42: 4.8 | X42: 13.5 | AC42: 39 | AH42: 12.3 | AI42: 641 | AJ42: 12.9 | AK42: 686
A43: 61 | B43: 14.6 | F43: 00:02:58 | J43: 14.7 | P43: 61 | Q43: 40 | R43: 1.04 | S43: 3.06 | V43: 4.9 | X43: 13.75 | AC43: 40 | AH43: 12.4 | AI43: 630 | AJ43: 13 | AK43: 675
A44: 60 | F44: 00:03:00 | J44: 14.8 | P44: 60 | Q44: 41 | R44: 1.05 | S44: 3.09 | V44: 5 | X44: 14 | AC44: 41 | AH44: 12.5 | AI44: 620 | AJ44: 13.1 | AK44: 663
A45: 59 | B45: 14.7 | F45: 00:03:02 | J45: 14.9 | P45: 59 | Q45: 42 | R45: 1.06 | S45: 3.12 | V45: 5.1 | X45: 14.25 | AC45: 42 | AH45: 12.6 | AI45: 609 | AJ45: 13.2 | AK45: 652
A46: 58 | F46: 00:03:04 | J46: 15 | P46: 58 | Q46: 43 | R46: 1.07 | S46: 3.15 | V46: 5.2 | X46: 14.5 | AC46: 43 | AH46: 12.7 | AI46: 599 | AJ46: 13.3 | AK46: 641
A47: 57 | B47: 14.8 | F47: 00:03:06 | J47: 15.1 | P47: 57 | Q47: 44 | R47: 1.08 | S47: 3.18 | V47: 5.3 | X47: 14.75 | AC47: 44 | AH47: 12.8 | AI47: 588 | AJ47: 13.4 | AK47: 630
A48: 56 | F48: 00:03:08 | J48: 15.2 | P48: 56 | Q48: 45 | R48: 1.09 | S48: 3.21 | V48: 5.4 | X48: 15 | AC48: 45 | AH48: 12.9 | AI48: 578 | AJ48: 13.5 | AK48: 620
A49: 55 | B49: 14.9 | F49: 00:03:10 | J49: 15.3 | P49: 55 | Q49: 46 | R49: 1.1 | S49: 3.24 | V49: 5.5 | X49: 15.25 | AC49: 46 | AH49: 13 | AI49: 568 | AJ49: 13.6 | AK49: 609
A50: 54 | F50: 00:03:12 | J50: 15.4 | P50: 54 | Q50: 47 | R50: 1.11 | S50: 3.27 | V50: 5.6 | X50: 15.5 | AC50: 47 | AH50: 13.1 | AI50: 558 | AJ50: 13.7 | AK50: 599
A51: 53 | B51: 15 | F51: 00:03:14 | J51: 15.5 | P51: 53 | Q51: 48 | R51: 1.12 | S51: 3.3 | V51: 5.7 | X51: 15.75 | AC51: 48 | AH51: 13.2 | AI51: 549 | AJ51: 13.8 | AK51: 588
A52: 52 | F52: 00:03:16 | J52: 15.6 | P52: 52 | Q52: 49 | R52: 1.13 | S52: 3.33 | V52: 5.8 | X52: 16 | AC52: 49 | AH52: 13.3 | AI52: 539 | AJ52: 13.9 | AK52: 578
A53: 51 | B53: 15.1 | F53: 00:03:18 | J53: 15.7 | P53: 51 | Q53: 50 | R53: 1.14 | S53: 3.36 | V53: 5.9 | X53: 16.25 | AC53: 50 | AH53: 13.4 | AI53: 530 | AJ53: 14 | AK53: 568
A54: 50 | F54: 00:03:20 | J54: 15.8 | P54: 50 | Q54: 51 | R54: 1.15 | S54: 3.39 | V54: 6 | X54: 16.5 | AC54: 51 | AH54: 13.5 | AI54: 521 | AJ54: 14.1 | AK54: 558
A55: 49 | B55: 15.2 | F55: 00:03:22 | J55: 15.9 | P55: 49 | Q55: 52 | R55: 1.16 | S55: 3.42 | V55: 6.1 | X55: 16.75 | AC55: 52 | AH55: 13.6 | AI55: 511 | AJ55: 14.2 | AK55: 549
A56: 48 | B56: 15.3 | F56: 00:03:24 | J56: 16 | P56: 48 | Q56: 53 | R56: 1.17 | S56: 3.45 | V56: 6.2 | X56: 17 | AC56: 53 | AH56: 13.7 | AI56: 502 | AJ56: 14.3 | AK56: 539
A57: 47 | B57: 15.4 | F57: 00:03:26 | J57: 16.1 | P57: 47 | Q57: 54 | R57: 1.18 | S57: 3.48 | V57: 6.3 | X57: 17.25 | AC57: 54 | AH57: 13.8 | AI57: 497 | AJ57: 14.4 | AK57: 530
A58: 46 | B58: 15.5 | F58: 00:03:28 | J58: 16.2 | P58: 46 | Q58: 55 | R58: 1.19 | S58: 3.51 | V58: 6.4 | X58: 17.5 | AC58: 55 | AH58: 13.9 | AI58: 489 | AJ58: 14.5 | AK58: 521
A59: 45 | B59: 15.6 | F59: 00:03:30 | J59: 16.3 | P59: 45 | Q59: 56 | R59: 1.2 | S59: 3.54 | V59: 6.5 | X59: 17.75 | AC59: 56 | AH59: 14 | AI59: 480 | AJ59: 14.6 | AK59: 511
A60: 44 | B60: 15.7 | F60: 00:03:32 | J60: 16.4 | P60: 44 | Q60: 57 | R60: 1.21 | S60: 3.57 | V60: 6.6 | X60: 18 | AC60: 57 | AH60: 14.1 | AI60: 471 | AJ60: 14.7 | AK60: 502
A61: 43 | B61: 15.8 | F61: 00:03:34 | J61: 16.5 | P61: 43 | Q61: 58 | R61: 1.22 | S61: 3.6 | V61: 6.7 | X61: 18.25 | AC61: 58 | AH61: 14.2 | AI61: 463 | AJ61: 14.8 | AK61: 497
A62: 42 | B62: 15.9 | F62: 00:03:36 | J62: 16.6 | P62: 42 | Q62: 59 | R62: 1.23 | S62: 3.63 | V62: 6.8 | X62: 18.5 | AC62: 59 | AH62: 14.3 | AI62: 454 | AJ62: 14.9 | AK62: 489
A63: 41 | B63: 16 | F63: 00:03:38 | J63: 16.7 | P63: 41 | Q63: 60 | R63: 1.24 | S63: 3.66 | V63: 6.9 | X63: 18.75 | AC63: 60 | AH63: 14.4 | AI63: 446 | AJ63: 15 | AK63: 480
A64: 40 | B64: 16.1 | F64: 00:03:40 | J64: 16.8 | P64: 40 | Q64: 61 | R64: 1.25 | S64: 3.69 | V64: 7 | X64: 19 | AC64: 61 | AH64: 14.5 | AI64: 438 | AJ64: 15.1 | AK64: 471
A65: 39 | B65: 16.2 | F65: 00:03:42 | J65: 16.9 | P65: 39 | Q65: 62 | R65: 1.26 | S65: 3.72 | V65: 7.1 | X65: 19.25 | AC65: 62 | AH65: 14.6 | AI65: 430 | AJ65: 15.2 | AK65: 463
A66: 38 | B66: 16.3 | F66: 00:03:44 | J66: 17 | P66: 38 | Q66: 63 | R66: 1.27 | S66: 3.75 | V66: 7.2 | X66: 19.5 | AC66: 63 | AH66: 14.7 | AI66: 422 | AJ66: 15.3 | AK66: 454
A67: 37 | B67: 16.4 | F67: 00:03:46 | J67: 17.1 | P67: 37 | Q67: 64 | R67: 1.28 | S67: 3.78 | V67: 7.3 | X67: 19.75 | AC67: 64 | AH67: 14.8 | AI67: 414 | AJ67: 15.4 | AK67: 446
A68: 36 | B68: 16.5 | F68: 00:03:48 | J68: 17.2 | P68: 36 | Q68: 65 | R68: 1.29 | S68: 3.81 | V68: 7.4 | X68: 20 | AC68: 65 | AH68: 14.9 | AI68: 406 | AJ68: 15.5 | AK68: 438
A69: 35 | B69: 16.6 | F69: 00:03:50 | J69: 17.3 | P69: 35 | Q69: 66 | R69: 1.3 | S69: 3.84 | V69: 7.5 | X69: 20.25 | AC69: 66 | AH69: 15 | AI69: 399 | AJ69: 15.6 | AK69: 430
A70: 34 | B70: 16.7 | F70: 00:03:52 | J70: 17.4 | P70: 34 | Q70: 67 | R70: 1.31 | S70: 3.87 | V70: 7.6 | X70: 20.5 | AC70: 67 | AH70: 15.1 | AI70: 391 | AJ70: 15.7 | AK70: 422
A71: 33 | B71: 16.8 | F71: 00:03:54 | J71: 17.5 | P71: 33 | Q71: 68 | R71: 1.32 | S71: 3.9 | V71: 7.7 | X71: 20.75 | AC71: 68 | AH71: 15.2 | AI71: 384 | AJ71: 15.8 | AK71: 414
A72: 32 | B72: 16.9 | F72: 00:03:56 | J72: 17.6 | P72: 32 | Q72: 69 | R72: 1.33 | S72: 3.93 | V72: 7.8 | X72: 21 | AC72: 69 | AH72: 15.3 | AI72: 376 | AJ72: 15.9 | AK72: 406
A73: 31 | B73: 17 | F73: 00:03:58 | J73: 17.7 | P73: 31 | Q73: 70 | R73: 1.34 | S73: 3.97 | V73: 7.9 | X73: 22 | AC73: 70 | AH73: 15.4 | AI73: 369 | AJ73: 16 | AK73: 399
A74: 30 | B74: 17.1 | F74: 00:04:00 | J74: 17.8 | P74: 30 | Q74: 71 | R74: 1.35 | S74: 4 | V74: 8 | X74: 23 | AC74: 71 | AH74: 15.5 | AI74: 362 | AJ74: 16.1 | AK74: 391
A75: 29 | B75: 17.2 | F75: 00:04:02 | J75: 17.9 | P75: 29 | Q75: 72 | R75: 1.36 | S75: 4.1 | V75: 8.2 | X75: 24 | AC75: 72 | AH75: 15.6 | AI75: 355 | AJ75: 16.2 | AK75: 384
A76: 28 | B76: 17.3 | F76: 00:04:04 | J76: 18 | P76: 28 | Q76: 73 | R76: 1.37 | S76: 4.2 | V76: 8.4 | X76: 25 | AC76: 73 | AH76: 15.7 | AI76: 348 | AJ76: 16.3 | AK76: 376
A77: 27 | B77: 17.4 | F77: 00:04:06 | J77: 18.1 | P77: 27 | Q77: 74 | R77: 1.38 | S77: 4.3 | V77: 8.6 | X77: 26 | AC77: 74 | AH77: 15.8 | AI77: 341 | AJ77: 16.4 | AK77: 369
A78: 26 | B78: 17.5 | F78: 00:04:08 | J78: 18.2 | P78: 26 | Q78: 75 | R78: 1.39 | S78: 4.4 | V78: 8.8 | X78: 27 | AC78: 75 | AH78: 15.9 | AI78: 334 | AJ78: 16.5 | AK78: 362
A79: 25 | B79: 17.6 | F79: 00:04:10 | J79: 18.3 | P79: 25 | Q79: 76 | R79: 1.4 | S79: 4.5 | V79: 9 | X79: 28 | AC79: 76 | AH79: 16 | AI79: 327 | AJ79: 16.6 | AK79: 355
A80: 24 | B80: 17.7 | F80: 00:04:12 | J80: 18.4 | P80: 24 | Q80: 77 | R80: 1.42 | S80: 4.6 | V80: 9.2 | X80: 29 | AC80: 77 | AH80: 16.1 | AI80: 320 | AJ80: 16.7 | AK80: 348
A81: 23 | B81: 17.8 | F81: 00:04:14 | J81: 18.5 | P81: 23 | Q81: 78 | R81: 1.44 | S81: 4.7 | V81: 9.4 | X81: 30 | AC81: 78 | AH81: 16.2 | AI81: 314 | AJ81: 16.8 | AK81: 341
A82: 22 | B82: 17.9 | F82: 00:04:16 | J82: 18.6 | P82: 22 | Q82: 79 | R82: 1.46 | S82: 4.8 | V82: 9.6 | X82: 31 | AC82: 79 | AH82: 16.3 | AI82: 307 | AJ82: 16.9 | AK82: 334
A83: 21 | B83: 18 | F83: 00:04:18 | J83: 18.7 | P83: 21 | Q83: 80 | R83: 1.48 | S83: 4.9 | V83: 9.8 | X83: 32 | AC83: 80 | AH83: 16.4 | AI83: 301 | AJ83: 17 | AK83: 327
A84: 20 | B84: 18.1 | F84: 00:04:20 | J84: 18.8 | P84: 20 | Q84: 81 | R84: 1.5 | S84: 5 | V84: 10 | X84: 33 | AC84: 81 | AH84: 16.5 | AI84: 294 | AJ84: 17.1 | AK84: 320
A85: 19 | B85: 18.2 | F85: 00:04:22 | J85: 18.9 | P85: 19 | Q85: 82 | R85: 1.52 | S85: 5.05 | V85: 10.2 | X85: 34 | AC85: 82 | AH85: 16.6 | AI85: 288 | AJ85: 17.2 | AK85: 314
A86: 18 | B86: 18.3 | F86: 00:04:24 | J86: 19 | P86: 18 | Q86: 83 | R86: 1.54 | S86: 5.1 | V86: 10.4 | X86: 35 | AC86: 83 | AH86: 16.7 | AI86: 282 | AJ86: 17.3 | AK86: 307
A87: 17 | B87: 18.4 | F87: 00:04:26 | J87: 19.1 | P87: 17 | Q87: 84 | R87: 1.56 | S87: 5.15 | V87: 10.6 | X87: 36 | AC87: 84 | AH87: 16.8 | AI87: 275 | AJ87: 17.4 | AK87: 301
A88: 16 | B88: 18.5 | F88: 00:04:28 | J88: 19.2 | P88: 16 | Q88: 85 | R88: 1.58 | S88: 5.2 | V88: 10.8 | X88: 37 | AC88: 85 | AH88: 16.9 | AI88: 269 | AJ88: 17.5 | AK88: 294
A89: 15 | B89: 18.6 | F89: 00:04:30 | J89: 19.3 | P89: 15 | Q89: 86 | R89: 1.6 | S89: 5.25 | V89: 11 | X89: 38 | AC89: 86 | AH89: 17 | AI89: 263 | AJ89: 17.6 | AK89: 288
A90: 14 | B90: 18.7 | F90: 00:04:32 | J90: 19.4 | P90: 14 | Q90: 87 | R90: 1.62 | S90: 5.3 | V90: 11.2 | X90: 39 | AC90: 87 | AH90: 17.1 | AI90: 257 | AJ90: 17.7 | AK90: 282
A91: 13 | B91: 18.8 | F91: 00:04:34 | J91: 19.5 | P91: 13 | Q91: 88 | R91: 1.64 | S91: 5.35 | V91: 11.4 | X91: 40 | AC91: 88 | AH91: 17.2 | AI91: 251 | AJ91: 17.8 | AK91: 275
A92: 12 | B92: 18.9 | F92: 00:04:36 | J92: 19.6 | P92: 12 | Q92: 89 | R92: 1.66 | S92: 5.4 | V92: 11.6 | X92: 41 | AC92: 89 | AH92: 17.3 | AI92: 246 | AJ92: 17.9 | AK92: 269
A93: 11 | B93: 19 | F93: 00:04:38 | J93: 19.7 | P93: 11 | Q93: 90 | R93: 1.68 | S93: 5.5 | V93: 11.8 | X93: 42 | AC93: 90 | AH93: 17.4 | AI93: 240 | AJ93: 18 | AK93: 263
A94: 10 | B94: 19.2 | F94: 00:04:40 | J94: 19.8 | P94: 10 | Q94: 91 | R94: 1.7 | S94: 5.6 | V94: 12 | X94: 43 | AC94: 91 | AH94: 17.5 | AI94: 234 | AJ94: 18.1 | AK94: 257
A95: 9 | B95: 19.4 | F95: 00:04:42 | J95: 19.9 | P95: 9 | Q95: 92 | R95: 1.72 | S95: 5.7 | V95: 12.2 | X95: 44 | AC95: 92 | AH95: 17.6 | AI95: 228 | AJ95: 18.2 | AK95: 251
A96: 8 | B96: 19.6 | F96: 00:04:44 | J96: 20 | P96: 8 | Q96: 93 | R96: 1.74 | S96: 5.8 | V96: 12.4 | X96: 45 | AC96: 93 | AH96: 17.7 | AI96: 223 | AJ96: 18.3 | AK96: 246
A97: 7 | B97: 19.8 | F97: 00:04:46 | J97: 20.1 | P97: 7 | Q97: 94 | R97: 1.76 | S97: 5.9 | V97: 12.6 | X97: 46 | AC97: 94 | AH97: 17.8 | AI97: 217 | AJ97: 18.4 | AK97: 240
A98: 6 | B98: 20 | F98: 00:04:48 | J98: 20.2 | P98: 6 | Q98: 95 | R98: 1.78 | S98: 6 | V98: 12.8 | X98: 47 | AC98: 95 | AH98: 17.9 | AI98: 212 | AJ98: 18.5 | AK98: 234
A99: 5 | B99: 20.2 | F99: 00:04:50 | J99: 20.3 | P99: 5 | Q99: 96 | R99: 1.8 | S99: 6.1 | V99: 13 | X99: 48 | AC99: 96 | AH99: 18 | AI99: 206 | AJ99: 18.6 | AK99: 228
A100: 4 | B100: 20.4 | F100: 00:04:52 | J100: 20.4 | P100: 4 | Q100: 97 | R100: 1.82 | S100: 6.2 | V100: 13.2 | X100: 49 | AC100: 97 | AH100: 18.1 | AI100: 201 | AJ100: 18.7 | AK100: 223
A101: 3 | B101: 20.6 | F101: 00:04:54 | J101: 20.5 | P101: 3 | Q101: 98 | R101: 1.84 | S101: 6.3 | V101: 13.4 | X101: 50 | AC101: 98 | AH101: 18.2 | AI101: 196 | AJ101: 18.8 | AK101: 217
A102: 2 | B102: 20.8 | F102: 00:04:56 | J102: 20.6 | P102: 2 | Q102: 99 | R102: 1.86 | S102: 6.4 | V102: 13.6 | X102: 51 | AC102: 99 | AH102: 18.3 | AI102: 190 | AJ102: 18.9 | AK102: 212
A103: 1 | B103: 21 | F103: 00:04:58 | J103: 20.7 | P103: 1 | Q103: 100 | R103: 1.88 | S103: 6.5 | V103: 13.8 | X103: 52 | AC103: 100 | AH103: 18.4 | AI103: 185 | AJ103: 19 | AK103: 206
AH104: 18.5 | AI104: 180 | AJ104: 19.1 | AK104: 201
A105: Boys Three Events | H105: Girls Three Events | AH105: 18.6 | AI105: 175 | AJ105: 19.2 | AK105: 196
B106: 1* | C106: 2* | D106: 3* | E106: 4* | F106: 5* | I106: 1* | J106: 2* | K106: 3* | L106: 4* | M106: 5* | AH106: 18.7 | AI106: 170 | AJ106: 19.3 | AK106: 190
A107: Sen | B107: 75 | C107: 125 | D107: 175 | E107: 210 | F107: 240 | H107: Sen | I107: 50 | J107: 90 | K107: 135 | L107: 170 | M107: 210 | AH107: 18.8 | AI107: 165 | AJ107: 19.4 | AK107: 185
A108: U15 | B108: 75 | C108: 115 | D108: 160 | E108: 195 | F108: 225 | H108: U15 | I108: 50 | J108: 85 | K108: 120 | L108: 155 | M108: 195 | AH108: 18.9 | AI108: 160 | AJ108: 19.5 | AK108: 180
A109: U14 | B109: 60 | C109: 100 | D109: 135 | E109: 170 | F109: 210 | H109: U14 | I109: 50 | J109: 80 | K109: 110 | L109: 140 | M109: 180 | AH109: 19 | AI109: 155 | AJ109: 19.6 | AK109: 175
A110: U13 | B110: 50 | C110: 85 | D110: 120 | E110: 155 | F110: 195 | H110: U13 | I110: 45 | J110: 75 | K110: 95 | L110: 125 | M110: 165 | AH110: 19.1 | AI110: 150 | AJ110: 19.7 | AK110: 170
A111: U12 | B111: 40 | C111: 70 | D111: 105 | E111: 135 | F111: 165 | H111: U12 | I111: 35 | J111: 60 | K111: 80 | L111: 110 | M111: 150 | AH111: 19.2 | AI111: 146 | AJ111: 19.8 | AK111: 165
A112: U11 | B112: 25 | C112: 55 | D112: 90 | E112: 120 | F112: 150 | H112: U11 | I112: 25 | J112: 45 | K112: 65 | L112: 95 | M112: 135 | AH112: 19.3 | AI112: 141 | AJ112: 19.9 | AK112: 160
A113: U10 | B113: 15 | C113: 40 | D113: 75 | E113: 105 | F113: 135 | H113: U10 | I113: 15 | J113: 30 | K113: 50 | L113: 80 | M113: 120 | AH113: 19.4 | AI113: 136 | AJ113: 20 | AK113: 155
B114: 1* | C114: 2* | D114: 3* | E114: 4* | F114: 5* | I114: 1* | J114: 2* | K114: 3* | L114: 4* | M114: 5* | AH114: 19.5 | AI114: 131 | AJ114: 20.1 | AK114: 150
AH115: 19.6 | AI115: 127 | AJ115: 20.2 | AK115: 146
AH116: 19.7 | AI116: 122 | AJ116: 20.3 | AK116: 141
AH117: 19.8 | AI117: 118 | AJ117: 20.4 | AK117: 136
B118: 120 | C118: 190 | D118: 265 | E118: 335 | F118: 385 | AH118: 19.9 | AI118: 113 | AJ118: 20.5 | AK118: 131
B119: 110 | AH119: 20 | AI119: 109 | AJ119: 20.6 | AK119: 127
AH120: 20.1 | AI120: 104 | AJ120: 20.7 | AK120: 122
AH121: 20.2 | AI121: 100 | AJ121: 20.8 | AK121: 118
AH122: 20.3 | AI122: 96 | AJ122: 20.9 | AK122: 113
A123: IAAF Scoring Tables for Combined Events | H123: Parameters used are: | J123: A | K123: B* | L123: C | AH123: 20.4 | AI123: 92 | AJ123: 21 | AK123: 109
AH124: 20.5 | AI124: 87 | AJ124: 21.1 | AK124: 104
B125: MEN'S | C125: EVENTS | D125: a | E125: b | F125: c | H125: MALE EVENTS | AH125: 20.6 | AI125: 83 | AJ125: 21.2 | AK125: 100
B126: 100m | C126: (auto) | D126: 25.4347 | E126: 18 | F126: 1.81 | H126: 100 Meter | J126: 25.4347 | K126: 18 | L126: 1.81 | AH126: 20.7 | AI126: 79 | AJ126: 21.3 | AK126: 96
B127: 110mH | C127: (auto) | D127: 5.74352 | E127: 28.5 | F127: 1.92 | H127: 100 Meter Intermediate Boys hurdles | J127: 7.237 | K127: 27 | L127: 1.835 | M127: U15 | AH127: 20.8 | AI127: 75 | AJ127: 21.4 | AK127: 92
B128: 1500m | D128: 0.03768 | E128: 480 | F128: 1.85 | H128: 110 Meter Hurdles | J128: 5.74352 | K128: 28.5 | L128: 1.92 | AH128: 20.9 | AI128: 71 | AJ128: 21.5 | AK128: 87
B129: 200m | C129: (auto) | D129: 5.8425 | E129: 38 | F129: 1.81 | H129: 1500 Meter | J129: 0.03768 | K129: 480 | L129: 1.85 | AH129: 21 | AI129: 67 | AJ129: 21.6 | AK129: 83
B130: 400m | C130: (auto) | D130: 1.53775 | E130: 82 | F130: 1.81 | H130: 200 Meter | J130: 5.8425 | K130: 38 | L130: 1.81 | AH130: 21.1 | AI130: 63 | AJ130: 21.7 | AK130: 79
B131: Discus | D131: 12.91 | E131: 4 | F131: 1.1 | H131: 400 Meter | J131: 1.53775 | K131: 82 | L131: 1.81 | AH131: 21.2 | AI131: 59 | AJ131: 21.8 | AK131: 75
B132: High Jump | D132: 0.8465 | E132: 75 | F132: 1.42 | H132: 80 Meter Junior Boys Hurdles | J132: 7.399 | K132: 24 | L132: 1.835 | M132: U13 | AH132: 21.3 | AI132: 55 | AJ132: 21.9 | AK132: 71
B133: Javelin | D133: 10.14 | E133: 7 | F133: 1.08 | H133: 800m Intermediate Boys | J133: 0.232 | K133: 200 | L133: 1.85 | M133: U15 | AH133: 21.4 | AI133: 51 | AJ133: 22 | AK133: 67
B134: Long Jump | D134: 0.14354 | E134: 220 | F134: 1.4 | H134: Discus | J134: 12.91 | K134: 4 | L134: 1.1 | AH134: 21.5 | AI134: 47 | AJ134: 22.1 | AK134: 63
B135: Pole Vault | D135: 0.2797 | E135: 100 | F135: 1.35 | H135: High Jump | J135: 0.8465 | K135: 75 | L135: 1.42 | AH135: 21.6 | AI135: 43 | AJ135: 22.2 | AK135: 59
B136: Shot | D136: 51.39 | E136: 1.5 | F136: 1.05 | H136: Javelin | J136: 10.14 | K136: 7 | L136: 1.08 | AH136: 21.7 | AI136: 39 | AJ136: 22.3 | AK136: 55
A137: (Indoors) | B137: 60m | C137: (auto) | D137: 58.015 | E137: 11.5 | F137: 1.81 | H137: Long Jump | J137: 0.14354 | K137: 220 | L137: 1.4 | AH137: 21.8 | AI137: 36 | AJ137: 22.4 | AK137: 51
A138: (Indoors) | B138: 1000m | D138: 0.08713 | E138: 305.5 | F138: 1.85 | H138: Pole Vault | J138: 0.2797 | K138: 100 | L138: 1.35 | AH138: 21.9 | AI138: 32 | AJ138: 22.5 | AK138: 47
A139: (Indoors) | B139: 60mH | C139: (auto) | D139: 20.5173 | E139: 15.5 | F139: 1.92 | H139: Shot | J139: 51.39 | K139: 1.5 | L139: 1.05 | AH139: 22 | AI139: 28 | AJ139: 22.6 | AK139: 43
AH140: 22.1 | AI140: 25 | AJ140: 22.7 | AK140: 39
B141: WOMEN'S | C141: EVENTS | D141: a | E141: b | F141: c | H141: FEMALE EVENTS | AH141: 22.2 | AI141: 21 | AJ141: 22.8 | AK141: 36
B142: 200m | C142: (auto) | D142: 4.99087 | E142: 42.5 | F142: 1.81 | H142: 200 Meter | J142: 4.99087 | K142: 42.5 | L142: 1.81 | AH142: 22.3 | AI142: 17 | AJ142: 22.9 | AK142: 32
B143: 800m | C143: (auto) | D143: 0.11193 | E143: 254 | F143: 1.88 | H143: 800 Meter | J143: 0.11193 | K143: 254 | L143: 1.88 | AH143: 22.4 | AI143: 14 | AJ143: 23 | AK143: 28
B144: 100mH | C144: (auto) | D144: 9.23076 | E144: 26.7 | F144: 1.835 | H144: 100 Meter Hurdles | J144: 9.23076 | K144: 26.7 | L144: 1.835 | AH144: 22.5 | AI144: 10 | AJ144: 23.1 | AK144: 25
B145: High Jump | D145: 1.84523 | E145: 75 | F145: 1.348 | H145: 80 Meter Intermediate Girls hurdles | J145: Look up tables used as there is no formula | AH145: 22.6 | AI145: 7 | AJ145: 23.2 | AK145: 21
B146: Long Jump | D146: 0.188807 | E146: 210 | F146: 1.41 | H146: 75 Meter Junior Girls Hurdles | J146: Look up tables used as there is no formula | AH146: 22.7 | AI146: 3 | AJ146: 23.3 | AK146: 17
B147: Shot | D147: 56.0211 | E147: 1.5 | F147: 1.05 | H147: High jump | J147: 1.84523 | K147: 75 | L147: 1.348 | AH147: 22.8 | AI147: ERR | AJ147: 23.4 | AK147: 14
B148: Javelin | D148: 15.9803 | E148: 3.8 | F148: 1.04 | H148: Long Jump | J148: 0.188807 | K148: 210 | L148: 1.41 | AH148: 22.9 | AI148: ERR | AJ148: 23.5 | AK148: 10
A149: (Decathlon) | B149: 100m | C149: (auto) | D149: 17.857 | E149: 21 | F149: 1.81 | H149: Shot | J149: 56.0211 | K149: 1.5 | L149: 1.05 | AH149: 23 | AI149: ERR | AJ149: 23.6 | AK149: 7
A150: (Decathlon) | B150: 400m | C150: (auto) | D150: 1.34285 | E150: 91.7 | F150: 1.81 | H150: Javelin | J150: 15.9803 | K150: 3.8 | L150: 1.04 | AH150: 23.1 | AI150: ERR | AJ150: 23.7 | AK150: 3
A151: (Decathlon) | B151: 1500m | D151: 0.02883 | E151: 535 | F151: 1.88 | AH151: 23.2 | AI151: ERR | AJ151: 23.8 | AK151: ERR
A152: (Decathlon) | B152: Pole Vault | D152: 0.44125 | E152: 100 | F152: 1.35 | AH152: 23.3 | AI152: ERR | AJ152: 23.9 | AK152: ERR
A153: (Decathlon) | B153: Discus | D153: 12.3311 | E153: 3 | F153: 1.1
A154: (Indoors) | B154: 60mH | C154: (auto) | D154: 20.0479 | E154: 17 | F154: 1.835
B156: Manual Time Measurement
B157: 100m | C157: 0.24
B158: 110mH | C158: 0.24
B159: 200m | C159: 0.24
B160: 400m | C160: 0.14

Sheet AAA Grades
A1: AAA Standard Grades 2015/2016
A3: U17M | B3: G1 | C3: G2 | D3: G3 | E3: G4 | G3: U17W | H3: G1 | I3: G2 | J3: G3 | K3: G4
A4: 100m | B4: 11.2 | C4: 11.3 | D4: 11.5 | E4: 11.8 | G4: 100m | H4: 12.3 | I4: 12.6 | J4: 12.8 | K4: 13.1
A5: 200m | B5: 22.6 | C5: 23 | D5: 23.4 | E5: 24 | G5: 200m | H5: 25.4 | I5: 25.7 | J5: 26.3 | K5: 27
A6: 400m | B6: 51.2 | C6: 51.8 | D6: 52.9 | E6: 54.3 | G6: 300m | H6: 41.4 | I6: 42.1 | J6: 43 | K6: 44.5
A7: 800m | B7: 00:01:57 | C7: 00:01:59.500 | D7: 00:02:02.500 | E7: 00:02:06.500 | G7: 400m | H7: 58.5 | I7: 59.8 | J7: 61 | K7: 63.2
A8: 1500m | B8: 00:04:06 | C8: 00:04:11.500 | D8: 00:04:17.500 | E8: 00:04:27.500 | G8: 800m | H8: 00:02:15.500 | I8: 00:02:17.500 | J8: 00:02:20.500 | K8: 00:02:26
A9: 3000m | B9: 00:08:51 | C9: 00:09:06 | D9: 00:09:21 | E9: 00:09:42 | G9: 1500m | H9: 00:04:39.300 | I9: 00:04:45.400 | J9: 00:04:53.900 | K9: 00:05:04.300
A10: 100mH | B10: 13.7 | C10: 14 | D10: 14.6 | E10: 15.4 | G10: 3000m | H10: 00:10:07 | I10: 00:10:23 | J10: 00:10:50 | K10: 00:11:23.800
A11: 400mH | B11: 55.9 | C11: 57.5 | D11: 59.5 | E11: 62.5 | G11: 80mH | H11: 11.8 | I11: 12.1 | J11: 12.5 | K11: 13.1
A12: High Jump | B12: 1.9 | C12: 1.85 | D12: 1.76 | E12: 1.7 | G12: 300mH | H12: 44.9 | I12: 45.9 | J12: 47.7 | K12: 50.2
A13: Long Jump | B13: 6.3 | C13: 6.1 | D13: 5.9 | E13: 5.6 | G13: High Jump | H13: 1.65 | I13: 1.6 | J13: 1.55 | K13: 1.5
A14: Triple Jump | B14: 13 | C14: 12.5 | D14: 12.05 | E14: 11.4 | G14: Long Jump | H14: 5.35 | I14: 5.25 | J14: 5.05 | K14: 4.8
A15: Pole Vault | B15: 4.3 | C15: 4 | D15: 3.6 | E15: 3 | G15: Triple Jump | H15: 10.85 | I15: 10.55 | J15: 10.15 | K15: 9.45
A16: Javelin | B16: 52.95 | C16: 48.1 | D16: 44.15 | E16: 38.8 | G16: Pole Vault | H16: 3.5 | I16: 3.3 | J16: 3 | K16: 2.55
A17: Discus | B17: 41 | C17: 37.75 | D17: 33.45 | E17: 28.25 | G17: Javelin | H17: 38.2 | I17: 34.7 | J17: 31.45 | K17: 27.8
A18: Hammer | B18: 55.05 | C18: 50.35 | D18: 41.85 | E18: 29.65 | G18: Discus | H18: 35.8 | I18: 31.7 | J18: 27.75 | K18: 23.4
A19: Shot | B19: 13.6 | C19: 12.75 | D19: 11.7 | E19: 10.65 | G19: Hammer | H19: 50.7 | I19: 45.6 | J19: 40.15 | K19: 28.3
G20: Shot | H20: 11.6 | I20: 10.95 | J20: 10.15 | K20: 9.15
A21: U15B | B21: G1 | C21: G2 | D21: G3 | E21: G4
A22: 100m | B22: 11.7 | C22: 11.9 | D22: 12.1 | E22: 12.4 | G22: U15G | H22: G1 | I22: G2 | J22: G3 | K22: G4
A23: 200m | B23: 23.9 | C23: 24.3 | D23: 24.8 | E23: 25.6 | G23: 100m | H23: 12.7 | I23: 12.9 | J23: 13.2 | K23: 13.5
A24: 400m | B24: 53.8 | C24: 55.2 | D24: 56.9 | E24: 59 | G24: 200m | H24: 26.2 | I24: 26.6 | J24: 27.3 | K24: 28
A25: 800m | B25: 00:02:06.500 | C25: 00:02:10 | D25: 00:02:13.200 | E25: 00:02:18.500 | G25: 300m | H25: 42.6 | I25: 43.5 | J25: 44.4 | K25: 45.9
A26: 1500m | B26: 00:04:22 | C26: 00:04:27.500 | D26: 00:04:34.500 | E26: 00:04:46.500 | G26: 800m | H26: 00:02:19.400 | I26: 00:02:22.300 | J26: 00:02:25.600 | K26: 00:02:31.200
A27: 3000m | B27: 00:09:21.500 | C27: 00:09:33.500 | D27: 00:09:47 | E27: 00:10:09 | G27: 1500m | H27: 00:04:48.700 | I27: 00:04:53.900 | J27: 00:05:02 | K27: 00:05:15.500
A28: 80mH | B28: 12 | C28: 12.3 | D28: 12.7 | E28: 13.4 | G28: 3000m | H28: 00:10:22 | I28: 00:10:41.500 | J28: 00:11:02.500 | K28: 00:11:36
A29: High Jump | B29: 1.7 | C29: 1.65 | D29: 1.6 | E29: 1.53 | G29: 75mH | H29: 11.9 | I29: 12.3 | J29: 12.7 | K29: 13.4
A30: Long Jump | B30: 5.7 | C30: 5.5 | D30: 5.3 | E30: 5 | G30: High Jump | H30: 1.57 | I30: 1.53 | J30: 1.47 | K30: 1.4
A31: Triple Jump | B31: 11.9 | C31: 11.5 | D31: 11.05 | E31: 10.5 | G31: Long Jump | H31: 5.05 | I31: 4.9 | J31: 4.7 | K31: 4.45
A32: Pole Vault | B32: 3.4 | C32: 3.1 | D32: 2.8 | E32: 2.4 | G32: Triple Jump
A33: Javelin | B33: 43 | C33: 40 | D33: 36.65 | E33: 32.5 | G33: Pole Vault | H33: 2.95 | I33: 2.8 | J33: 2.5 | K33: 2.15
A34: Discus | B34: 35.95 | C34: 32.55 | D34: 29.7 | E34: 25.6 | G34: Discus | H34: 28.3 | I34: 25.65 | J34: 23 | K34: 19.5
A35: Hammer | B35: 46 | C35: 39.8 | D35: 34.2 | E35: 26.7 | G35: Hammer | H35: 42.6 | I35: 37.8 | J35: 31.1 | K35: 24.5
A36: Shot | B36: 12.45 | C36: 11.7 | D36: 10.95 | E36: 10.05 | G36: Shot | H36: 10.6 | I36: 9.85 | J36: 9.1 | K36: 8.3
A37: Pentathlon* | B37: 2600 | C37: 2390 | D37: 2170 | E37: 1865 | G37: Pentathlon | H37: 2770 | I37: 2600 | J37: 2360 | K37: 2075
G38: U13G | H38: G1 | I38: G2 | J38: G3 | K38: G4
A39: U13B | B39: G1 | C39: G2 | D39: G3 | E39: G4 | G39: 75m | H39: 10.5 | I39: 10.6 | J39: 10.9 | K39: 11.3
A40: 75m | B40: 10 | C40: 10.2 | D40: 10.5 | E40: 11 | G40: 100m | H40: 13.6 | I40: 13.8 | J40: 14.1 | K40: 14.5
A41: 100m | B41: 12.9 | C41: 13.2 | D41: 13.5 | E41: 14 | G41: 150m | H41: 20.5 | I41: 21 | J41: 21.5 | K41: 22.3
A42: 150m | B42: 19.4 | C42: 19.6 | D42: 20.6 | E42: 21.5 | G42: 200m | H42: 28.4 | I42: 28.9 | J42: 29.6 | K42: 30.7
A43: 200m | B43: 26.8 | C43: 27.3 | D43: 28.1 | E43: 29.1 | G43: 800m | H43: 00:02:29 | I43: 00:02:31.800 | J43: 00:02:35.500 | K43: 00:02:40.800
A44: 800m | B44: 00:02:21.500 | C44: 00:02:25.500 | D44: 00:02:29 | E44: 00:02:34.500 | G44: 1200m | H44: 00:03:57.600 | I44: 00:04:00.800 | J44: 00:04:05.600 | K44: 00:04:13.400
A45: 1500m | B45: 00:04:50.500 | C45: 00:04:55.500 | D45: 00:05:07 | E45: 00:05:15.500 | G45: 1500m | H45: 00:05:08.200 | I45: 00:05:15.200 | J45: 00:05:23.600 | K45: 00:05:37.900
A46: 75mH | B46: 12.9 | C46: 13.5 | D46: 14.2 | E46: 15.3 | G46: 70m Hurdles | H46: 11.9 | I46: 12.2 | J46: 12.6 | K46: 13.4
A47: High Jump | B47: 1.45 | C47: 1.4 | D47: 1.35 | E47: 1.3 | G47: High Jump | H47: 1.41 | I47: 1.36 | J47: 1.3 | K47: 1.25
A48: Long Jump | B48: 4.7 | C48: 4.55 | D48: 4.4 | E48: 4.15 | G48: Long Jump | H48: 4.5 | I48: 4.35 | J48: 4.2 | K48: 3.95
A49: Javelin | B49: 31.75 | C49: 28.75 | D49: 25.45 | E49: 21.25 | G49: Javelin | H49: 25.6 | I49: 23.05 | J49: 19.2 | K49: 15.4
A50: Discus | B50: 24.7 | C50: 22 | D50: 19.75 | E50: 16.6 | G50: Discus | H50: 23 | I50: 20.4 | J50: 17.8 | K50: 14.9
A51: Shot | B51: 9.45 | C51: 8.9 | D51: 8.1 | E51: 7.15 | G51: Shot | H51: 8.45 | I51: 7.8 | J51: 7.2 | K51: 6.45

Sheet Lists
A1: Gender | B1: Cheshire Open
A2: M | B2: C
A3: F

Sheet U13G choices
A1: U13 Girls
A3: Arranged by: | C3: =ArrangedBy -> Handforth W A A C | H3: Scorer: | I3: =Scorer -> H Branthwaite | X3: Date: | Z3: =Date -> 2015-09-13
A4: Sponsored by: | C4: =Sponsor -> Jones Homes | H4: Checked by:
A5: No. | B5: Name | C5: Club | D5: Cheshire | E5: 100m | F5: 70m Hurdles | G5: 800m | H5: Long Jump | I5: High Jump | J5: Shot | K5: Jav.
B6: Atkinson, Amelia | C6: Crewe & Nantwich | D6: C
B7: Grinnell, Ellie | C7: Crewe & Nantwich | D7: C
B8: Heaword, Eve | C8: Crewe & Nantwich | D8: C
B9: Giller, Alice | C9: DASH | D9: C
B10: Giller, Catherine | C10: DASH | D10: C
B11: Angus, Elouise | C11: Halton & Frodsham | D11: C
B12: Hickey, Hollie | C12: Halton & Frodsham | D12: C
B13: Povall-Clarke, Emilia | C13: Halton & Frodsham | D13: C
B14: Wright, Elizabeth | C14: Halton & Frodsham | D14: C
B15: Kirker, Alice | C15: Handforth WAAC
B16: Carroll, Chantelle | C16: Macclesfield H | D16: C
B17: Cobey, Eve | C17: Macclesfield H | D17: C
B18: Folkes, Olivia | C18: Macclesfield H | D18: C
B19: Hatton, Lydia | C19: Macclesfield H | D19: C
B20: Robinson, Lauren | C20: Macclesfield H | D20: C
B21: Jackson, Ellie | C21: Sale H | D21: C
B22: Marshall, Lauren | C22: St. Helens Sutton
B23: Pilkington, Jorden | C23: St. Helens Sutton
B24: Larkin, Molly | C24: Trafford
B25: Kelly, Bethan | C25: Vale Royal | D25: C
B26: Nugent, Millie | C26: Vale Royal | D26: C
B27: Hough, Eleanor | C27: Warrington | D27: C
B28: Clarke, Issy | C28: West Cheshire | D28: C
B29: Finn, Ellie | C29: West Cheshire | D29: C
B30: Howe, Emma | C30: West Cheshire | D30: C
B31: Tipping, Maisie | C31: West Cheshire | D31: C
B32: Rowlands, Emma | C32: Wirral

Sheet U13B choices
A1: U13 Boys
A3: Arranged by: | C3: =ArrangedBy -> Handforth W A A C | F3: Scorer: | G3: =Scorer -> H Branthwaite | J3: Date: | K3: =Date -> 2015-09-13
A4: Sponsored by: | C4: =Sponsor -> Jones Homes | F4: Checked by:
A5: No. | B5: Name | C5: Club | D5: Cheshire | E5: 100m | F5: 75m Hurdles | G5: 800m | H5: Long Jump | I5: High Jump | J5: Shot | K5: Jav.
B6: Robertson, Josh | C6: City of Stoke | D6: C
B7: Williamson, Jack | C7: Crewe & Nantwich | D7: C
B8: Ainley, James | C8: DASH | D8: C
B9: Ainley, Matthew | C9: DASH | D9: C
B10: Firth, Sam | C10: Handforth WAAC
B11: Henshaw, Jamie | C11: Handforth WAAC | D11: C
B12: Stone, Oscar | C12: Handforth WAAC | D12: C
B13: Carey, Joshua | C13: Macclesfield H | D13: C
B14: Goodall, Jac | C14: Macclesfield H | D14: C
B15: Johnson, Oscar | C15: Macclesfield H | D15: C
B16: Willis, Ben | C16: Macclesfield H | D16: C
B17: Boyd, Harry | C17: Sale H | D17: C
B18: Hurst, George | C18: Trafford
B19: Kelly, Jordan | C19: Vale Royal | D19: C
B20: Bowyer, Finnian | C20: West Cheshire | D20: C
B21: Mason, Alexander | C21: West Cheshire | D21: C
B22: Scott, William | C22: West Cheshire | D22: C

Sheet Sheet1
